Workbook

Sheet CAPA

Sheet ABC
E5: 1
E6: 2
E7: 321
E8: 312
C9: 1 | D9: 4
C10: 4
A11: 5 | B11: 3
B12: 34
B13: 54 | C13: 3
C14: 54 | D14: 3
C15: 43 | D15: 5
D16: 5
C17: 5 | D17: 43
C18: 5 | D18: 43
A19: 345 | B19: 43 | C19: 5 | D19: 35
A20: 5 | B20: 5
B21: 5 | C21: 4 | D21: 5
C22: 435
B23: 53 | C23: 34
B24: 5 | C24: 34
C25: 5 | D25: 53

Sheet DADOS
B2: DATA | D2: 2021-06-02
B4: CLIENTE | D4: PREFEITURA MUNICIPAL DE POUSO ALEGRE
B6: REVISÃO | D6: R00
B8: PROJETO | D8: REFORMA DA ESCOLA MUNICIPAL PROFESSORA CLARISSE TOLEDO
B10: BDI TIPO 1 | D10: 0.2652
B12: BDI TIPO 2 | D12: 0.2025
B14: REFERÊNCIA 1 | D14: SINAPI
B16: DATA REF. 1 | D16: 2021-04-01
B18: REFERÊNCIA 2 | D18: SETOP
B20: DATA REF. 2 | D20: 2021-01-01

Sheet ORC
A2: 1000 | B2: a | C2: ADMINISTRAÇAÕ DE OBRA | J2: =SUMIF(A:A,B2,J:J) -> 0 | K2: =SUMIF(A:A,B2,K:K) -> 0
B3: b
A4: =LEFT(B4) -> c | B4: c | C4: =IF($E4="SINAPI",VLOOKUP($D4,SINAPI,2,0),IF(E4="SETOP",VLOOKUP($D4,SETOP,3,0),IF(E4="CPU",VLOOKUP($D4,COMPOSIÇÃO,2,0),IF(E4="COTAÇÃO",VLOOKUP($D4,COTAÇÃO,3,0),VLOOKUP(#REF!,DIVERSAS,2,0))))) ->  | F4: =IF(E4="SINAPI",VLOOKUP($D4,SINAPI,3,0),IF(E4="SETOP",VLOOKUP($D4,SETOP,4,0),IF(E4="CPU",VLOOKUP($D4,COMPOSIÇÃO,10,0),IF(E4="COTAÇÃO",VLOOKUP($D4,COTAÇÃO,12,0),VLOOKUP(#REF!,DIVERSAS,3,0))))) ->  | H4: =IF(E4="SINAPI",VLOOKUP($D4,SINAPI,4,0),IF(E4="SETOP",VLOOKUP($D4,SETOP,5,0),IF(E4="CPU",VLOOKUP($D4,COMPOSIÇÃO,13,0),IF(E4="COTAÇÃO",VLOOKUP($D4,COTAÇÃO,15,0),VLOOKUP(#REF!,DIVERSAS,4,0))))) ->  | I4: =ROUND(H4*(1+$J$11),2) ->  | J4: =ROUND(G4*H4,2) ->  | K4: =ROUND(I4*G4,2) -> 
A5: =2000 -> 2000
B8: ="ORÇAMENTO - " &B10 -> ORÇAMENTO - REFORMA DA ESCOLA MUNICIPAL PROFESSORA CLARISSE TOLEDO | J8: Revisão: | K8: =DADOS!D6 -> R00 | L8: a
B9: Projeto: | I9: Informações:
B10: =DADOS!D8 -> REFORMA DA ESCOLA MUNICIPAL PROFESSORA CLARISSE TOLEDO | I10: Data: | J10: =DADOS!D2 -> 2021-06-02
B11: Responsável: | I11: BDI-1 | J11: =DADOS!D10 -> 0.2652
I12: BDI-2 | J12: =DADOS!D12 -> 0.2025
I13: Referências
I14: =DADOS!D14 -> SINAPI | J14: =DADOS!D16 -> 2021-04-01
I15: =DADOS!D18 -> SETOP | J15: =DADOS!D20 -> 2021-01-01
B16: ="PROJETO EXECUTIVO - "&B10 -> PROJETO EXECUTIVO - REFORMA DA ESCOLA MUNICIPAL PROFESSORA CLARISSE TOLEDO
B18: ITEM | C18: DESCRIÇÃO | D18: CÓDIGO | E18: REFERÊNCIA | F18: UNID. | G18: QUANT. | H18: PREÇO UNIT. | I18: PREÇO UNIT. COM BDI | J18: TOTAL | K18: TOTAL COM BDI
A19: =LEFT(B19) ->  | J19: =ROUND(G19*H19,2) -> 0 | K19: =ROUND(I19*G19,2) -> 0
A20: 1000 | B20: 1 | C20: ADMINISTRAÇÃO LOCAL E INSTALAÇÃO DA OBRA | J20: =SUMIF(A:A,B20,J:J) -> 8023.82 | K20: =SUMIF(A:A,B20,K:K) -> 10152.22
A21: =LEFT(B21) -> 1 | B21: 1.1 | C21: =IF($E21="SINAPI",VLOOKUP($D21,SINAPI,2,0),IF(E21="SETOP",VLOOKUP($D21,SETOP,3,0),IF(E21="CPU",VLOOKUP($D21,COMPOSIÇÃO,2,0),IF(E21="COTAÇÃO",VLOOKUP($D21,COTAÇÃO,3,0),VLOOKUP(#REF!,DIVERSAS,2,0))))) -> FORNECIMENTO E COLOCAÇÃO DE PLACAS DE OBRAS EM CHAPA GALVANIZADA (4,00 X 2,00 M ) SÃO CONFECCIONADAS EM CHAPA GALVANIZADA 26. AS CHAPAS SERÃO AFIXADAS COM REBITES 410 E PARAFUSOS 3/8, EM UMA ESTRUTURA METÁLICA COM VIGA U 2" ENRIJECIDA E METALON 20MMX20MM,334 | D21: ED-50154 | E21: SETOP | F21: =IF(E21="SINAPI",VLOOKUP($D21,SINAPI,3,0),IF(E21="SETOP",VLOOKUP($D21,SETOP,4,0),IF(E21="CPU",VLOOKUP($D21,COMPOSIÇÃO,10,0),IF(E21="COTAÇÃO",VLOOKUP($D21,COTAÇÃO,12,0),VLOOKUP(#REF!,DIVERSAS,3,0))))) -> U | G21: =D22 -> 1 | H21: =IF(E21="SINAPI",VLOOKUP($D21,SINAPI,4,0),IF(E21="SETOP",VLOOKUP($D21,SETOP,5,0),IF(E21="CPU",VLOOKUP($D21,COMPOSIÇÃO,13,0),IF(E21="COTAÇÃO",VLOOKUP($D21,COTAÇÃO,15,0),VLOOKUP(#REF!,DIVERSAS,4,0))))) -> 1627.62 | I21: =ROUND(H21*(1+$J$11),2) -> 2059.26 | J21: =ROUND(G21*H21,2) -> 1627.62 | K21: =ROUND(I21*G21,2) -> 2059.26
A22: =2000 -> 2000 | C22: Quantidade | D22: 1 | E22: un
A23: 1 | B23: 1.2 | C23: =IF($E23="SINAPI",VLOOKUP($D23,SINAPI,2,0),IF(E23="SETOP",VLOOKUP($D23,SETOP,3,0),IF(E23="CPU",VLOOKUP($D23,COMPOSIÇÃO,2,0),IF(E23="COTAÇÃO",VLOOKUP($D23,COTAÇÃO,3,0),VLOOKUP(#REF!,DIVERSAS,2,0))))) -> BANHEIRO QUÍMICO 110 X 120 X 230 CM COM MANUTENÇÃO | D23: ED-50155 | E23: SETOP | F23: =IF(E23="SINAPI",VLOOKUP($D23,SINAPI,3,0),IF(E23="SETOP",VLOOKUP($D23,SETOP,4,0),IF(E23="CPU",VLOOKUP($D23,COMPOSIÇÃO,10,0),IF(E23="COTAÇÃO",VLOOKUP($D23,COTAÇÃO,12,0),VLOOKUP(#REF!,DIVERSAS,3,0))))) -> MÊS | G23: =D26 -> 4 | H23: =IF(E23="SINAPI",VLOOKUP($D23,SINAPI,4,0),IF(E23="SETOP",VLOOKUP($D23,SETOP,5,0),IF(E23="CPU",VLOOKUP($D23,COMPOSIÇÃO,13,0),IF(E23="COTAÇÃO",VLOOKUP($D23,COTAÇÃO,15,0),VLOOKUP(#REF!,DIVERSAS,4,0))))) -> 515 | I23: =ROUND(H23*(1+$J$11),2) -> 651.58 | J23: 2060 | K23: 2606.32
A24: =2000 -> 2000 | C24: Quantidade Banheiros | D24: 1 | E24: un
A25: =2000 -> 2000 | C25: Quantidades de Meses | D25: 4 | E25: meses
A26: =2000 -> 2000 | C26: Total | D26: =D24*D25 -> 4 | E26: meses
A27: 1 | B27: 1.3 | C27: =IF($E27="SINAPI",VLOOKUP($D27,SINAPI,2,0),IF(E27="SETOP",VLOOKUP($D27,SETOP,3,0),IF(E27="CPU",VLOOKUP($D27,COMPOSIÇÃO,2,0),IF(E27="COTAÇÃO",VLOOKUP($D27,COTAÇÃO,3,0),VLOOKUP(#REF!,DIVERSAS,2,0))))) -> LOCAÇÃO DE CONTAINER COM ISOLAMENTO TÉRMICO, TIPO 3, PARA DEPÓSITO/FERRAMENTARIA DE OBRA, COM MEDIDAS REFERENCIAIS DE (6) METROS COMPRIMENTO, (2,3) METROS LARGURA E (2,5) METROS ALTURA ÚTIL INTERNA, INCLUSIVE LIGAÇÕES ELÉTRICAS INTERNAS, EXCLUSIVE MOBILIZAÇÃO/DESMOBILIZAÇÃO E LIGAÇÕES PROVISÓRIAS EXTERNAS | D27: ED-16350 | E27: SETOP | F27: =IF(E27="SINAPI",VLOOKUP($D27,SINAPI,3,0),IF(E27="SETOP",VLOOKUP($D27,SETOP,4,0),IF(E27="CPU",VLOOKUP($D27,COMPOSIÇÃO,10,0),IF(E27="COTAÇÃO",VLOOKUP($D27,COTAÇÃO,12,0),VLOOKUP(#REF!,DIVERSAS,3,0))))) -> MÊS | G27: =D30 -> 4 | H27: =IF(E27="SINAPI",VLOOKUP($D27,SINAPI,4,0),IF(E27="SETOP",VLOOKUP($D27,SETOP,5,0),IF(E27="CPU",VLOOKUP($D27,COMPOSIÇÃO,13,0),IF(E27="COTAÇÃO",VLOOKUP($D27,COTAÇÃO,15,0),VLOOKUP(#REF!,DIVERSAS,4,0))))) -> 613.3 | I27: =ROUND(H27*(1+$J$11),2) -> 775.95 | J27: 2453.2 | K27: 3103.8
A28: =2000 -> 2000 | C28: Quantidade de Container | D28: 1 | E28: un
A29: =2000 -> 2000 | C29: Quantidades de Meses | D29: 4 | E29: meses
A30: =2000 -> 2000 | C30: Total | D30: =D29*D28 -> 4 | E30: meses
A31: 1 | B31: 1.4 | C31: =IF($E31="SINAPI",VLOOKUP($D31,SINAPI,2,0),IF(E31="SETOP",VLOOKUP($D31,SETOP,3,0),IF(E31="CPU",VLOOKUP($D31,COMPOSIÇÃO,2,0),IF(E31="COTAÇÃO",VLOOKUP($D31,COTAÇÃO,3,0),VLOOKUP(#REF!,DIVERSAS,2,0))))) -> MOBILIZAÇÃO E DESMOBILIZAÇÃO DE CONTAINER, INCLUSIVE INSTALAÇÃO E TRANSPORTE COM CAMINHÃO GUINDAUTO (MUNCK) | D31: ED-50137 | E31: SETOP | F31: =IF(E31="SINAPI",VLOOKUP($D31,SINAPI,3,0),IF(E31="SETOP",VLOOKUP($D31,SETOP,4,0),IF(E31="CPU",VLOOKUP($D31,COMPOSIÇÃO,10,0),IF(E31="COTAÇÃO",VLOOKUP($D31,COTAÇÃO,12,0),VLOOKUP(#REF!,DIVERSAS,3,0))))) -> UN | G31: =D32 -> 1 | H31: =IF(E31="SINAPI",VLOOKUP($D31,SINAPI,4,0),IF(E31="SETOP",VLOOKUP($D31,SETOP,5,0),IF(E31="CPU",VLOOKUP($D31,COMPOSIÇÃO,13,0),IF(E31="COTAÇÃO",VLOOKUP($D31,COTAÇÃO,15,0),VLOOKUP(#REF!,DIVERSAS,4,0))))) -> 680 | I31: =ROUND(H31*(1+$J$11),2) -> 860.34 | J31: 680 | K31: 860.34
A32: =2000 -> 2000 | C32: Quantidade | D32: 1 | E32: un
A33: =LEFT(B33) -> 1 | B33: 1.5 | C33: =IF($E33="SINAPI",VLOOKUP($D33,SINAPI,2,0),IF(E33="SETOP",VLOOKUP($D33,SETOP,3,0),IF(E33="CPU",VLOOKUP($D33,COMPOSIÇÃO,2,0),IF(E33="COTAÇÃO",VLOOKUP($D33,COTAÇÃO,3,0),VLOOKUP(#REF!,DIVERSAS,2,0))))) -> SINALIZAÇÃO COM FITA FIXADA EM CONE PLÁSTICO, INCLUINDO CONE. AF_11/2017 | D33: 97053 | E33: SINAPI | F33: =IF(E33="SINAPI",VLOOKUP($D33,SINAPI,3,0),IF(E33="SETOP",VLOOKUP($D33,SETOP,4,0),IF(E33="CPU",VLOOKUP($D33,COMPOSIÇÃO,10,0),IF(E33="COTAÇÃO",VLOOKUP($D33,COTAÇÃO,12,0),VLOOKUP(#REF!,DIVERSAS,3,0))))) -> M | G33: =ROUND(D35,2) -> 150 | H33: =IF(E33="SINAPI",VLOOKUP($D33,SINAPI,4,0),IF(E33="SETOP",VLOOKUP($D33,SETOP,5,0),IF(E33="CPU",VLOOKUP($D33,COMPOSIÇÃO,13,0),IF(E33="COTAÇÃO",VLOOKUP($D33,COTAÇÃO,15,0),VLOOKUP(#REF!,DIVERSAS,4,0))))) -> 8.02 | I33: =ROUND(H33*(1+$J$11),2) -> 10.15 | J33: =ROUND(G33*H33,2) -> 1203 | K33: =ROUND(I33*G33,2) -> 1522.5
A34: =2000 -> 2000 | C34: Comprimento | D34: 150 | E34: m
A35: =2000 -> 2000 | C35: Total | D35: =D34 -> 150 | E35: m
A36: 1000 | B36: 2 | C36: DEMOLIÇÕES E REMOÇÕES | J36: =SUMIF(A:A,B36,J:J) -> 18052.74 | K36: =SUMIF(A:A,B36,K:K) -> 22838.09
A37: =LEFT(B37) -> 2 | B37: 2.1 | C37: =IF($E37="SINAPI",VLOOKUP($D37,SINAPI,2,0),IF(E37="SETOP",VLOOKUP($D37,SETOP,3,0),IF(E37="CPU",VLOOKUP($D37,COMPOSIÇÃO,2,0),IF(E37="COTAÇÃO",VLOOKUP($D37,COTAÇÃO,3,0),VLOOKUP(#REF!,DIVERSAS,2,0))))) -> REMOÇÃO DAS CHAPAS DE POLICARBONATO | D37: DAC-2.1 | E37: CPU | F37: =IF(E37="SINAPI",VLOOKUP($D37,SINAPI,3,0),IF(E37="SETOP",VLOOKUP($D37,SETOP,4,0),IF(E37="CPU",VLOOKUP($D37,COMPOSIÇÃO,10,0),IF(E37="COTAÇÃO",VLOOKUP($D37,COTAÇÃO,12,0),VLOOKUP(#REF!,DIVERSAS,3,0))))) -> M2 | G37: =ROUND(D40,2) -> 752.31 | H37: =IF(E37="SINAPI",VLOOKUP($D37,SINAPI,4,0),IF(E37="SETOP",VLOOKUP($D37,SETOP,5,0),IF(E37="CPU",VLOOKUP($D37,COMPOSIÇÃO,13,0),IF(E37="COTAÇÃO",VLOOKUP($D37,COTAÇÃO,15,0),VLOOKUP(#REF!,DIVERSAS,4,0))))) -> 16.875 | I37: =ROUND(H37*(1+$J$11),2) -> 21.35 | J37: =ROUND(G37*H37,2) -> 12695.23 | K37: =ROUND(I37*G37,2) -> 16061.82
A38: =2000 -> 2000 | C38: Superior 1 | D38: =59.31*6.67 -> 395.5977 | E38: m²
A39: =2000 -> 2000 | C39: Térreo | D39: =(26.94*6.67)+(26.54*6.67) -> 356.7116 | E39: m²
A40: =2000 -> 2000 | C40: Total | D40: =SUM(D38:D39) -> 752.3093 | E40: m²
A41: =LEFT(B41) -> 2 | B41: 2.2 | C41: =IF($E41="SINAPI",VLOOKUP($D41,SINAPI,2,0),IF(E41="SETOP",VLOOKUP($D41,SETOP,3,0),IF(E41="CPU",VLOOKUP($D41,COMPOSIÇÃO,2,0),IF(E41="COTAÇÃO",VLOOKUP($D41,COTAÇÃO,3,0),VLOOKUP(#REF!,DIVERSAS,2,0))))) -> ANDAIME PARA REMOÇÃO DAS CHAPAS DE POLICARBONATO | D41: DAC-2.6 | E41: CPU | F41: =IF(E41="SINAPI",VLOOKUP($D41,SINAPI,3,0),IF(E41="SETOP",VLOOKUP($D41,SETOP,4,0),IF(E41="CPU",VLOOKUP($D41,COMPOSIÇÃO,10,0),IF(E41="COTAÇÃO",VLOOKUP($D41,COTAÇÃO,12,0),VLOOKUP(#REF!,DIVERSAS,3,0))))) -> UN | G41: =ROUND(D43,2) -> 1 | H41: =IF(E41="SINAPI",VLOOKUP($D41,SINAPI,4,0),IF(E41="SETOP",VLOOKUP($D41,SETOP,5,0),IF(E41="CPU",VLOOKUP($D41,COMPOSIÇÃO,13,0),IF(E41="COTAÇÃO",VLOOKUP($D41,COTAÇÃO,15,0),VLOOKUP(#REF!,DIVERSAS,4,0))))) -> 78.36 | I41: =ROUND(H41*(1+$J$11),2) -> 99.14 | J41: =ROUND(G41*H41,2) -> 78.36 | K41: =ROUND(I41*G41,2) -> 99.14
A42: =2000 -> 2000 | C42: Quantidade | D42: 1 | E42: un
A43: =2000 -> 2000 | C43: Total | D43: =D42 -> 1 | E43: un
A44: =LEFT(B44) -> 2 | B44: 2.3 | C44: =IF($E44="SINAPI",VLOOKUP($D44,SINAPI,2,0),IF(E44="SETOP",VLOOKUP($D44,SETOP,3,0),IF(E44="CPU",VLOOKUP($D44,COMPOSIÇÃO,2,0),IF(E44="COTAÇÃO",VLOOKUP($D44,COTAÇÃO,3,0),VLOOKUP(#REF!,DIVERSAS,2,0))))) -> DEMOLIÇÃO DE REVESTIMENTO CERÂMICO, AZULEJO OU LADRILHO HIDRÁULICO INCLUSIVE AFASTAMENTO | D44: ED-48502 | E44: SETOP | F44: =IF(E44="SINAPI",VLOOKUP($D44,SINAPI,3,0),IF(E44="SETOP",VLOOKUP($D44,SETOP,4,0),IF(E44="CPU",VLOOKUP($D44,COMPOSIÇÃO,10,0),IF(E44="COTAÇÃO",VLOOKUP($D44,COTAÇÃO,12,0),VLOOKUP(#REF!,DIVERSAS,3,0))))) -> M2 | G44: =ROUND(D51,2) -> 42.24 | H44: =IF(E44="SINAPI",VLOOKUP($D44,SINAPI,4,0),IF(E44="SETOP",VLOOKUP($D44,SETOP,5,0),IF(E44="CPU",VLOOKUP($D44,COMPOSIÇÃO,13,0),IF(E44="COTAÇÃO",VLOOKUP($D44,COTAÇÃO,15,0),VLOOKUP(#REF!,DIVERSAS,4,0))))) -> 12.85 | I44: =ROUND(H44*(1+$J$11),2) -> 16.26 | J44: =ROUND(G44*H44,2) -> 542.78 | K44: =ROUND(I44*G44,2) -> 686.82
A45: =2000 -> 2000 | C45: Superior 1 - Banheiro Feminino | D45: =((19.8*2.96)+(22.2*1.8))-((0.8*2.1)+(0.6*1.8*4)+(1.5*0.6*2)+(0.8*1.8)) -> 89.328 | E45: m²
A46: =2000 -> 2000 | C46: Superior 1 - Banheiro Masculino | D46: =((19.8*2.96)+(16.4*1.8))-((0.8*2.1)+(1.5*0.6*2)+(0.6*1.8*2)+(0.8*1.8)) -> 81.048 | E46: m²
A47: =2000 -> 2000 | C47: Térreo - Banheiro Feminino | D47: =((19.8*2.96)+(22.2*1.8)+(4.05*1.8))-((0.8*2.1)+(0.6*1.8*4)+(1.5*0.6*2)+(0.8*1.8)) -> 96.618 | E47: m²
A48: =2000 -> 2000 | C48: Térreo - Banheiro Masculino | D48: =((19.8*2.96)+(16.4*1.8)+(4.05*1.8))-((0.8*2.1)+(1.5*0.6*2)+(0.6*1.8*2)+(0.8*1.8)) -> 88.338 | E48: m²
A49: =2000 -> 2000 | C49: Térreo - Cozinha | D49: =(27.98*2.96)-((2*1.2*2)+(0.8*2.1*2)+(0.7*0.83)+(3.4*2.07)) -> 67.0418 | E49: m²
A50: =2000 -> 2000 | C50: Porcentagem de Troca (10%) | D50: 0.1
A51: =2000 -> 2000 | C51: Total | D51: =(SUM(D45:D49))*D50 -> 42.23738 | E51: m²
A52: =LEFT(B52) -> 2 | B52: 2.4 | C52: =IF($E52="SINAPI",VLOOKUP($D52,SINAPI,2,0),IF(E52="SETOP",VLOOKUP($D52,SETOP,3,0),IF(E52="CPU",VLOOKUP($D52,COMPOSIÇÃO,2,0),IF(E52="COTAÇÃO",VLOOKUP($D52,COTAÇÃO,3,0),VLOOKUP(#REF!,DIVERSAS,2,0))))) -> REMOÇÃO DE TELHAS DE FIBROCIMENTO, METÁLICA E CERÂMICA, DE FORMA MECANIZADA, COM USO DE GUINDASTE, SEM REAPROVEITAMENTO. AF_12/2017 | D52: 97649 | E52: SINAPI | F52: =IF(E52="SINAPI",VLOOKUP($D52,SINAPI,3,0),IF(E52="SETOP",VLOOKUP($D52,SETOP,4,0),IF(E52="CPU",VLOOKUP($D52,COMPOSIÇÃO,10,0),IF(E52="COTAÇÃO",VLOOKUP($D52,COTAÇÃO,12,0),VLOOKUP(#REF!,DIVERSAS,3,0))))) -> M2 | G52: =ROUND(D57,2) -> 230.59 | H52: =IF(E52="SINAPI",VLOOKUP($D52,SINAPI,4,0),IF(E52="SETOP",VLOOKUP($D52,SETOP,5,0),IF(E52="CPU",VLOOKUP($D52,COMPOSIÇÃO,13,0),IF(E52="COTAÇÃO",VLOOKUP($D52,COTAÇÃO,15,0),VLOOKUP(#REF!,DIVERSAS,4,0))))) -> 3.11 | I52: =ROUND(H52*(1+$J$11),2) -> 3.93 | J52: =ROUND(G52*H52,2) -> 717.13 | K52: =ROUND(I52*G52,2) -> 906.22
A53: =2000 -> 2000 | C53: Superior 2 | D53: =94.78*1.097 -> 103.97366 | E53: m²
A54: =2000 -> 2000 | C54: Superior 1 | D54: =(390.97*1.097)+(374.34*1.097) -> 839.54507 | E54: m²
A55: =2000 -> 2000 | C55: Térreo | D55: =(303.27+307.35+631.29)*1.097 -> 1362.37527 | E55: m²
A56: =2000 -> 2000 | C56: Porcentagem de Troca (10%) | D56: 0.1
A57: =2000 -> 2000 | C57: Total | D57: =(SUM(D53:D55))*D56 -> 230.5894 | E57: m²
A58: =LEFT(B58) -> 2 | B58: 2.5 | C58: =IF($E58="SINAPI",VLOOKUP($D58,SINAPI,2,0),IF(E58="SETOP",VLOOKUP($D58,SETOP,3,0),IF(E58="CPU",VLOOKUP($D58,COMPOSIÇÃO,2,0),IF(E58="COTAÇÃO",VLOOKUP($D58,COTAÇÃO,3,0),VLOOKUP(#REF!,DIVERSAS,2,0))))) -> REMOÇÃO DE CALHA GALVANIZADA OU PVC, INCLUSIVE AFASTAMENTO | D58: ED-48438 | E58: SETOP | F58: =IF(E58="SINAPI",VLOOKUP($D58,SINAPI,3,0),IF(E58="SETOP",VLOOKUP($D58,SETOP,4,0),IF(E58="CPU",VLOOKUP($D58,COMPOSIÇÃO,10,0),IF(E58="COTAÇÃO",VLOOKUP($D58,COTAÇÃO,12,0),VLOOKUP(#REF!,DIVERSAS,3,0))))) -> M | G58: =ROUND(D61,2) -> 112.78 | H58: =IF(E58="SINAPI",VLOOKUP($D58,SINAPI,4,0),IF(E58="SETOP",VLOOKUP($D58,SETOP,5,0),IF(E58="CPU",VLOOKUP($D58,COMPOSIÇÃO,13,0),IF(E58="COTAÇÃO",VLOOKUP($D58,COTAÇÃO,15,0),VLOOKUP(#REF!,DIVERSAS,4,0))))) -> 6.42 | I58: =ROUND(H58*(1+$J$11),2) -> 8.12 | J58: =ROUND(G58*H58,2) -> 724.05 | K58: =ROUND(I58*G58,2) -> 915.77
A59: =2000 -> 2000 | C59: Superior 1 | D59: 59.31 | E59: m
A60: =2000 -> 2000 | C60: Térreo | D60: 53.47 | E60: m
A61: =2000 -> 2000 | C61: Total | D61: =SUM(D59:D60) -> 112.78 | E61: m
A62: =LEFT(B62) -> 2 | B62: 2.6 | C62: =IF($E62="SINAPI",VLOOKUP($D62,SINAPI,2,0),IF(E62="SETOP",VLOOKUP($D62,SETOP,3,0),IF(E62="CPU",VLOOKUP($D62,COMPOSIÇÃO,2,0),IF(E62="COTAÇÃO",VLOOKUP($D62,COTAÇÃO,3,0),VLOOKUP(#REF!,DIVERSAS,2,0))))) -> REMOÇÃO DE PORTAS, DE FORMA MANUAL, SEM REAPROVEITAMENTO. AF_12/2017 | D62: 97644 | E62: SINAPI | F62: =IF(E62="SINAPI",VLOOKUP($D62,SINAPI,3,0),IF(E62="SETOP",VLOOKUP($D62,SETOP,4,0),IF(E62="CPU",VLOOKUP($D62,COMPOSIÇÃO,10,0),IF(E62="COTAÇÃO",VLOOKUP($D62,COTAÇÃO,12,0),VLOOKUP(#REF!,DIVERSAS,3,0))))) -> M2 | G62: =ROUND(D75,2) -> 35.52 | H62: =IF(E62="SINAPI",VLOOKUP($D62,SINAPI,4,0),IF(E62="SETOP",VLOOKUP($D62,SETOP,5,0),IF(E62="CPU",VLOOKUP($D62,COMPOSIÇÃO,13,0),IF(E62="COTAÇÃO",VLOOKUP($D62,COTAÇÃO,15,0),VLOOKUP(#REF!,DIVERSAS,4,0))))) -> 6.22 | I62: =ROUND(H62*(1+$J$11),2) -> 7.87 | J62: =ROUND(G62*H62,2) -> 220.93 | K62: =ROUND(I62*G62,2) -> 279.54
A63: =2000 -> 2000 | C63: Superior 1 - Banheiro Feminino - PM1 + PM3 + PM4 | D63: =(0.8*2.1)+(0.6*1.8*4)+(0.8*1.8) -> 7.44 | E63: m²
A64: =2000 -> 2000 | C64: Superior 1 - Banheiro Masculino - PM1 + PM3 + PM4 | D64: =(0.6*1.8*2)+(0.8*1.8)+(0.8*2.1) -> 5.28 | E64: m²
A65: =2000 -> 2000 | C65: Superior 1 - Sala 02 - PM1 | D65: =0.8*2.1 -> 1.68 | E65: m²
A66: =2000 -> 2000 | C66: Superior 1 - Sala 06 - PM1 | D66: 1.68 | E66: m²
A67: =2000 -> 2000 | C67: Superior 1 - Recursos - PM1 | D67: 1.68 | E67: m²
A68: =2000 -> 2000 | C68: Superior 1 - Orientação - PM1 | D68: 1.68 | E68: m²
A69: =2000 -> 2000 | C69: Térreo - Sala 07 - PM1 | D69: 1.68 | E69: m²
A70: =2000 -> 2000 | C70: Térreo - Sala 08 - PM1 | D70: 1.68 | E70: m²
A71: =2000 -> 2000 | C71: Térreo - Sala 11 - PM1 | D71: 1.68 | E71: m²
A72: =2000 -> 2000 | C72: Térreo - Sala 17 - PM1 | D72: 1.68 | E72: m²
A73: =2000 -> 2000 | C73: Térreo - Banheiro Feminino - PM3 + PM4 | D73: =(0.8*1.8)+(0.6*1.8*4) -> 5.76 | E73: m²
A74: =2000 -> 2000 | C74: Térreo - Banheiro Masculino - PM3 + PM4 | D74: =(0.8*1.8)+(0.6*1.8*2) -> 3.6 | E74: m²
A75: =2000 -> 2000 | C75: Total | D75: =SUM(D63:D74) -> 35.52 | E75: m²
A76: =LEFT(B76) -> 2 | B76: 2.7 | C76: =IF($E76="SINAPI",VLOOKUP($D76,SINAPI,2,0),IF(E76="SETOP",VLOOKUP($D76,SETOP,3,0),IF(E76="CPU",VLOOKUP($D76,COMPOSIÇÃO,2,0),IF(E76="COTAÇÃO",VLOOKUP($D76,COTAÇÃO,3,0),VLOOKUP(#REF!,DIVERSAS,2,0))))) -> REMOÇÃO DE PORTAS, DE FORMA MANUAL, COM REAPROVEITAMENTO | D76: DAC-2.2 | E76: CPU | F76: =IF(E76="SINAPI",VLOOKUP($D76,SINAPI,3,0),IF(E76="SETOP",VLOOKUP($D76,SETOP,4,0),IF(E76="CPU",VLOOKUP($D76,COMPOSIÇÃO,10,0),IF(E76="COTAÇÃO",VLOOKUP($D76,COTAÇÃO,12,0),VLOOKUP(#REF!,DIVERSAS,3,0))))) -> M2 | G76: =ROUND(D79,2) -> 16.8 | H76: =IF(E76="SINAPI",VLOOKUP($D76,SINAPI,4,0),IF(E76="SETOP",VLOOKUP($D76,SETOP,5,0),IF(E76="CPU",VLOOKUP($D76,COMPOSIÇÃO,13,0),IF(E76="COTAÇÃO",VLOOKUP($D76,COTAÇÃO,15,0),VLOOKUP(#REF!,DIVERSAS,4,0))))) -> 16.82 | I76: =ROUND(H76*(1+$J$11),2) -> 21.28 | J76: =ROUND(G76*H76,2) -> 282.58 | K76: =ROUND(I76*G76,2) -> 357.5
A77: =2000 -> 2000 | C77: Térreo - Refeitório - PV2 | D77: =2*2.1*3 -> 12.6 | E77: m²
A78: =2000 -> 2000 | C78: Térreo - Depósito - PV2 | D78: =2*2.1 -> 4.2 | E78: m²
A79: =2000 -> 2000 | C79: Total | D79: =SUM(D77:D78) -> 16.8 | E79: m²
A80: =LEFT(B80) -> 2 | B80: 2.8 | C80: =IF($E80="SINAPI",VLOOKUP($D80,SINAPI,2,0),IF(E80="SETOP",VLOOKUP($D80,SETOP,3,0),IF(E80="CPU",VLOOKUP($D80,COMPOSIÇÃO,2,0),IF(E80="COTAÇÃO",VLOOKUP($D80,COTAÇÃO,3,0),VLOOKUP(#REF!,DIVERSAS,2,0))))) -> DEMOLIÇÃO DE PISO CERÂMICO OU LADRILHO HIDRÁULICO, INCLUSIVE AFASTAMENTO | D80: ED-48480 | E80: SETOP | F80: =IF(E80="SINAPI",VLOOKUP($D80,SINAPI,3,0),IF(E80="SETOP",VLOOKUP($D80,SETOP,4,0),IF(E80="CPU",VLOOKUP($D80,COMPOSIÇÃO,10,0),IF(E80="COTAÇÃO",VLOOKUP($D80,COTAÇÃO,12,0),VLOOKUP(#REF!,DIVERSAS,3,0))))) -> M2 | G80: =ROUND(D122,2) -> 37.19 | H80: =IF(E80="SINAPI",VLOOKUP($D80,SINAPI,4,0),IF(E80="SETOP",VLOOKUP($D80,SETOP,5,0),IF(E80="CPU",VLOOKUP($D80,COMPOSIÇÃO,13,0),IF(E80="COTAÇÃO",VLOOKUP($D80,COTAÇÃO,15,0),VLOOKUP(#REF!,DIVERSAS,4,0))))) -> 11.4 | I80: =ROUND(H80*(1+$J$11),2) -> 14.42 | J80: =ROUND(G80*H80,2) -> 423.97 | K80: =ROUND(I80*G80,2) -> 536.28
A81: =2000 -> 2000 | C81: Superior 1 - Sala 01 | D81: 48.13 | E81: m²
A82: =2000 -> 2000 | C82: Superior 1 - Sala 02 | D82: 48.13 | E82: m²
A83: =2000 -> 2000 | C83: Superior 1 - Sala 03 | D83: 48.13 | E83: m²
A84: =2000 -> 2000 | C84: Superior 1 - Sala 04 | D84: 48.13 | E84: m²
A85: =2000 -> 2000 | C85: Superior 1 - Sala 05 | D85: 48.13 | E85: m²
A86: =2000 -> 2000 | C86: Superior 1 - Sala 06 | D86: 48.13 | E86: m²
A87: =2000 -> 2000 | C87: Superior 1 - Recursos | D87: 23.68 | E87: m²
A88: =2000 -> 2000 | C88: Superior 1 - Orientação | D88: 23.68 | E88: m²
A89: =2000 -> 2000 | C89: Superior 1 - Secretaria + Banheiro | D89: 44.74 | E89: m²
A90: =2000 -> 2000 | C90: Superior 1 - Diretoria + Banheiro | D90: 25.92 | E90: m²
A91: =2000 -> 2000 | C91: Superior 1 - Almoxarifado | D91: 23.83 | E91: m²
A92: =2000 -> 2000 | C92: Superior 1 - Biblioteca | D92: 128.77 | E92: m²
A93: =2000 -> 2000 | C93: Superior 1 - Banheiro Feminino | D93: 23.53 | E93: m²
A94: =2000 -> 2000 | C94: Superior 1 - Banheiro Masculino | D94: 23.53 | E94: m²
A95: =2000 -> 2000 | C95: Superior 1 - Corredor 1 + Hall de Entrada 3 | D95: 215.25 | E95: m²
A96: =2000 -> 2000 | C96: Superior 1 - Escada | D96: =(2.23*10*0.18)+(11.16)+(10.39)+(2.23*0.18*10) -> 29.578 | E96: m²
A97: =2000 -> 2000 | C97: Térreo - Sala 07 | D97: 48.13 | E97: m²
A98: =2000 -> 2000 | C98: Térreo - Sala 08 | D98: 48.13 | E98: m²
A99: =2000 -> 2000 | C99: Térreo - Sala 09 | D99: 48.13 | E99: m²
A100: =2000 -> 2000 | C100: Térreo - Sala 10 | D100: 48.13 | E100: m²
A101: =2000 -> 2000 | C101: Térreo - Sala 11 | D101: 48.13 | E101: m²
A102: =2000 -> 2000 | C102: Térreo - Sala 12 | D102: 48.13 | E102: m²
A103: =2000 -> 2000 | C103: Térreo - Sala 13 | D103: 48.13 | E103: m²
A104: =2000 -> 2000 | C104: Térreo - Sala 14 | D104: 48.13 | E104: m²
A105: =2000 -> 2000 | C105: Térreo - Sala 15 | D105: 48.13 | E105: m²
A106: =2000 -> 2000 | C106: Térreo - Sala 16 | D106: 48.13 | E106: m²
A107: =2000 -> 2000 | C107: Térreo - Sala 17 | D107: 48.13 | E107: m²
A108: =2000 -> 2000 | C108: Térreo - Sala 18 | D108: 48.13 | E108: m²
A109: =2000 -> 2000 | C109: Térreo - Sala 19 | D109: 48.13 | E109: m²
A110: =2000 -> 2000 | C110: Térreo - Sala 20 | D110: 48.13 | E110: m²
A111: =2000 -> 2000 | C111: Térreo - Sala 21 | D111: 48.13 | E111: m²
A112: =2000 -> 2000 | C112: Térreo - Sala 22 | D112: 48.13 | E112: m²
A113: =2000 -> 2000 | C113: Térreo - Supervisão | D113: 23.68 | E113: m²
A114: =2000 -> 2000 | C114: Térreo - Arquivo | D114: 23.68 | E114: m²
A115: =2000 -> 2000 | C115: Térreo - Sala dos Professores + Banheiros + Copa | D115: 46.55 | E115: m²
A116: =2000 -> 2000 | C116: Térreo - Despensa + Cozinha + Refeitório + Cantina + Depósito | D116: 243.04 | E116: m²
A117: =2000 -> 2000 | C117: Térreo - Banheiro Feminino | D117: 23.53 | E117: m²
A118: =2000 -> 2000 | C118: Térreo - Banheiro Masculino | D118: 23.53 | E118: m²
A119: =2000 -> 2000 | C119: Térreo - Corredor 2 + Hall de Entrada 5 | D119: 444.71 | E119: m²
A120: =2000 -> 2000 | C120: Térreo - Área Externa | D120: =(2243.8-(75*13)) -> 1268.8 | E120: m²
A121: =2000 -> 2000 | C121: Porcentagem de Troca (1%) | D121: 0.01
A122: =2000 -> 2000 | C122: Total | D122: =(SUM(D81:D120))*D121 -> 37.18888 | E122: m²
A123: =LEFT(B123) -> 2 | B123: 2.9 | C123: =IF($E123="SINAPI",VLOOKUP($D123,SINAPI,2,0),IF(E123="SETOP",VLOOKUP($D123,SETOP,3,0),IF(E123="CPU",VLOOKUP($D123,COMPOSIÇÃO,2,0),IF(E123="COTAÇÃO",VLOOKUP($D123,COTAÇÃO,3,0),VLOOKUP(#REF!,DIVERSAS,2,0))))) -> REMOÇÃO DE REJUNTE EM PISO | D123: DAC-2.3 | E123: CPU | F123: =IF(E123="SINAPI",VLOOKUP($D123,SINAPI,3,0),IF(E123="SETOP",VLOOKUP($D123,SETOP,4,0),IF(E123="CPU",VLOOKUP($D123,COMPOSIÇÃO,10,0),IF(E123="COTAÇÃO",VLOOKUP($D123,COTAÇÃO,12,0),VLOOKUP(#REF!,DIVERSAS,3,0))))) -> M2 | G123: =ROUND(D128,2) -> 94.12 | H123: =IF(E123="SINAPI",VLOOKUP($D123,SINAPI,4,0),IF(E123="SETOP",VLOOKUP($D123,SETOP,5,0),IF(E123="CPU",VLOOKUP($D123,COMPOSIÇÃO,13,0),IF(E123="COTAÇÃO",VLOOKUP($D123,COTAÇÃO,15,0),VLOOKUP(#REF!,DIVERSAS,4,0))))) -> 4.23 | I123: =ROUND(H123*(1+$J$11),2) -> 5.35 | J123: =ROUND(G123*H123,2) -> 398.13 | K123: =ROUND(I123*G123,2) -> 503.54
A124: =2000 -> 2000 | C124: Superior 1 - Banheiro Feminino | D124: 23.53 | E124: m²
A125: =2000 -> 2000 | C125: Superior 1 - Banheiro Masculino | D125: 23.53 | E125: m²
A126: =2000 -> 2000 | C126: Térreo - Banheiro Feminino | D126: 23.53 | E126: m²
A127: =2000 -> 2000 | C127: Térreo - Banheiro Masculino | D127: 23.53 | E127: m²
A128: =2000 -> 2000 | C128: Total | D128: =(SUM(D124:D127)) -> 94.12 | E128: m²
A129: =LEFT(B129) -> 2 | B129: 2.10 | C129: =IF($E129="SINAPI",VLOOKUP($D129,SINAPI,2,0),IF(E129="SETOP",VLOOKUP($D129,SETOP,3,0),IF(E129="CPU",VLOOKUP($D129,COMPOSIÇÃO,2,0),IF(E129="COTAÇÃO",VLOOKUP($D129,COTAÇÃO,3,0),VLOOKUP(#REF!,DIVERSAS,2,0))))) -> REMOÇÃO DE BANCADA DE PEDRA (MÁRMORE, GRANITO, ARDÓSIA, MARMORITE, ETC.) | D129: ED-48437 | E129: SETOP | F129: =IF(E129="SINAPI",VLOOKUP($D129,SINAPI,3,0),IF(E129="SETOP",VLOOKUP($D129,SETOP,4,0),IF(E129="CPU",VLOOKUP($D129,COMPOSIÇÃO,10,0),IF(E129="COTAÇÃO",VLOOKUP($D129,COTAÇÃO,12,0),VLOOKUP(#REF!,DIVERSAS,3,0))))) -> M2 | G129: =ROUND(D131,2) -> 5.76 | H129: =IF(E129="SINAPI",VLOOKUP($D129,SINAPI,4,0),IF(E129="SETOP",VLOOKUP($D129,SETOP,5,0),IF(E129="CPU",VLOOKUP($D129,COMPOSIÇÃO,13,0),IF(E129="COTAÇÃO",VLOOKUP($D129,COTAÇÃO,15,0),VLOOKUP(#REF!,DIVERSAS,4,0))))) -> 37.1 | I129: =ROUND(H129*(1+$J$11),2) -> 46.94 | J129: =ROUND(G129*H129,2) -> 213.7 | K129: =ROUND(I129*G129,2) -> 270.37
A130: =2000 -> 2000 | C130: Térreo - Cozinha | D130: =(4.3*0.56)+(3.98*0.56)+(2*0.56) -> 5.7568 | E130: m²
A131: =2000 -> 2000 | C131: Total | D131: =(SUM(D130)) -> 5.7568 | E131: m²
A132: =LEFT(B132) -> 2 | B132: 2.11 | C132: =IF($E132="SINAPI",VLOOKUP($D132,SINAPI,2,0),IF(E132="SETOP",VLOOKUP($D132,SETOP,3,0),IF(E132="CPU",VLOOKUP($D132,COMPOSIÇÃO,2,0),IF(E132="COTAÇÃO",VLOOKUP($D132,COTAÇÃO,3,0),VLOOKUP(#REF!,DIVERSAS,2,0))))) -> REMOÇÃO DE METAIS COMUNS (CONDUÍTE, SIFÃO, REGISTRO, TORNEIRAS) | D132: ED-48470 | E132: SETOP | F132: =IF(E132="SINAPI",VLOOKUP($D132,SINAPI,3,0),IF(E132="SETOP",VLOOKUP($D132,SETOP,4,0),IF(E132="CPU",VLOOKUP($D132,COMPOSIÇÃO,10,0),IF(E132="COTAÇÃO",VLOOKUP($D132,COTAÇÃO,12,0),VLOOKUP(#REF!,DIVERSAS,3,0))))) -> U | G132: =ROUND(D136,2) -> 27 | H132: =IF(E132="SINAPI",VLOOKUP($D132,SINAPI,4,0),IF(E132="SETOP",VLOOKUP($D132,SETOP,5,0),IF(E132="CPU",VLOOKUP($D132,COMPOSIÇÃO,13,0),IF(E132="COTAÇÃO",VLOOKUP($D132,COTAÇÃO,15,0),VLOOKUP(#REF!,DIVERSAS,4,0))))) -> 12.33 | I132: =ROUND(H132*(1+$J$11),2) -> 15.6 | J132: =ROUND(G132*H132,2) -> 332.91 | K132: =ROUND(I132*G132,2) -> 421.2
A133: =2000 -> 2000 | C133: Superior 1 - Banheiros Feminino e Masculino | D133: 11 | E133: un
A134: =2000 -> 2000 | C134: Térreo - Banheiros Feminino e Masculino | D134: 11 | E134: un
A135: =2000 -> 2000 | C135: Térreo - Cozinha | D135: 5 | E135: un
A136: =2000 -> 2000 | C136: Total | D136: =(SUM(D133:D135)) -> 27 | E136: un
A137: 2 | B137: 2.12 | C137: =IF($E137="SINAPI",VLOOKUP($D137,SINAPI,2,0),IF(E137="SETOP",VLOOKUP($D137,SETOP,3,0),IF(E137="CPU",VLOOKUP($D137,COMPOSIÇÃO,2,0),IF(E137="COTAÇÃO",VLOOKUP($D137,COTAÇÃO,3,0),VLOOKUP(#REF!,DIVERSAS,2,0))))) -> REMOÇÃO DE TUBULAÇÕES (TUBOS E CONEXÕES) DE ESGOTO, DE FORMA MANUAL, SEM REAPROVEITAMENTO | D137: DAC-2.7 | E137: CPU | F137: =IF(E137="SINAPI",VLOOKUP($D137,SINAPI,3,0),IF(E137="SETOP",VLOOKUP($D137,SETOP,4,0),IF(E137="CPU",VLOOKUP($D137,COMPOSIÇÃO,10,0),IF(E137="COTAÇÃO",VLOOKUP($D137,COTAÇÃO,12,0),VLOOKUP(#REF!,DIVERSAS,3,0))))) -> M | G137: =ROUND(D139,2) -> 3 | H137: =IF(E137="SINAPI",VLOOKUP($D137,SINAPI,4,0),IF(E137="SETOP",VLOOKUP($D137,SETOP,5,0),IF(E137="CPU",VLOOKUP($D137,COMPOSIÇÃO,13,0),IF(E137="COTAÇÃO",VLOOKUP($D137,COTAÇÃO,15,0),VLOOKUP(#REF!,DIVERSAS,4,0))))) -> 0.333505 | I137: =ROUND(H137*(1+$J$11),2) -> 0.42 | J137: =ROUND(G137*H137,2) -> 1 | K137: =ROUND(I137*G137,2) -> 1.26
A138: =2000 -> 2000 | C138: Térreo - Cozinha | D138: 3 | E138: m
A139: =2000 -> 2000 | C139: Total | D139: =(SUM(D138)) -> 3 | E139: m
A140: =LEFT(B140) -> 2 | B140: 2.13 | C140: =IF($E140="SINAPI",VLOOKUP($D140,SINAPI,2,0),IF(E140="SETOP",VLOOKUP($D140,SETOP,3,0),IF(E140="CPU",VLOOKUP($D140,COMPOSIÇÃO,2,0),IF(E140="COTAÇÃO",VLOOKUP($D140,COTAÇÃO,3,0),VLOOKUP(#REF!,DIVERSAS,2,0))))) -> REMOÇÃO DE LUMINÁRIAS, DE FORMA MANUAL, SEM REAPROVEITAMENTO. AF_12/2017 | D140: 97665 | E140: SINAPI | F140: =IF(E140="SINAPI",VLOOKUP($D140,SINAPI,3,0),IF(E140="SETOP",VLOOKUP($D140,SETOP,4,0),IF(E140="CPU",VLOOKUP($D140,COMPOSIÇÃO,10,0),IF(E140="COTAÇÃO",VLOOKUP($D140,COTAÇÃO,12,0),VLOOKUP(#REF!,DIVERSAS,3,0))))) -> UN | G140: =ROUND(D143,2) -> 55 | H140: =IF(E140="SINAPI",VLOOKUP($D140,SINAPI,4,0),IF(E140="SETOP",VLOOKUP($D140,SETOP,5,0),IF(E140="CPU",VLOOKUP($D140,COMPOSIÇÃO,13,0),IF(E140="COTAÇÃO",VLOOKUP($D140,COTAÇÃO,15,0),VLOOKUP(#REF!,DIVERSAS,4,0))))) -> 0.86 | I140: =ROUND(H140*(1+$J$11),2) -> 1.09 | J140: =ROUND(G140*H140,2) -> 47.3 | K140: =ROUND(I140*G140,2) -> 59.95
A141: =2000 -> 2000 | C141: Superior 1 - Corredor 1 | D141: 24 | E141: un
A142: =2000 -> 2000 | C142: Térreo - Corredor 2 | D142: =7+24 -> 31 | E142: un
A143: =2000 -> 2000 | C143: Total | D143: =(SUM(D141:D142)) -> 55 | E143: un
A144: 2 | B144: 2.14 | C144: =IF($E144="SINAPI",VLOOKUP($D144,SINAPI,2,0),IF(E144="SETOP",VLOOKUP($D144,SETOP,3,0),IF(E144="CPU",VLOOKUP($D144,COMPOSIÇÃO,2,0),IF(E144="COTAÇÃO",VLOOKUP($D144,COTAÇÃO,3,0),VLOOKUP(#REF!,DIVERSAS,2,0))))) -> REMOÇÃO DE CANALETA - FIAÇÃO ELÉTRICA | D144: DAC-2.4 | E144: CPU | F144: =IF(E144="SINAPI",VLOOKUP($D144,SINAPI,3,0),IF(E144="SETOP",VLOOKUP($D144,SETOP,4,0),IF(E144="CPU",VLOOKUP($D144,COMPOSIÇÃO,10,0),IF(E144="COTAÇÃO",VLOOKUP($D144,COTAÇÃO,12,0),VLOOKUP(#REF!,DIVERSAS,3,0))))) -> M | G144: =ROUND(D147,2) -> 217.18 | H144: =IF(E144="SINAPI",VLOOKUP($D144,SINAPI,4,0),IF(E144="SETOP",VLOOKUP($D144,SETOP,5,0),IF(E144="CPU",VLOOKUP($D144,COMPOSIÇÃO,13,0),IF(E144="COTAÇÃO",VLOOKUP($D144,COTAÇÃO,15,0),VLOOKUP(#REF!,DIVERSAS,4,0))))) -> 1.411 | I144: =ROUND(H144*(1+$J$11),2) -> 1.79 | J144: =ROUND(G144*H144,2) -> 306.44 | K144: =ROUND(I144*G144,2) -> 388.75
A145: =2000 -> 2000 | C145: Superior 1 - Corredor 1 | D145: =45.85*2 -> 91.7 | E145: m
A146: =2000 -> 2000 | C146: Térreo - Corredor 2 | D146: =62.74*2 -> 125.48 | E146: m
A147: =2000 -> 2000 | C147: Total | D147: =(SUM(D145:D146)) -> 217.18 | E147: m
A148: =LEFT(B148) -> 2 | B148: 2.15 | C148: =IF($E148="SINAPI",VLOOKUP($D148,SINAPI,2,0),IF(E148="SETOP",VLOOKUP($D148,SETOP,3,0),IF(E148="CPU",VLOOKUP($D148,COMPOSIÇÃO,2,0),IF(E148="COTAÇÃO",VLOOKUP($D148,COTAÇÃO,3,0),VLOOKUP(#REF!,DIVERSAS,2,0))))) -> REMOÇÃO DE GRELHA | D148: DAC-2.5 | E148: CPU | F148: =IF(E148="SINAPI",VLOOKUP($D148,SINAPI,3,0),IF(E148="SETOP",VLOOKUP($D148,SETOP,4,0),IF(E148="CPU",VLOOKUP($D148,COMPOSIÇÃO,10,0),IF(E148="COTAÇÃO",VLOOKUP($D148,COTAÇÃO,12,0),VLOOKUP(#REF!,DIVERSAS,3,0))))) -> M | G148: =ROUND(D150,2) -> 6.32 | H148: =IF(E148="SINAPI",VLOOKUP($D148,SINAPI,4,0),IF(E148="SETOP",VLOOKUP($D148,SETOP,5,0),IF(E148="CPU",VLOOKUP($D148,COMPOSIÇÃO,13,0),IF(E148="COTAÇÃO",VLOOKUP($D148,COTAÇÃO,15,0),VLOOKUP(#REF!,DIVERSAS,4,0))))) -> 3.5275 | I148: =ROUND(H148*(1+$J$11),2) -> 4.46 | J148: =ROUND(G148*H148,2) -> 22.29 | K148: =ROUND(I148*G148,2) -> 28.19
A149: =2000 -> 2000 | C149: Térreo - Área Externa | D149: 6.32 | E149: m
A150: =2000 -> 2000 | C150: Total | D150: =(SUM(D148:D149)) -> 6.32 | E150: m
A151: =LEFT(B151) -> 2 | B151: 2.16 | C151: =IF($E151="SINAPI",VLOOKUP($D151,SINAPI,2,0),IF(E151="SETOP",VLOOKUP($D151,SETOP,3,0),IF(E151="CPU",VLOOKUP($D151,COMPOSIÇÃO,2,0),IF(E151="COTAÇÃO",VLOOKUP($D151,COTAÇÃO,3,0),VLOOKUP(#REF!,DIVERSAS,2,0))))) -> REMOÇÃO DE DIVISÓRIAS METÁLICAS | D151: DAC-2.8 | E151: CPU | F151: =IF(E151="SINAPI",VLOOKUP($D151,SINAPI,3,0),IF(E151="SETOP",VLOOKUP($D151,SETOP,4,0),IF(E151="CPU",VLOOKUP($D151,COMPOSIÇÃO,10,0),IF(E151="COTAÇÃO",VLOOKUP($D151,COTAÇÃO,12,0),VLOOKUP(#REF!,DIVERSAS,3,0))))) -> UN | G151: =ROUND(D153,2) -> 1 | H151: =IF(E151="SINAPI",VLOOKUP($D151,SINAPI,4,0),IF(E151="SETOP",VLOOKUP($D151,SETOP,5,0),IF(E151="CPU",VLOOKUP($D151,COMPOSIÇÃO,13,0),IF(E151="COTAÇÃO",VLOOKUP($D151,COTAÇÃO,15,0),VLOOKUP(#REF!,DIVERSAS,4,0))))) -> 14.11 | I151: =ROUND(H151*(1+$J$11),2) -> 17.85 | J151: =ROUND(G151*H151,2) -> 14.11 | K151: =ROUND(I151*G151,2) -> 17.85
A152: =2000 -> 2000 | C152: Superior 1 - Banheiro Feminino | D152: 1 | E152: un
A153: =2000 -> 2000 | C153: Total | D153: =(SUM(D151:D152)) -> 1 | E153: un
A154: =LEFT(B154) -> 2 | B154: 2.17 | C154: =IF($E154="SINAPI",VLOOKUP($D154,SINAPI,2,0),IF(E154="SETOP",VLOOKUP($D154,SETOP,3,0),IF(E154="CPU",VLOOKUP($D154,COMPOSIÇÃO,2,0),IF(E154="COTAÇÃO",VLOOKUP($D154,COTAÇÃO,3,0),VLOOKUP(#REF!,DIVERSAS,2,0))))) -> REMOÇÃO DE RALOS | D154: DAC-2.9 | E154: CPU | F154: =IF(E154="SINAPI",VLOOKUP($D154,SINAPI,3,0),IF(E154="SETOP",VLOOKUP($D154,SETOP,4,0),IF(E154="CPU",VLOOKUP($D154,COMPOSIÇÃO,10,0),IF(E154="COTAÇÃO",VLOOKUP($D154,COTAÇÃO,12,0),VLOOKUP(#REF!,DIVERSAS,3,0))))) -> UN | G154: =ROUND(D156,2) -> 3 | H154: =IF(E154="SINAPI",VLOOKUP($D154,SINAPI,4,0),IF(E154="SETOP",VLOOKUP($D154,SETOP,5,0),IF(E154="CPU",VLOOKUP($D154,COMPOSIÇÃO,13,0),IF(E154="COTAÇÃO",VLOOKUP($D154,COTAÇÃO,15,0),VLOOKUP(#REF!,DIVERSAS,4,0))))) -> 7.055 | I154: =ROUND(H154*(1+$J$11),2) -> 8.93 | J154: =ROUND(G154*H154,2) -> 21.17 | K154: =ROUND(I154*G154,2) -> 26.79
A155: =2000 -> 2000 | C155: Térreo - Cozinha | D155: 3 | E155: un
A156: =2000 -> 2000 | C156: Total | D156: =(SUM(D154:D155)) -> 3 | E156: un
A157: =LEFT(B157) -> 2 | B157: 2.18 | C157: =IF($E157="SINAPI",VLOOKUP($D157,SINAPI,2,0),IF(E157="SETOP",VLOOKUP($D157,SETOP,3,0),IF(E157="CPU",VLOOKUP($D157,COMPOSIÇÃO,2,0),IF(E157="COTAÇÃO",VLOOKUP($D157,COTAÇÃO,3,0),VLOOKUP(#REF!,DIVERSAS,2,0))))) -> CARGA DE MATERIAL DE QUALQUER NATUREZA SOBRE CAMINHÃO - MECÂNICA | D157: ED-51132 | E157: SETOP | F157: =IF(E157="SINAPI",VLOOKUP($D157,SINAPI,3,0),IF(E157="SETOP",VLOOKUP($D157,SETOP,4,0),IF(E157="CPU",VLOOKUP($D157,COMPOSIÇÃO,10,0),IF(E157="COTAÇÃO",VLOOKUP($D157,COTAÇÃO,12,0),VLOOKUP(#REF!,DIVERSAS,3,0))))) -> M3 | G157: =ROUND(D188,2) -> 68.85 | H157: =IF(E157="SINAPI",VLOOKUP($D157,SINAPI,4,0),IF(E157="SETOP",VLOOKUP($D157,SETOP,5,0),IF(E157="CPU",VLOOKUP($D157,COMPOSIÇÃO,13,0),IF(E157="COTAÇÃO",VLOOKUP($D157,COTAÇÃO,15,0),VLOOKUP(#REF!,DIVERSAS,4,0))))) -> 1.38 | I157: =ROUND(H157*(1+$J$11),2) -> 1.75 | J157: =ROUND(G157*H157,2) -> 95.01 | K157: =ROUND(I157*G157,2) -> 120.49
A158: =2000 -> 2000 | C158: Área Chapa de Policarbonato | D158: =D40 -> 752.3093 | E158: m²
A159: =2000 -> 2000 | C159: Espessura Chapa de Policarbonato | D159: 0.05 | E159: m
A160: =2000 -> 2000 | C160: Área Azulejo | D160: =D51 -> 42.23738 | E160: m²
A161: =2000 -> 2000 | C161: Espessura Azulejo | D161: 0.03 | E161: m
A162: =2000 -> 2000 | C162: Área Telha | D162: =D57 -> 230.5894 | E162: m²
A163: =2000 -> 2000 | C163: Espessura Telha | D163: 0.05 | E163: m
A164: =2000 -> 2000 | C164: Área Calha | D164: =0.2*0.2 -> 0.04 | E164: m²
A165: =2000 -> 2000 | C165: Comprimento Calha | D165: =D61 -> 112.78 | E165: m
A166: =2000 -> 2000 | C166: Área Porta | D166: =D75 -> 35.52 | E166: m²
A167: =2000 -> 2000 | C167: Espessura Porta | D167: 0.15 | E167: m
A168: =2000 -> 2000 | C168: Área Piso Cerâmico | D168: =D122 -> 37.18888 | E168: m²
A169: =2000 -> 2000 | C169: Espessura Piso Cerâmico | D169: 0.03 | E169: m
A170: =2000 -> 2000 | C170: Área Rejunte | D170: =D128 -> 94.12 | E170: m²
A171: =2000 -> 2000 | C171: Espessura Rejunte | D171: 0.02 | E171: m
A172: =2000 -> 2000 | C172: Área Bancada | D172: =D131 -> 5.7568 | E172: m²
A173: =2000 -> 2000 | C173: Espessura Bancada | D173: 0.05 | E173: m
A174: =2000 -> 2000 | C174: Volume Metais | D174: =0.2*0.2*0.2 -> 0.008 | E174: m³
A175: =2000 -> 2000 | C175: Quantidade Metais | D175: =D136 -> 27 | E175: un
A176: =2000 -> 2000 | C176: Área Tubulação | D176: 0.04 | E176: m²
A177: =2000 -> 2000 | C177: Comprimento Tubulação | D177: 3 | E177: m
A178: =2000 -> 2000 | C178: Volume Luminárias | D178: =1*0.2*0.2 -> 0.04 | E178: m³
A179: =2000 -> 2000 | C179: Quantidade Luminárias | D179: =D143 -> 55 | E179: un
A180: =2000 -> 2000 | C180: Área Canaleta | D180: =0.1*0.1 -> 0.01 | E180: m²
A181: =2000 -> 2000 | C181: Comprimento Canaleta | D181: =D147 -> 217.18 | E181: m
A182: =2000 -> 2000 | C182: Área Grelha | D182: =6.32*0.3 -> 1.896 | E182: m²
A183: =2000 -> 2000 | C183: Espessura Grelha | D183: 0.03 | E183: m
A184: =2000 -> 2000 | C184: Volume Divisória | D184: 0.53 | E184: m³
A185: =2000 -> 2000 | C185: Quantidade Divisória | D185: 1 | E185: un
A186: =2000 -> 2000 | C186: Volume Ralos | D186: =0.15*0.15*0.2 -> 0.0045 | E186: m³
A187: =2000 -> 2000 | C187: Quantidade Ralos | D187: 3 | E187: un
A188: =2000 -> 2000 | C188: Total | D188: =(D158*D159)+(D160*D161)+(D162*D163)+(D164*D165)+(D166*D167)+(D168*D169)+(D170*D171)+(D172*D173)+(D174*D175)+(D176*D177)+(D178*D179)+(D180*D181)+(D182*D183)+(D184*D185)+(D186*D187) -> 68.8453428 | E188: m³
A189: =LEFT(B189) -> 2 | B189: 2.19 | C189: =IF($E189="SINAPI",VLOOKUP($D189,SINAPI,2,0),IF(E189="SETOP",VLOOKUP($D189,SETOP,3,0),IF(E189="CPU",VLOOKUP($D189,COMPOSIÇÃO,2,0),IF(E189="COTAÇÃO",VLOOKUP($D189,COTAÇÃO,3,0),VLOOKUP(#REF!,DIVERSAS,2,0))))) -> TRANSPORTE COM CAMINHÃO BASCULANTE DE 6 M³, EM VIA URBANA PAVIMENTADA, DMT ATÉ 30 KM (UNIDADE: M3XKM). AF_07/2020 | D189: 97914 | E189: SINAPI | F189: =IF(E189="SINAPI",VLOOKUP($D189,SINAPI,3,0),IF(E189="SETOP",VLOOKUP($D189,SETOP,4,0),IF(E189="CPU",VLOOKUP($D189,COMPOSIÇÃO,10,0),IF(E189="COTAÇÃO",VLOOKUP($D189,COTAÇÃO,12,0),VLOOKUP(#REF!,DIVERSAS,3,0))))) -> M3XKM | G189: =ROUND(D192,2) -> 481.92 | H189: =IF(E189="SINAPI",VLOOKUP($D189,SINAPI,4,0),IF(E189="SETOP",VLOOKUP($D189,SETOP,5,0),IF(E189="CPU",VLOOKUP($D189,COMPOSIÇÃO,13,0),IF(E189="COTAÇÃO",VLOOKUP($D189,COTAÇÃO,15,0),VLOOKUP(#REF!,DIVERSAS,4,0))))) -> 1.9 | I189: =ROUND(H189*(1+$J$11),2) -> 2.4 | J189: =ROUND(G189*H189,2) -> 915.65 | K189: =ROUND(I189*G189,2) -> 1156.61
A190: =2000 -> 2000 | C190: Carga | D190: =D188 -> 68.8453428 | E190: m³
A191: =2000 -> 2000 | C191: Distância Bota Fora | D191: 7 | E191: km
A192: =2000 -> 2000 | C192: Total | D192: =D190*D191 -> 481.9173996 | E192: m³xkm
A193: 1000 | B193: 3 | C193: SISTEMA VERTICAL | J193: =SUMIF(A:A,B193,J:J) -> 2521 | K193: =SUMIF(A:A,B193,K:K) -> 3189.5
A194: =LEFT(B194) -> 3 | B194: 3.1 | C194: =IF($E194="SINAPI",VLOOKUP($D194,SINAPI,2,0),IF(E194="SETOP",VLOOKUP($D194,SETOP,3,0),IF(E194="CPU",VLOOKUP($D194,COMPOSIÇÃO,2,0),IF(E194="COTAÇÃO",VLOOKUP($D194,COTAÇÃO,3,0),VLOOKUP(#REF!,DIVERSAS,2,0))))) -> ALVENARIA DE VEDAÇÃO DE BLOCOS VAZADOS DE CONCRETO DE 14X19X39CM (ESPESSURA 14CM) DE PAREDES COM ÁREA LÍQUIDA MAIOR OU IGUAL A 6M² SEM VÃOS E ARGAMASSA DE ASSENTAMENTO COM PREPARO EM BETONEIRA. AF_06/2014 | D194: 87455 | E194: SINAPI | F194: =IF(E194="SINAPI",VLOOKUP($D194,SINAPI,3,0),IF(E194="SETOP",VLOOKUP($D194,SETOP,4,0),IF(E194="CPU",VLOOKUP($D194,COMPOSIÇÃO,10,0),IF(E194="COTAÇÃO",VLOOKUP($D194,COTAÇÃO,12,0),VLOOKUP(#REF!,DIVERSAS,3,0))))) -> M2 | G194: =ROUND(D196,2) -> 2 | H194: =IF(E194="SINAPI",VLOOKUP($D194,SINAPI,4,0),IF(E194="SETOP",VLOOKUP($D194,SETOP,5,0),IF(E194="CPU",VLOOKUP($D194,COMPOSIÇÃO,13,0),IF(E194="COTAÇÃO",VLOOKUP($D194,COTAÇÃO,15,0),VLOOKUP(#REF!,DIVERSAS,4,0))))) -> 63.72 | I194: =ROUND(H194*(1+$J$11),2) -> 80.62 | J194: =ROUND(G194*H194,2) -> 127.44 | K194: =ROUND(I194*G194,2) -> 161.24
A195: =2000 -> 2000 | C195: Superior 1 - Hall de Entrada 2 | D195: 2 | E195: m²
A196: =2000 -> 2000 | C196: Total | D196: =D195 -> 2 | E196: m²
A197: =LEFT(B197) -> 3 | B197: 3.2 | C197: =IF($E197="SINAPI",VLOOKUP($D197,SINAPI,2,0),IF(E197="SETOP",VLOOKUP($D197,SETOP,3,0),IF(E197="CPU",VLOOKUP($D197,COMPOSIÇÃO,2,0),IF(E197="COTAÇÃO",VLOOKUP($D197,COTAÇÃO,3,0),VLOOKUP(#REF!,DIVERSAS,2,0))))) -> ALVENARIA DE VEDAÇÃO COM ELEMENTO VAZADO DE CERÂMICA (COBOGÓ) DE 7X20X20CM E ARGAMASSA DE ASSENTAMENTO COM PREPARO EM BETONEIRA. AF_05/2020 | D197: 101162 | E197: SINAPI | F197: =IF(E197="SINAPI",VLOOKUP($D197,SINAPI,3,0),IF(E197="SETOP",VLOOKUP($D197,SETOP,4,0),IF(E197="CPU",VLOOKUP($D197,COMPOSIÇÃO,10,0),IF(E197="COTAÇÃO",VLOOKUP($D197,COTAÇÃO,12,0),VLOOKUP(#REF!,DIVERSAS,3,0))))) -> M2 | G197: =ROUND(D199,2) -> 10 | H197: =IF(E197="SINAPI",VLOOKUP($D197,SINAPI,4,0),IF(E197="SETOP",VLOOKUP($D197,SETOP,5,0),IF(E197="CPU",VLOOKUP($D197,COMPOSIÇÃO,13,0),IF(E197="COTAÇÃO",VLOOKUP($D197,COTAÇÃO,15,0),VLOOKUP(#REF!,DIVERSAS,4,0))))) -> 116.87 | I197: =ROUND(H197*(1+$J$11),2) -> 147.86 | J197: =ROUND(G197*H197,2) -> 1168.7 | K197: =ROUND(I197*G197,2) -> 1478.6
A198: =2000 -> 2000 | C198: Superior 1 - Hall de Entrada 3 | D198: =(5*3)-(1*2.5*2) -> 10 | E198: m²
A199: =2000 -> 2000 | C199: Total | D199: =D198 -> 10 | E199: m²
A200: =LEFT(B200) -> 3 | B200: 3.3 | C200: =IF($E200="SINAPI",VLOOKUP($D200,SINAPI,2,0),IF(E200="SETOP",VLOOKUP($D200,SETOP,3,0),IF(E200="CPU",VLOOKUP($D200,COMPOSIÇÃO,2,0),IF(E200="COTAÇÃO",VLOOKUP($D200,COTAÇÃO,3,0),VLOOKUP(#REF!,DIVERSAS,2,0))))) -> PAREDE COM PLACAS DE GESSO ACARTONADO (DRYWALL), PARA USO INTERNO COM DUAS FACES DUPLAS E ESTRUTURA METÁLICA COM GUIAS DUPLAS, SEM VÃOS | D200: DAC-3.1 | E200: CPU | F200: =IF(E200="SINAPI",VLOOKUP($D200,SINAPI,3,0),IF(E200="SETOP",VLOOKUP($D200,SETOP,4,0),IF(E200="CPU",VLOOKUP($D200,COMPOSIÇÃO,10,0),IF(E200="COTAÇÃO",VLOOKUP($D200,COTAÇÃO,12,0),VLOOKUP(#REF!,DIVERSAS,3,0))))) -> M2 | G200: =ROUND(D203,2) -> 7.02 | H200: =IF(E200="SINAPI",VLOOKUP($D200,SINAPI,4,0),IF(E200="SETOP",VLOOKUP($D200,SETOP,5,0),IF(E200="CPU",VLOOKUP($D200,COMPOSIÇÃO,13,0),IF(E200="COTAÇÃO",VLOOKUP($D200,COTAÇÃO,15,0),VLOOKUP(#REF!,DIVERSAS,4,0))))) -> 166.964793 | I200: =ROUND(H200*(1+$J$11),2) -> 211.24 | J200: =ROUND(G200*H200,2) -> 1172.09 | K200: =ROUND(I200*G200,2) -> 1482.9
A201: =2000 -> 2000 | C201: Superior 1 - Banheiro Feminino | D201: =1.95*1.8 -> 3.51 | E201: m²
A202: =2000 -> 2000 | C202: Superior 2 - Banheiro Masculino | D202: =1.95*1.8 -> 3.51 | E202: m²
A203: =2000 -> 2000 | C203: Total | D203: =SUM(D201:D202) -> 7.02 | E203: m²
A204: =LEFT(B204) -> 3 | B204: 3.4 | C204: =IF($E204="SINAPI",VLOOKUP($D204,SINAPI,2,0),IF(E204="SETOP",VLOOKUP($D204,SETOP,3,0),IF(E204="CPU",VLOOKUP($D204,COMPOSIÇÃO,2,0),IF(E204="COTAÇÃO",VLOOKUP($D204,COTAÇÃO,3,0),VLOOKUP(#REF!,DIVERSAS,2,0))))) -> ALVENARIA DE VEDAÇÃO COM TIJOLO MACIÇO REQUEIMADO, ESP. 10CM, PARA REVESTIMENTO, INCLUSIVE ARGAMASSA PARA ASSENTAMENTO | D204: ED-48227 | E204: SETOP | F204: =IF(E204="SINAPI",VLOOKUP($D204,SINAPI,3,0),IF(E204="SETOP",VLOOKUP($D204,SETOP,4,0),IF(E204="CPU",VLOOKUP($D204,COMPOSIÇÃO,10,0),IF(E204="COTAÇÃO",VLOOKUP($D204,COTAÇÃO,12,0),VLOOKUP(#REF!,DIVERSAS,3,0))))) -> M2 | G204: =ROUND(D206,2) -> 1 | H204: =IF(E204="SINAPI",VLOOKUP($D204,SINAPI,4,0),IF(E204="SETOP",VLOOKUP($D204,SETOP,5,0),IF(E204="CPU",VLOOKUP($D204,COMPOSIÇÃO,13,0),IF(E204="COTAÇÃO",VLOOKUP($D204,COTAÇÃO,15,0),VLOOKUP(#REF!,DIVERSAS,4,0))))) -> 52.77 | I204: =ROUND(H204*(1+$J$11),2) -> 66.76 | J204: =ROUND(G204*H204,2) -> 52.77 | K204: =ROUND(I204*G204,2) -> 66.76
... 428 more rows

Sheet CRO
B2: ="CRONOGRAMA FÍSICO-FINANCEIRO DE OBRA- " &B4 -> CRONOGRAMA FÍSICO-FINANCEIRO DE OBRA- REFORMA DA ESCOLA MUNICIPAL PROFESSORA CLARISSE TOLEDO | L2: =ORC!K8 -> R00
B3: Projeto: | H3: Cliente: | K3: Responsável:
B4: =ORC!B10 -> REFORMA DA ESCOLA MUNICIPAL PROFESSORA CLARISSE TOLEDO
B6: Data: | D6: =DADOS!D2 -> 2021-06-02
B7: BDI -1: | D7: =ORC!J11 -> 0.2652
B8: BDI - 2: | D8: =ORC!J12 -> 0.2025
B10: ITEM | C10: SERVIÇOS | G10: UNIDADE | H10: 1ª ETAPA PERÍODO: 30 DIAS | I10: 2ª ETAPA PERÍODO: 30 DIAS | J10: 3ª ETAPA PERÍODO: 30 DIAS | K10: 4ª ETAPA PERÍODO: 30 DIAS | L10: TOTAL POR ETAPA (% / R$)
B11: 1 | C11: =VLOOKUP(B11,ORC,2,0) -> ADMINISTRAÇÃO LOCAL E INSTALAÇÃO DA OBRA | G11: % | H11: 0.25 | I11: 0.25 | J11: 0.25 | K11: 0.25 | L11: =L12/$L$42 -> 0.01589217922
G12: R$ | H12: =$L12*H11 -> 2538.055 | I12: =$L12*I11 -> 2538.055 | J12: =$L12*J11 -> 2538.055 | K12: =$L12*K11 -> 2538.055 | L12: =VLOOKUP($B11,ORC,10,0) -> 10152.22
B13: 2 | C13: =VLOOKUP(B13,ORC,2,0) -> DEMOLIÇÕES E REMOÇÕES | G13: % | H13: 0.75 | I13: 0.25 | L13: =L14/$L$42 -> 0.03575050771
G14: R$ | H14: =$L14*H13 -> 17128.5675 | I14: =$L14*I13 -> 5709.5225 | L14: =ORC!K36 -> 22838.09
B15: 3 | C15: =VLOOKUP(B15,ORC,2,0) -> SISTEMA VERTICAL | G15: % | H15: 1 | L15: =L16/$L$42 -> 0.004992810009
G16: R$ | H16: =$L16*H15 -> 3189.5 | L16: =ORC!K193 -> 3189.5
B17: 4 | C17: =VLOOKUP(B17,ORC,2,0) -> ESQUADRIAS | G17: % | H17: 0.5 | I17: 0.5 | L17: =L18/$L$42 -> 0.0918935331
G18: R$ | H18: =$L18*H17 -> 29351.65 | I18: =$L18*I17 -> 29351.65 | L18: =ORC!K207 -> 58703.3
B19: 5 | C19: =VLOOKUP(B19,ORC,2,0) -> SISTEMA DE COBERTURA | G19: % | H19: =1/3 -> 0.3333333333 | I19: =1/3 -> 0.3333333333 | J19: =1/3 -> 0.3333333333 | L19: =L20/$L$42 -> 0.4416833216
G20: R$ | H20: =$L20*H19 -> 94051.84333 | I20: =$L20*I19 -> 94051.84333 | J20: =$L20*J19 -> 94051.84333 | L20: =VLOOKUP($B19,ORC,10,0) -> 282155.53
B21: 6 | C21: =VLOOKUP(B21,ORC,2,0) -> REVESTIMENTOS INTERNOS E EXTERNOS | G21: % | I21: 1 | L21: =L22/$L$42 -> 0.009628820775
G22: R$ | I22: =$L22*I21 -> 6151.07 | L22: =VLOOKUP($B21,ORC,10,0) -> 6151.07
B23: 7 | C23: =VLOOKUP(B23,ORC,2,0) -> SISTEMA DE PISOS | G23: % | J23: 0.25 | K23: 0.75 | L23: =L24/$L$42 -> 0.003830743068
G24: R$ | J24: =$L24*J23 -> 611.7875 | K24: =$L24*K23 -> 1835.3625 | L24: =VLOOKUP($B23,ORC,10,0) -> 2447.15
B25: 8 | C25: =VLOOKUP(B25,ORC,2,0) -> PINTURAS E ACABAMENTOS | G25: % | K25: 1 | L25: =L26/$L$42 -> 0.02662474052
G26: R$ | K26: =$L26*K25 -> 17008.38 | L26: =VLOOKUP($B25,ORC,10,0) -> 17008.38
B27: 9 | C27: =VLOOKUP(B27,ORC,2,0) -> INSTALAÇÕES HIDROSSANITÁRIAS | G27: % | I27: 1 | L27: =L28/$L$42 -> 0.001360918378
G28: R$ | I28: =$L28*I27 -> 869.38 | L28: =VLOOKUP($B27,ORC,10,0) -> 869.38
B29: 10 | C29: =VLOOKUP(B29,ORC,2,0) -> LOUÇAS, METAIS E ACESSÓRIOS | G29: % | J29: 1 | L29: =L30/$L$42 -> 0.02027791551
G30: R$ | J30: =$L30*J29 -> 12953.91 | L30: =VLOOKUP($B29,ORC,10,0) -> 12953.91
B31: 11 | C31: =VLOOKUP(B31,ORC,2,0) -> DRENAGEM PLUVIAL | G31: % | K31: 1 | L31: =L32/$L$42 -> 0.0705242906
G32: R$ | K32: =$L32*K31 -> 45052.23 | L32: =VLOOKUP($B31,ORC,10,0) -> 45052.23
B33: 12 | C33: =VLOOKUP(B33,ORC,2,0) -> INSTALAÇÕES ELÉTRICAS | G33: % | J33: 1 | L33: =L34/$L$42 -> 0.01597764949
G34: R$ | J34: =$L34*J33 -> 10206.82 | L34: =VLOOKUP($B33,ORC,10,0) -> 10206.82
B35: 13 | C35: =VLOOKUP(B35,ORC,2,0) -> PREVENÇÃO CONTRA INCÊNDIO E PÂNICO | G35: % | K35: 1 | L35: =L36/$L$42 -> 0.03860879947
G36: R$ | K36: =$L36*K35 -> 24664.02 | L36: =VLOOKUP($B35,ORC,10,0) -> 24664.02
B37: 14 | C37: =VLOOKUP(B37,ORC,2,0) -> SISTEMA DE PROTEÇÃO CONTRA DESCARGAS ATMOSFÉRICAS | G37: % | J37: 0.5 | K37: 0.5 | L37: =L38/$L$42 -> 0.2093120579
G38: R$ | J38: =$L38*J37 -> 66856.22 | K38: =$L38*K37 -> 66856.22 | L38: =VLOOKUP($B37,ORC,10,0) -> 133712.44
B39: 15 | C39: =VLOOKUP(B39,ORC,2,0) -> SERVIÇOS FINAIS | G39: % | K39: 1 | L39: =L40/$L$42 -> 0.01364171257
G40: R$ | K40: =$L40*K39 -> 8714.58 | L40: =VLOOKUP($B39,ORC,10,0) -> 8714.58
B41: TOTAL | L41: =L42/$L$42 -> 1
L42: =L12+L14+L16+L18+L20+L22+L24+L26+L28+L30+L32+L34+L36+L38+L40 -> 638818.62
F47: RESPONSÁVEL TÉCNICO | G47: FLÁVIA CRISTINA BARBOSA
G48: CREA - MG 187.842/D

Sheet CPU
A2: ="COMPOSIÇÕES - " &A4 -> COMPOSIÇÕES - REFORMA DA ESCOLA MUNICIPAL PROFESSORA CLARISSE TOLEDO | L2: Revisão: | M2: =ORC!K8 -> R00
A3: Projeto: | E3: Cliente: | L3: Responsável:
A4: =ORC!B10 -> REFORMA DA ESCOLA MUNICIPAL PROFESSORA CLARISSE TOLEDO
A7: Data: | C7: =ORC!J10 -> 2021-06-02
A8: BDI - 1 | C8: =ORC!J11 -> 0.2652 | L8: SINAPI ABR/2021
A9: BDI - 2 | C9: =ORC!J12 -> 0.2025 | L9: SETOP JAN/2021
A10: ="PROJETO EXECUTIVO - "&A4 -> PROJETO EXECUTIVO - REFORMA DA ESCOLA MUNICIPAL PROFESSORA CLARISSE TOLEDO
A12: CÓDIGO | B12: DESCRIÇÃO | I12: REFERÊNCIA | J12: UNID. | K12: COEFICIENTE | L12: PREÇO UNIT. | M12: TOTAL
A13: 2 | B13: REMOÇÕES E DEMOLIÇÕES
A14: DAC-2.1 | B14: REMOÇÃO DAS CHAPAS DE POLICARBONATO | I14: CPU | J14: M2 | K14: 1 | M14: =SUM(M15:M16) -> 16.875
A15: 88316 | B15: =IF(I15="SINAPI",VLOOKUP(A15,SINAPI,2,0),IF(I15="SETOP",VLOOKUP(A15,SETOP,3,0),IF(I15="CPU",VLOOKUP(A15,COMPOSIÇÃO,2,0),VLOOKUP(A15,COTAÇÃO,3,0)))) -> SERVENTE COM ENCARGOS COMPLEMENTARES | I15: SINAPI | J15: =IF(I15="SINAPI",VLOOKUP(A15,SINAPI,3,0),IF(I15="SETOP",VLOOKUP(A15,SETOP,4,0),IF(I15="CPU",VLOOKUP(A15,COMPOSIÇÃO,10,0),VLOOKUP(A15,COTAÇÃO,12,0)))) -> H | K15: 0.5 | L15: =IF(I15="SINAPI",VLOOKUP(A15,SINAPI,4,0),IF(I15="SETOP",VLOOKUP(A15,SETOP,5,0),IF(I15="CPU",VLOOKUP(A15,COMPOSIÇÃO,13,0),VLOOKUP(A15,COTAÇÃO,15,0)))) -> 14.11 | M15: =K15*L15 -> 7.055
A16: 88309 | B16: PEDREIRO COM ENCARGOS COMPLEMENTARES | I16: SINAPI | J16: H | K16: 0.5 | L16: 19.64 | M16: 9.82
A17: DAC-2.2 | B17: REMOÇÃO DE PORTAS, DE FORMA MANUAL, COM REAPROVEITAMENTO | I17: CPU | J17: M2 | K17: 1 | M17: =SUM(M18:M19) -> 16.82
A18: 88315 | B18: =IF(I18="SINAPI",VLOOKUP(A18,SINAPI,2,0),IF(I18="SETOP",VLOOKUP(A18,SETOP,3,0),IF(I18="CPU",VLOOKUP(A18,COMPOSIÇÃO,2,0),VLOOKUP(A18,COTAÇÃO,3,0)))) -> SERRALHEIRO COM ENCARGOS COMPLEMENTARES | I18: SINAPI | J18: =IF(I18="SINAPI",VLOOKUP(A18,SINAPI,3,0),IF(I18="SETOP",VLOOKUP(A18,SETOP,4,0),IF(I18="CPU",VLOOKUP(A18,COMPOSIÇÃO,10,0),VLOOKUP(A18,COTAÇÃO,12,0)))) -> H | K18: 0.5 | L18: =IF(I18="SINAPI",VLOOKUP(A18,SINAPI,4,0),IF(I18="SETOP",VLOOKUP(A18,SETOP,5,0),IF(I18="CPU",VLOOKUP(A18,COMPOSIÇÃO,13,0),VLOOKUP(A18,COTAÇÃO,15,0)))) -> 19.53 | M18: =K18*L18 -> 9.765
A19: 88316 | B19: =IF(I19="SINAPI",VLOOKUP(A19,SINAPI,2,0),IF(I19="SETOP",VLOOKUP(A19,SETOP,3,0),IF(I19="CPU",VLOOKUP(A19,COMPOSIÇÃO,2,0),VLOOKUP(A19,COTAÇÃO,3,0)))) -> SERVENTE COM ENCARGOS COMPLEMENTARES | I19: SINAPI | J19: =IF(I19="SINAPI",VLOOKUP(A19,SINAPI,3,0),IF(I19="SETOP",VLOOKUP(A19,SETOP,4,0),IF(I19="CPU",VLOOKUP(A19,COMPOSIÇÃO,10,0),VLOOKUP(A19,COTAÇÃO,12,0)))) -> H | K19: 0.5 | L19: =IF(I19="SINAPI",VLOOKUP(A19,SINAPI,4,0),IF(I19="SETOP",VLOOKUP(A19,SETOP,5,0),IF(I19="CPU",VLOOKUP(A19,COMPOSIÇÃO,13,0),VLOOKUP(A19,COTAÇÃO,15,0)))) -> 14.11 | M19: =K19*L19 -> 7.055
A20: DAC-2.3 | B20: REMOÇÃO DE REJUNTE EM PISO | I20: CPU | J20: M2 | K20: 1 | M20: =SUM(M21:M21) -> 4.23
A21: ED-50368 | B21: =IF(I21="SINAPI",VLOOKUP(A21,SINAPI,2,0),IF(I21="SETOP",VLOOKUP(A21,SETOP,3,0),IF(I21="CPU",VLOOKUP(A21,COMPOSIÇÃO,2,0),VLOOKUP(A21,COTAÇÃO,3,0)))) -> REJUNTADOR COM ENCARGOS COMPLEMENTARES | I21: SETOP | J21: =IF(I21="SINAPI",VLOOKUP(A21,SINAPI,3,0),IF(I21="SETOP",VLOOKUP(A21,SETOP,4,0),IF(I21="CPU",VLOOKUP(A21,COMPOSIÇÃO,10,0),VLOOKUP(A21,COTAÇÃO,12,0)))) -> HORA | K21: 0.3 | L21: =IF(I21="SINAPI",VLOOKUP(A21,SINAPI,4,0),IF(I21="SETOP",VLOOKUP(A21,SETOP,5,0),IF(I21="CPU",VLOOKUP(A21,COMPOSIÇÃO,13,0),VLOOKUP(A21,COTAÇÃO,15,0)))) -> 14.1 | M21: =K21*L21 -> 4.23
A22: DAC-2.4 | B22: REMOÇÃO DE CANALETA - FIAÇÃO ELÉTRICA | I22: CPU | J22: M | K22: 1 | M22: =SUM(M23:M23) -> 1.411
A23: 88316 | B23: =IF(I23="SINAPI",VLOOKUP(A23,SINAPI,2,0),IF(I23="SETOP",VLOOKUP(A23,SETOP,3,0),IF(I23="CPU",VLOOKUP(A23,COMPOSIÇÃO,2,0),VLOOKUP(A23,COTAÇÃO,3,0)))) -> SERVENTE COM ENCARGOS COMPLEMENTARES | I23: SINAPI | J23: =IF(I23="SINAPI",VLOOKUP(A23,SINAPI,3,0),IF(I23="SETOP",VLOOKUP(A23,SETOP,4,0),IF(I23="CPU",VLOOKUP(A23,COMPOSIÇÃO,10,0),VLOOKUP(A23,COTAÇÃO,12,0)))) -> H | K23: 0.1 | L23: =IF(I23="SINAPI",VLOOKUP(A23,SINAPI,4,0),IF(I23="SETOP",VLOOKUP(A23,SETOP,5,0),IF(I23="CPU",VLOOKUP(A23,COMPOSIÇÃO,13,0),VLOOKUP(A23,COTAÇÃO,15,0)))) -> 14.11 | M23: =K23*L23 -> 1.411
A24: DAC-2.5 | B24: REMOÇÃO DE GRELHA | I24: CPU | J24: M | K24: 1 | M24: =SUM(M25:XFD25) -> 3.5275
A25: 88316 | B25: =IF(I25="SINAPI",VLOOKUP(A25,SINAPI,2,0),IF(I25="SETOP",VLOOKUP(A25,SETOP,3,0),IF(I25="CPU",VLOOKUP(A25,COMPOSIÇÃO,2,0),VLOOKUP(A25,COTAÇÃO,3,0)))) -> SERVENTE COM ENCARGOS COMPLEMENTARES | I25: SINAPI | J25: =IF(I25="SINAPI",VLOOKUP(A25,SINAPI,3,0),IF(I25="SETOP",VLOOKUP(A25,SETOP,4,0),IF(I25="CPU",VLOOKUP(A25,COMPOSIÇÃO,10,0),VLOOKUP(A25,COTAÇÃO,12,0)))) -> H | K25: 0.25 | L25: =IF(I25="SINAPI",VLOOKUP(A25,SINAPI,4,0),IF(I25="SETOP",VLOOKUP(A25,SETOP,5,0),IF(I25="CPU",VLOOKUP(A25,COMPOSIÇÃO,13,0),VLOOKUP(A25,COTAÇÃO,15,0)))) -> 14.11 | M25: =K25*L25 -> 3.5275
A26: DAC-2.6 | B26: ANDAIME PARA REMOÇÃO DAS CHAPAS DE POLICARBONATO | I26: CPU | J26: UN | K26: 1 | M26: =SUM(M27:M28) -> 78.36
A27: ED-9076 | B27: =IF(I27="SINAPI",VLOOKUP(A27,SINAPI,2,0),IF(I27="SETOP",VLOOKUP(A27,SETOP,3,0),IF(I27="CPU",VLOOKUP(A27,COMPOSIÇÃO,2,0),VLOOKUP(A27,COTAÇÃO,3,0)))) -> FORNECIMENTO DE ANDAIME METÁLICO TUBULAR TIPO TORRE (LOCAÇÃO), INCLUSIVE RODÍZIOS, EXCLUSIVE MONTAGEM E DESMONTAGEM | I27: SETOP | J27: =IF(I27="SINAPI",VLOOKUP(A27,SINAPI,3,0),IF(I27="SETOP",VLOOKUP(A27,SETOP,4,0),IF(I27="CPU",VLOOKUP(A27,COMPOSIÇÃO,10,0),VLOOKUP(A27,COTAÇÃO,12,0)))) -> MXMÊS | K27: =6*0.5 -> 3 | L27: =IF(I27="SINAPI",VLOOKUP(A27,SINAPI,4,0),IF(I27="SETOP",VLOOKUP(A27,SETOP,5,0),IF(I27="CPU",VLOOKUP(A27,COMPOSIÇÃO,13,0),VLOOKUP(A27,COTAÇÃO,15,0)))) -> 12 | M27: =K27*L27 -> 36
A28: ED-9077 | B28: MONTAGEM E DESMONTAGEM DE ANDAIME METÁLICO TUBULAR TIPO TORRE, EXCLUSIVE FORNECIMENTO DO ANDAIME | I28: SETOP | J28: M | K28: 6 | L28: 7.06 | M28: 42.36
A29: DAC-2.7 | B29: REMOÇÃO DE TUBULAÇÕES (TUBOS E CONEXÕES) DE ESGOTO, DE FORMA MANUAL, SEM REAPROVEITAMENTO | I29: CPU | J29: M | K29: 1 | M29: =SUM(M30:M31) -> 0.333505
A30: 88267 | B30: =IF(I30="SINAPI",VLOOKUP(A30,SINAPI,2,0),IF(I30="SETOP",VLOOKUP(A30,SETOP,3,0),IF(I30="CPU",VLOOKUP(A30,COMPOSIÇÃO,2,0),VLOOKUP(A30,COTAÇÃO,3,0)))) -> ENCANADOR OU BOMBEIRO HIDRÁULICO COM ENCARGOS COMPLEMENTARES | I30: SINAPI | J30: =IF(I30="SINAPI",VLOOKUP(A30,SINAPI,3,0),IF(I30="SETOP",VLOOKUP(A30,SETOP,4,0),IF(I30="CPU",VLOOKUP(A30,COMPOSIÇÃO,10,0),VLOOKUP(A30,COTAÇÃO,12,0)))) -> H | K30: 0.0071 | L30: =IF(I30="SINAPI",VLOOKUP(A30,SINAPI,4,0),IF(I30="SETOP",VLOOKUP(A30,SETOP,5,0),IF(I30="CPU",VLOOKUP(A30,COMPOSIÇÃO,13,0),VLOOKUP(A30,COTAÇÃO,15,0)))) -> 19.15 | M30: =K30*L30 -> 0.135965
A31: 88316 | B31: =IF(I31="SINAPI",VLOOKUP(A31,SINAPI,2,0),IF(I31="SETOP",VLOOKUP(A31,SETOP,3,0),IF(I31="CPU",VLOOKUP(A31,COMPOSIÇÃO,2,0),VLOOKUP(A31,COTAÇÃO,3,0)))) -> SERVENTE COM ENCARGOS COMPLEMENTARES | I31: SINAPI | J31: =IF(I31="SINAPI",VLOOKUP(A31,SINAPI,3,0),IF(I31="SETOP",VLOOKUP(A31,SETOP,4,0),IF(I31="CPU",VLOOKUP(A31,COMPOSIÇÃO,10,0),VLOOKUP(A31,COTAÇÃO,12,0)))) -> H | K31: 0.014 | L31: =IF(I31="SINAPI",VLOOKUP(A31,SINAPI,4,0),IF(I31="SETOP",VLOOKUP(A31,SETOP,5,0),IF(I31="CPU",VLOOKUP(A31,COMPOSIÇÃO,13,0),VLOOKUP(A31,COTAÇÃO,15,0)))) -> 14.11 | M31: =K31*L31 -> 0.19754
A32: DAC-2.8 | B32: REMOÇÃO DE DIVISÓRIAS METÁLICAS | I32: CPU | J32: UN | K32: 1 | M32: =SUM(M33:M33) -> 14.11
A33: 88316 | B33: =IF(I33="SINAPI",VLOOKUP(A33,SINAPI,2,0),IF(I33="SETOP",VLOOKUP(A33,SETOP,3,0),IF(I33="CPU",VLOOKUP(A33,COMPOSIÇÃO,2,0),VLOOKUP(A33,COTAÇÃO,3,0)))) -> SERVENTE COM ENCARGOS COMPLEMENTARES | I33: SINAPI | J33: =IF(I33="SINAPI",VLOOKUP(A33,SINAPI,3,0),IF(I33="SETOP",VLOOKUP(A33,SETOP,4,0),IF(I33="CPU",VLOOKUP(A33,COMPOSIÇÃO,10,0),VLOOKUP(A33,COTAÇÃO,12,0)))) -> H | K33: 1 | L33: =IF(I33="SINAPI",VLOOKUP(A33,SINAPI,4,0),IF(I33="SETOP",VLOOKUP(A33,SETOP,5,0),IF(I33="CPU",VLOOKUP(A33,COMPOSIÇÃO,13,0),VLOOKUP(A33,COTAÇÃO,15,0)))) -> 14.11 | M33: =K33*L33 -> 14.11
A34: DAC-2.9 | B34: REMOÇÃO DE RALOS | I34: CPU | J34: UN | K34: 1 | M34: =SUM(M35:M35) -> 7.055
A35: 88316 | B35: =IF(I35="SINAPI",VLOOKUP(A35,SINAPI,2,0),IF(I35="SETOP",VLOOKUP(A35,SETOP,3,0),IF(I35="CPU",VLOOKUP(A35,COMPOSIÇÃO,2,0),VLOOKUP(A35,COTAÇÃO,3,0)))) -> SERVENTE COM ENCARGOS COMPLEMENTARES | I35: SINAPI | J35: =IF(I35="SINAPI",VLOOKUP(A35,SINAPI,3,0),IF(I35="SETOP",VLOOKUP(A35,SETOP,4,0),IF(I35="CPU",VLOOKUP(A35,COMPOSIÇÃO,10,0),VLOOKUP(A35,COTAÇÃO,12,0)))) -> H | K35: 0.5 | L35: =IF(I35="SINAPI",VLOOKUP(A35,SINAPI,4,0),IF(I35="SETOP",VLOOKUP(A35,SETOP,5,0),IF(I35="CPU",VLOOKUP(A35,COMPOSIÇÃO,13,0),VLOOKUP(A35,COTAÇÃO,15,0)))) -> 14.11 | M35: =K35*L35 -> 7.055
A36: 3 | B36: SISTEMA VERTICAL
A37: DAC-3.1 | B37: PAREDE COM PLACAS DE GESSO ACARTONADO (DRYWALL), PARA USO INTERNO COM DUAS FACES DUPLAS E ESTRUTURA METÁLICA COM GUIAS DUPLAS, SEM VÃOS | I37: CPU | J37: M2 | K37: 1 | M37: =SUM(M38:XFD49) -> 166.964793
A38: 37586 | B38: =IF(I38="SINAPI",VLOOKUP(A38,SINAPI,2,0),IF(I38="SETOP",VLOOKUP(A38,SETOP,3,0),IF(I38="CPU",VLOOKUP(A38,COMPOSIÇÃO,2,0),VLOOKUP(A38,COTAÇÃO,3,0)))) -> PINO DE ACO COM ARRUELA CONICA, DIAMETRO ARRUELA = *23* MM E COMP HASTE = *27* MM (ACAO INDIRETA) | I38: SINAPI | J38: =IF(I38="SINAPI",VLOOKUP(A38,SINAPI,3,0),IF(I38="SETOP",VLOOKUP(A38,SETOP,4,0),IF(I38="CPU",VLOOKUP(A38,COMPOSIÇÃO,10,0),VLOOKUP(A38,COTAÇÃO,12,0)))) -> CENTO | K38: 0.0486 | L38: =IF(I38="SINAPI",VLOOKUP(A38,SINAPI,4,0),IF(I38="SETOP",VLOOKUP(A38,SETOP,5,0),IF(I38="CPU",VLOOKUP(A38,COMPOSIÇÃO,13,0),VLOOKUP(A38,COTAÇÃO,15,0)))) -> 68.06 | M38: =K38*L38 -> 3.307716
A39: 39417 | B39: PLACA / CHAPA DE GESSO ACARTONADO, RESISTENTE A UMIDADE (RU), COR VERDE, E = 12,5 MM, 1200 X 2400 MM (L X C) | I39: SINAPI | J39: M2 | K39: 4.212 | L39: 20.59 | M39: 86.72508
A40: 39419 | B40: PERFIL GUIA, FORMATO U, EM ACO ZINCADO, PARA ESTRUTURA PAREDE DRYWALL, E = 0,5 MM, 70 X 3000 MM (L X C) | I40: SINAPI | J40: M | K40: 1.5209 | L40: 7.04 | M40: 10.707136
A41: 39422 | B41: PERFIL MONTANTE, FORMATO C, EM ACO ZINCADO, PARA ESTRUTURA PAREDE DRYWALL, E = 0,5 MM, 70 X 3000 MM (L X C) | I41: SINAPI | J41: M | K41: 3.9819 | L41: 7.99 | M41: 31.815381
A42: 39431 | B42: =IF(I42="SINAPI",VLOOKUP(A42,SINAPI,2,0),IF(I42="SETOP",VLOOKUP(A42,SETOP,3,0),IF(I42="CPU",VLOOKUP(A42,COMPOSIÇÃO,2,0),VLOOKUP(A42,COTAÇÃO,3,0)))) -> FITA DE PAPEL MICROPERFURADO, 50 X 150 MM, PARA TRATAMENTO DE JUNTAS DE CHAPA DE GESSO PARA DRYWALL | I42: SINAPI | J42: =IF(I42="SINAPI",VLOOKUP(A42,SINAPI,3,0),IF(I42="SETOP",VLOOKUP(A42,SETOP,4,0),IF(I42="CPU",VLOOKUP(A42,COMPOSIÇÃO,10,0),VLOOKUP(A42,COTAÇÃO,12,0)))) -> M | K42: 2.5027 | L42: =IF(I42="SINAPI",VLOOKUP(A42,SINAPI,4,0),IF(I42="SETOP",VLOOKUP(A42,SETOP,5,0),IF(I42="CPU",VLOOKUP(A42,COMPOSIÇÃO,13,0),VLOOKUP(A42,COTAÇÃO,15,0)))) -> 0.15 | M42: =K42*L42 -> 0.375405
A43: 39432 | B43: FITA DE PAPEL REFORCADA COM LAMINA DE METAL PARA REFORCO DE CANTOS DE CHAPA DE GESSO PARA DRYWALL | I43: SINAPI | J43: M | K43: 1.4815 | L43: 2.03 | M43: 3.007445
A44: 39434 | B44: MASSA DE REJUNTE EM PO PARA DRYWALL, A BASE DE GESSO, SECAGEM RAPIDA, PARA TRATAMENTO DE JUNTAS DE CHAPA DE GESSO (NECESSITA ADICAO DE AGUA) | I44: SINAPI | J44: KG | K44: 1.0327 | L44: 2.73 | M44: 2.819271
A45: 39435 | B45: PARAFUSO DRY WALL, EM ACO FOSFATIZADO, CABECA TROMBETA E PONTA AGULHA (TA), COMPRIMENTO 25 MM | I45: SINAPI | J45: UN | K45: 20.0077 | L45: 0.11 | M45: 2.200847
A46: 39437 | B46: PARAFUSO DRY WALL, EM ACO FOSFATIZADO, CABECA TROMBETA E PONTA AGULHA (TA), COMPRIMENTO 45 MM | I46: SINAPI | J46: UN | K46: 20.0077 | L46: 0.25 | M46: 5.001925
A47: 39443 | B47: PARAFUSO DRY WALL, EM ACO ZINCADO, CABECA LENTILHA E PONTA BROCA (LB), LARGURA 4,2 MM, COMPRIMENTO 13 MM | I47: SINAPI | J47: UN | K47: 0.8076 | L47: 0.27 | M47: 0.218052
A48: 88278 | B48: =IF(I48="SINAPI",VLOOKUP(A48,SINAPI,2,0),IF(I48="SETOP",VLOOKUP(A48,SETOP,3,0),IF(I48="CPU",VLOOKUP(A48,COMPOSIÇÃO,2,0),VLOOKUP(A48,COTAÇÃO,3,0)))) -> MONTADOR DE ESTRUTURA METÁLICA COM ENCARGOS COMPLEMENTARES | I48: SINAPI | J48: =IF(I48="SINAPI",VLOOKUP(A48,SINAPI,3,0),IF(I48="SETOP",VLOOKUP(A48,SETOP,4,0),IF(I48="CPU",VLOOKUP(A48,COMPOSIÇÃO,10,0),VLOOKUP(A48,COTAÇÃO,12,0)))) -> H | K48: 0.882 | L48: =IF(I48="SINAPI",VLOOKUP(A48,SINAPI,4,0),IF(I48="SETOP",VLOOKUP(A48,SETOP,5,0),IF(I48="CPU",VLOOKUP(A48,COMPOSIÇÃO,13,0),VLOOKUP(A48,COTAÇÃO,15,0)))) -> 20.04 | M48: =K48*L48 -> 17.67528
A49: 88316 | B49: SERVENTE COM ENCARGOS COMPLEMENTARES | I49: SINAPI | J49: H | K49: 0.2205 | L49: 14.11 | M49: 3.111255
A50: 4 | B50: ESQUADRIAS
A51: DAC-4.1 | B51: INSTALAÇÃO DE BARRAS DE SEGURANÇA | I51: CPU | J51: M | K51: 1 | M51: =SUM(M52:XFD55) -> 109.46
A52: 551 | B52: =IF(I52="SINAPI",VLOOKUP(A52,SINAPI,2,0),IF(I52="SETOP",VLOOKUP(A52,SETOP,3,0),IF(I52="CPU",VLOOKUP(A52,COMPOSIÇÃO,2,0),VLOOKUP(A52,COTAÇÃO,3,0)))) -> BARRA DE FERRO CHATO, RETANGULAR, 50,8 MM X 25,4 MM (L X E), 10,12 KG/M | I52: SINAPI | J52: =IF(I52="SINAPI",VLOOKUP(A52,SINAPI,3,0),IF(I52="SETOP",VLOOKUP(A52,SETOP,4,0),IF(I52="CPU",VLOOKUP(A52,COMPOSIÇÃO,10,0),VLOOKUP(A52,COTAÇÃO,12,0)))) -> M | K52: 1 | L52: =IF(I52="SINAPI",VLOOKUP(A52,SINAPI,4,0),IF(I52="SETOP",VLOOKUP(A52,SETOP,5,0),IF(I52="CPU",VLOOKUP(A52,COMPOSIÇÃO,13,0),VLOOKUP(A52,COTAÇÃO,15,0)))) -> 100.69 | M52: =K52*L52 -> 100.69
A53: 11950 | B53: BUCHA DE NYLON SEM ABA S6, COM PARAFUSO DE 4,20 X 40 MM EM ACO ZINCADO COM ROSCA SOBERBA, CABECA CHATA E FENDA PHILLIPS | I53: SINAPI | J53: UN | K53: 3 | L53: 0.12 | M53: 0.36
A54: 88316 | B54: =IF(I54="SINAPI",VLOOKUP(A54,SINAPI,2,0),IF(I54="SETOP",VLOOKUP(A54,SETOP,3,0),IF(I54="CPU",VLOOKUP(A54,COMPOSIÇÃO,2,0),VLOOKUP(A54,COTAÇÃO,3,0)))) -> SERVENTE COM ENCARGOS COMPLEMENTARES | I54: SINAPI | J54: =IF(I54="SINAPI",VLOOKUP(A54,SINAPI,3,0),IF(I54="SETOP",VLOOKUP(A54,SETOP,4,0),IF(I54="CPU",VLOOKUP(A54,COMPOSIÇÃO,10,0),VLOOKUP(A54,COTAÇÃO,12,0)))) -> H | K54: 0.25 | L54: =IF(I54="SINAPI",VLOOKUP(A54,SINAPI,4,0),IF(I54="SETOP",VLOOKUP(A54,SETOP,5,0),IF(I54="CPU",VLOOKUP(A54,COMPOSIÇÃO,13,0),VLOOKUP(A54,COTAÇÃO,15,0)))) -> 14.11 | M54: =K54*L54 -> 3.5275
A55: 88315 | B55: SERRALHEIRO COM ENCARGOS COMPLEMENTARES | I55: SINAPI | J55: H | K55: 0.25 | L55: 19.53 | M55: 4.8825
A56: DAC-4.2 | B56: MANUTENÇÃO DAS ESQUADRIAS METÁLICAS | I56: CPU | J56: M2 | K56: 1 | M56: =SUM(M57:XFD60) -> 76.225
A57: ED-50508 | B57: =IF(I57="SINAPI",VLOOKUP(A57,SINAPI,2,0),IF(I57="SETOP",VLOOKUP(A57,SETOP,3,0),IF(I57="CPU",VLOOKUP(A57,COMPOSIÇÃO,2,0),VLOOKUP(A57,COTAÇÃO,3,0)))) -> LIXAMENTO MANUAL EM SUPERFÍCIE METÁLICA PARA REMOÇÃO DE TINTA | I57: SETOP | J57: =IF(I57="SINAPI",VLOOKUP(A57,SINAPI,3,0),IF(I57="SETOP",VLOOKUP(A57,SETOP,4,0),IF(I57="CPU",VLOOKUP(A57,COMPOSIÇÃO,10,0),VLOOKUP(A57,COTAÇÃO,12,0)))) -> M2 | K57: 2 | L57: =IF(I57="SINAPI",VLOOKUP(A57,SINAPI,4,0),IF(I57="SETOP",VLOOKUP(A57,SETOP,5,0),IF(I57="CPU",VLOOKUP(A57,COMPOSIÇÃO,13,0),VLOOKUP(A57,COTAÇÃO,15,0)))) -> 3.47 | M57: =K57*L57 -> 6.94
A58: ED-50497 | B58: PINTURA ESMALTE EM ESTRUTURA METÁLICA, DUAS (2) DEMÃOS, INCLUSIVE UMA (1) DEMÃO FUNDO ANTICORROSIVO | I58: SETOP | J58: M2 | K58: 2 | L58: 25.86 | M58: 51.72
A59: 88251 | B59: =IF(I59="SINAPI",VLOOKUP(A59,SINAPI,2,0),IF(I59="SETOP",VLOOKUP(A59,SETOP,3,0),IF(I59="CPU",VLOOKUP(A59,COMPOSIÇÃO,2,0),VLOOKUP(A59,COTAÇÃO,3,0)))) -> AUXILIAR DE SERRALHEIRO COM ENCARGOS COMPLEMENTARES | I59: SINAPI | J59: =IF(I59="SINAPI",VLOOKUP(A59,SINAPI,3,0),IF(I59="SETOP",VLOOKUP(A59,SETOP,4,0),IF(I59="CPU",VLOOKUP(A59,COMPOSIÇÃO,10,0),VLOOKUP(A59,COTAÇÃO,12,0)))) -> H | K59: 0.5 | L59: =IF(I59="SINAPI",VLOOKUP(A59,SINAPI,4,0),IF(I59="SETOP",VLOOKUP(A59,SETOP,5,0),IF(I59="CPU",VLOOKUP(A59,COMPOSIÇÃO,13,0),VLOOKUP(A59,COTAÇÃO,15,0)))) -> 15.6 | M59: =K59*L59 -> 7.8
A60: 88315 | B60: SERRALHEIRO COM ENCARGOS COMPLEMENTARES | I60: SINAPI | J60: H | K60: 0.5 | L60: 19.53 | M60: 9.765
A61: 5 | B61: SISTEMA DE COBERTURA
A62: DAC-5.1 | B62: MANUTENÇÃO DA ESTRUTURA METÁLICA DA COBERTURA EM POLICARBONATO | I62: CPU | J62: M2 | K62: 1 | M62: =SUM(M63:M65) -> 39.095
A63: ED-50508 | B63: =IF(I63="SINAPI",VLOOKUP(A63,SINAPI,2,0),IF(I63="SETOP",VLOOKUP(A63,SETOP,3,0),IF(I63="CPU",VLOOKUP(A63,COMPOSIÇÃO,2,0),VLOOKUP(A63,COTAÇÃO,3,0)))) -> LIXAMENTO MANUAL EM SUPERFÍCIE METÁLICA PARA REMOÇÃO DE TINTA | I63: SETOP | J63: =IF(I63="SINAPI",VLOOKUP(A63,SINAPI,3,0),IF(I63="SETOP",VLOOKUP(A63,SETOP,4,0),IF(I63="CPU",VLOOKUP(A63,COMPOSIÇÃO,10,0),VLOOKUP(A63,COTAÇÃO,12,0)))) -> M2 | K63: 1 | L63: =IF(I63="SINAPI",VLOOKUP(A63,SINAPI,4,0),IF(I63="SETOP",VLOOKUP(A63,SETOP,5,0),IF(I63="CPU",VLOOKUP(A63,COMPOSIÇÃO,13,0),VLOOKUP(A63,COTAÇÃO,15,0)))) -> 3.47 | M63: =K63*L63 -> 3.47
A64: ED-50497 | B64: PINTURA ESMALTE EM ESTRUTURA METÁLICA, DUAS (2) DEMÃOS, INCLUSIVE UMA (1) DEMÃO FUNDO ANTICORROSIVO | I64: SETOP | J64: M2 | K64: 1 | L64: 25.86 | M64: 25.86
A65: 88315 | B65: =IF(I65="SINAPI",VLOOKUP(A65,SINAPI,2,0),IF(I65="SETOP",VLOOKUP(A65,SETOP,3,0),IF(I65="CPU",VLOOKUP(A65,COMPOSIÇÃO,2,0),VLOOKUP(A65,COTAÇÃO,3,0)))) -> SERRALHEIRO COM ENCARGOS COMPLEMENTARES | I65: SINAPI | J65: =IF(I65="SINAPI",VLOOKUP(A65,SINAPI,3,0),IF(I65="SETOP",VLOOKUP(A65,SETOP,4,0),IF(I65="CPU",VLOOKUP(A65,COMPOSIÇÃO,10,0),VLOOKUP(A65,COTAÇÃO,12,0)))) -> H | K65: 0.5 | L65: =IF(I65="SINAPI",VLOOKUP(A65,SINAPI,4,0),IF(I65="SETOP",VLOOKUP(A65,SETOP,5,0),IF(I65="CPU",VLOOKUP(A65,COMPOSIÇÃO,13,0),VLOOKUP(A65,COTAÇÃO,15,0)))) -> 19.53 | M65: =K65*L65 -> 9.765
A66: DAC-5.2 | B66: ANDAIME PARA MANUTENÇÃO DA ESTRUTURA METÁLICA E INSTALAÇÃO DA NOVA COBERTURA EM POLICARBONATO | I66: CPU | J66: UN | K66: 1 | M66: =SUM(M67:XFD68) -> 150.36
A67: ED-9076 | B67: =IF(I67="SINAPI",VLOOKUP(A67,SINAPI,2,0),IF(I67="SETOP",VLOOKUP(A67,SETOP,3,0),IF(I67="CPU",VLOOKUP(A67,COMPOSIÇÃO,2,0),VLOOKUP(A67,COTAÇÃO,3,0)))) -> FORNECIMENTO DE ANDAIME METÁLICO TUBULAR TIPO TORRE (LOCAÇÃO), INCLUSIVE RODÍZIOS, EXCLUSIVE MONTAGEM E DESMONTAGEM | I67: SETOP | J67: =IF(I67="SINAPI",VLOOKUP(A67,SINAPI,3,0),IF(I67="SETOP",VLOOKUP(A67,SETOP,4,0),IF(I67="CPU",VLOOKUP(A67,COMPOSIÇÃO,10,0),VLOOKUP(A67,COTAÇÃO,12,0)))) -> MXMÊS | K67: =6*1.5 -> 9 | L67: =IF(I67="SINAPI",VLOOKUP(A67,SINAPI,4,0),IF(I67="SETOP",VLOOKUP(A67,SETOP,5,0),IF(I67="CPU",VLOOKUP(A67,COMPOSIÇÃO,13,0),VLOOKUP(A67,COTAÇÃO,15,0)))) -> 12 | M67: =K67*L67 -> 108
A68: ED-9077 | B68: MONTAGEM E DESMONTAGEM DE ANDAIME METÁLICO TUBULAR TIPO TORRE, EXCLUSIVE FORNECIMENTO DO ANDAIME | I68: SETOP | J68: M | K68: 6 | L68: 7.06 | M68: 42.36
A69: DAC-5.3 | B69: INSTALAÇÃO DE COBERTURA EM POLICARBONATO | I69: CPU | J69: M2 | K69: 1 | M69: =SUM(M70:XFD70) -> 9.82
A70: 88309 | B70: =IF(I70="SINAPI",VLOOKUP(A70,SINAPI,2,0),IF(I70="SETOP",VLOOKUP(A70,SETOP,3,0),IF(I70="CPU",VLOOKUP(A70,COMPOSIÇÃO,2,0),VLOOKUP(A70,COTAÇÃO,3,0)))) -> PEDREIRO COM ENCARGOS COMPLEMENTARES | I70: SINAPI | J70: =IF(I70="SINAPI",VLOOKUP(A70,SINAPI,3,0),IF(I70="SETOP",VLOOKUP(A70,SETOP,4,0),IF(I70="CPU",VLOOKUP(A70,COMPOSIÇÃO,10,0),VLOOKUP(A70,COTAÇÃO,12,0)))) -> H | K70: 0.5 | L70: =IF(I70="SINAPI",VLOOKUP(A70,SINAPI,4,0),IF(I70="SETOP",VLOOKUP(A70,SETOP,5,0),IF(I70="CPU",VLOOKUP(A70,COMPOSIÇÃO,13,0),VLOOKUP(A70,COTAÇÃO,15,0)))) -> 19.64 | M70: =K70*L70 -> 9.82
A71: DAC-5.4 | B71: LIMPEZA DO TELHADO | I71: CPU | J71: M2 | K71: 1 | M71: =SUM(M72:XFD72) -> 2.822
A72: 88316 | B72: =IF(I72="SINAPI",VLOOKUP(A72,SINAPI,2,0),IF(I72="SETOP",VLOOKUP(A72,SETOP,3,0),IF(I72="CPU",VLOOKUP(A72,COMPOSIÇÃO,2,0),VLOOKUP(A72,COTAÇÃO,3,0)))) -> SERVENTE COM ENCARGOS COMPLEMENTARES | I72: SINAPI | J72: =IF(I72="SINAPI",VLOOKUP(A72,SINAPI,3,0),IF(I72="SETOP",VLOOKUP(A72,SETOP,4,0),IF(I72="CPU",VLOOKUP(A72,COMPOSIÇÃO,10,0),VLOOKUP(A72,COTAÇÃO,12,0)))) -> H | K72: 0.2 | L72: =IF(I72="SINAPI",VLOOKUP(A72,SINAPI,4,0),IF(I72="SETOP",VLOOKUP(A72,SETOP,5,0),IF(I72="CPU",VLOOKUP(A72,COMPOSIÇÃO,13,0),VLOOKUP(A72,COTAÇÃO,15,0)))) -> 14.11 | M72: =K72*L72 -> 2.822
A73: 9 | B73: INSTALAÇÕES HIDROSSANITÁRIAS
A74: DAC-9.1 | B74: PROTEÇÃO DE TUBULAÇÃO EXISTENTE | I74: CPU | J74: UN | K74: 1 | M74: =SUM(M75:XFD76) -> 11.705
A75: 1194 | B75: =IF(I75="SINAPI",VLOOKUP(A75,SINAPI,2,0),IF(I75="SETOP",VLOOKUP(A75,SETOP,3,0),IF(I75="CPU",VLOOKUP(A75,COMPOSIÇÃO,2,0),VLOOKUP(A75,COTAÇÃO,3,0)))) -> CAP PVC, SOLDAVEL, 50 MM, PARA AGUA FRIA PREDIAL | I75: SINAPI | J75: =IF(I75="SINAPI",VLOOKUP(A75,SINAPI,3,0),IF(I75="SETOP",VLOOKUP(A75,SETOP,4,0),IF(I75="CPU",VLOOKUP(A75,COMPOSIÇÃO,10,0),VLOOKUP(A75,COTAÇÃO,12,0)))) -> UN | K75: 1 | L75: =IF(I75="SINAPI",VLOOKUP(A75,SINAPI,4,0),IF(I75="SETOP",VLOOKUP(A75,SETOP,5,0),IF(I75="CPU",VLOOKUP(A75,COMPOSIÇÃO,13,0),VLOOKUP(A75,COTAÇÃO,15,0)))) -> 9.79 | M75: =K75*L75 -> 9.79
A76: 88267 | B76: =IF(I76="SINAPI",VLOOKUP(A76,SINAPI,2,0),IF(I76="SETOP",VLOOKUP(A76,SETOP,3,0),IF(I76="CPU",VLOOKUP(A76,COMPOSIÇÃO,2,0),VLOOKUP(A76,COTAÇÃO,3,0)))) -> ENCANADOR OU BOMBEIRO HIDRÁULICO COM ENCARGOS COMPLEMENTARES | I76: SINAPI | J76: =IF(I76="SINAPI",VLOOKUP(A76,SINAPI,3,0),IF(I76="SETOP",VLOOKUP(A76,SETOP,4,0),IF(I76="CPU",VLOOKUP(A76,COMPOSIÇÃO,10,0),VLOOKUP(A76,COTAÇÃO,12,0)))) -> H | K76: 0.1 | L76: =IF(I76="SINAPI",VLOOKUP(A76,SINAPI,4,0),IF(I76="SETOP",VLOOKUP(A76,SETOP,5,0),IF(I76="CPU",VLOOKUP(A76,COMPOSIÇÃO,13,0),VLOOKUP(A76,COTAÇÃO,15,0)))) -> 19.15 | M76: =K76*L76 -> 1.915
A77: DAC-9.2 | B77: REVISÃO HIDROSSANITÁRIA | I77: CPU | J77: UN | K77: 1 | M77: =SUM(M78:XFD78) -> 306.4
A78: 88267 | B78: =IF(I78="SINAPI",VLOOKUP(A78,SINAPI,2,0),IF(I78="SETOP",VLOOKUP(A78,SETOP,3,0),IF(I78="CPU",VLOOKUP(A78,COMPOSIÇÃO,2,0),VLOOKUP(A78,COTAÇÃO,3,0)))) -> ENCANADOR OU BOMBEIRO HIDRÁULICO COM ENCARGOS COMPLEMENTARES | I78: SINAPI | J78: =IF(I78="SINAPI",VLOOKUP(A78,SINAPI,3,0),IF(I78="SETOP",VLOOKUP(A78,SETOP,4,0),IF(I78="CPU",VLOOKUP(A78,COMPOSIÇÃO,10,0),VLOOKUP(A78,COTAÇÃO,12,0)))) -> H | K78: 16 | L78: =IF(I78="SINAPI",VLOOKUP(A78,SINAPI,4,0),IF(I78="SETOP",VLOOKUP(A78,SETOP,5,0),IF(I78="CPU",VLOOKUP(A78,COMPOSIÇÃO,13,0),VLOOKUP(A78,COTAÇÃO,15,0)))) -> 19.15 | M78: =K78*L78 -> 306.4
A79: 10 | B79: LOUÇAS, METAIS E ACESSÓRIOS
A80: DAC-10.1 | B80: INSTALAÇÃO DO SUPORTE PARA PIA | I80: CPU | J80: UN | K80: 1 | M80: =SUM(M81:XFD81) -> 3.5275
A81: 88316 | B81: =IF(I81="SINAPI",VLOOKUP(A81,SINAPI,2,0),IF(I81="SETOP",VLOOKUP(A81,SETOP,3,0),IF(I81="CPU",VLOOKUP(A81,COMPOSIÇÃO,2,0),VLOOKUP(A81,COTAÇÃO,3,0)))) -> SERVENTE COM ENCARGOS COMPLEMENTARES | I81: SINAPI | J81: =IF(I81="SINAPI",VLOOKUP(A81,SINAPI,3,0),IF(I81="SETOP",VLOOKUP(A81,SETOP,4,0),IF(I81="CPU",VLOOKUP(A81,COMPOSIÇÃO,10,0),VLOOKUP(A81,COTAÇÃO,12,0)))) -> H | K81: 0.25 | L81: =IF(I81="SINAPI",VLOOKUP(A81,SINAPI,4,0),IF(I81="SETOP",VLOOKUP(A81,SETOP,5,0),IF(I81="CPU",VLOOKUP(A81,COMPOSIÇÃO,13,0),VLOOKUP(A81,COTAÇÃO,15,0)))) -> 14.11 | M81: =K81*L81 -> 3.5275
A82: DAC-10.2 | B82: INSTALAÇÃO DO ACABAMENTO DE REGISTRO | I82: CPU | J82: UN | K82: 1 | M82: =SUM(M83:XFD83) -> 4.9385
A83: 88316 | B83: =IF(I83="SINAPI",VLOOKUP(A83,SINAPI,2,0),IF(I83="SETOP",VLOOKUP(A83,SETOP,3,0),IF(I83="CPU",VLOOKUP(A83,COMPOSIÇÃO,2,0),VLOOKUP(A83,COTAÇÃO,3,0)))) -> SERVENTE COM ENCARGOS COMPLEMENTARES | I83: SINAPI | J83: =IF(I83="SINAPI",VLOOKUP(A83,SINAPI,3,0),IF(I83="SETOP",VLOOKUP(A83,SETOP,4,0),IF(I83="CPU",VLOOKUP(A83,COMPOSIÇÃO,10,0),VLOOKUP(A83,COTAÇÃO,12,0)))) -> H | K83: 0.35 | L83: =IF(I83="SINAPI",VLOOKUP(A83,SINAPI,4,0),IF(I83="SETOP",VLOOKUP(A83,SETOP,5,0),IF(I83="CPU",VLOOKUP(A83,COMPOSIÇÃO,13,0),VLOOKUP(A83,COTAÇÃO,15,0)))) -> 14.11 | M83: =K83*L83 -> 4.9385
A84: DAC-10.3 | B84: INSTALAÇÃO DE RALOS QUADRADOS | I84: CPU | J84: UN | K84: 1 | M84: =SUM(M85:XFD85) -> 4.9385
A85: 88316 | B85: =IF(I85="SINAPI",VLOOKUP(A85,SINAPI,2,0),IF(I85="SETOP",VLOOKUP(A85,SETOP,3,0),IF(I85="CPU",VLOOKUP(A85,COMPOSIÇÃO,2,0),VLOOKUP(A85,COTAÇÃO,3,0)))) -> SERVENTE COM ENCARGOS COMPLEMENTARES | I85: SINAPI | J85: =IF(I85="SINAPI",VLOOKUP(A85,SINAPI,3,0),IF(I85="SETOP",VLOOKUP(A85,SETOP,4,0),IF(I85="CPU",VLOOKUP(A85,COMPOSIÇÃO,10,0),VLOOKUP(A85,COTAÇÃO,12,0)))) -> H | K85: 0.35 | L85: =IF(I85="SINAPI",VLOOKUP(A85,SINAPI,4,0),IF(I85="SETOP",VLOOKUP(A85,SETOP,5,0),IF(I85="CPU",VLOOKUP(A85,COMPOSIÇÃO,13,0),VLOOKUP(A85,COTAÇÃO,15,0)))) -> 14.11 | M85: =K85*L85 -> 4.9385
A86: 11 | B86: DRENAGEM PLUVIAL
A87: DAC-11.1 | B87: INSTALAÇÃO DE GRELHAS | I87: CPU | J87: M | K87: 1 | M87: =SUM(M88:XFD89) -> 164.545
A88: 11244 | B88: =IF(I88="SINAPI",VLOOKUP(A88,SINAPI,2,0),IF(I88="SETOP",VLOOKUP(A88,SETOP,3,0),IF(I88="CPU",VLOOKUP(A88,COMPOSIÇÃO,2,0),VLOOKUP(A88,COTAÇÃO,3,0)))) -> GRELHA FOFO ARTICULADA, CARGA MAXIMA 1,5 T, *300 X 1000* MM, E= *15* MM | I88: SINAPI | J88: =IF(I88="SINAPI",VLOOKUP(A88,SINAPI,3,0),IF(I88="SETOP",VLOOKUP(A88,SETOP,4,0),IF(I88="CPU",VLOOKUP(A88,COMPOSIÇÃO,10,0),VLOOKUP(A88,COTAÇÃO,12,0)))) -> UN | K88: 1 | L88: =IF(I88="SINAPI",VLOOKUP(A88,SINAPI,4,0),IF(I88="SETOP",VLOOKUP(A88,SETOP,5,0),IF(I88="CPU",VLOOKUP(A88,COMPOSIÇÃO,13,0),VLOOKUP(A88,COTAÇÃO,15,0)))) -> 157.49 | M88: =K88*L88 -> 157.49
A89: 88316 | B89: =IF(I89="SINAPI",VLOOKUP(A89,SINAPI,2,0),IF(I89="SETOP",VLOOKUP(A89,SETOP,3,0),IF(I89="CPU",VLOOKUP(A89,COMPOSIÇÃO,2,0),VLOOKUP(A89,COTAÇÃO,3,0)))) -> SERVENTE COM ENCARGOS COMPLEMENTARES | I89: SINAPI | J89: =IF(I89="SINAPI",VLOOKUP(A89,SINAPI,3,0),IF(I89="SETOP",VLOOKUP(A89,SETOP,4,0),IF(I89="CPU",VLOOKUP(A89,COMPOSIÇÃO,10,0),VLOOKUP(A89,COTAÇÃO,12,0)))) -> H | K89: 0.5 | L89: =IF(I89="SINAPI",VLOOKUP(A89,SINAPI,4,0),IF(I89="SETOP",VLOOKUP(A89,SETOP,5,0),IF(I89="CPU",VLOOKUP(A89,COMPOSIÇÃO,13,0),VLOOKUP(A89,COTAÇÃO,15,0)))) -> 14.11 | M89: =K89*L89 -> 7.055
A90: 12 | B90: INSTALAÇÕES ELÉTRICAS
A91: DAC-12.1 | B91: INSTALAÇÃO DAS LUMINÁRIAS | I91: CPU | J91: UN | K91: 1 | M91: =SUM(M92:XFD92) -> 4.955
A92: 88264 | B92: =IF(I92="SINAPI",VLOOKUP(A92,SINAPI,2,0),IF(I92="SETOP",VLOOKUP(A92,SETOP,3,0),IF(I92="CPU",VLOOKUP(A92,COMPOSIÇÃO,2,0),VLOOKUP(A92,COTAÇÃO,3,0)))) -> ELETRICISTA COM ENCARGOS COMPLEMENTARES | I92: SINAPI | J92: =IF(I92="SINAPI",VLOOKUP(A92,SINAPI,3,0),IF(I92="SETOP",VLOOKUP(A92,SETOP,4,0),IF(I92="CPU",VLOOKUP(A92,COMPOSIÇÃO,10,0),VLOOKUP(A92,COTAÇÃO,12,0)))) -> H | K92: 0.25 | L92: =IF(I92="SINAPI",VLOOKUP(A92,SINAPI,4,0),IF(I92="SETOP",VLOOKUP(A92,SETOP,5,0),IF(I92="CPU",VLOOKUP(A92,COMPOSIÇÃO,13,0),VLOOKUP(A92,COTAÇÃO,15,0)))) -> 19.82 | M92: =K92*L92 -> 4.955
A93: 13 | B93: PREVENÇÃO CONTRA INCÊNDIO E PÂNICO
A94: DAC-13.1 | B94: INSTALAÇÃO DAS LUMINÁRIAS DE EMERGÊNCIA | I94: CPU | J94: UN | K94: 1 | M94: =SUM(M95) -> 178.38
A95: 88264 | B95: =IF(I95="SINAPI",VLOOKUP(A95,SINAPI,2,0),IF(I95="SETOP",VLOOKUP(A95,SETOP,3,0),IF(I95="CPU",VLOOKUP(A95,COMPOSIÇÃO,2,0),VLOOKUP(A95,COTAÇÃO,3,0)))) -> ELETRICISTA COM ENCARGOS COMPLEMENTARES | I95: SINAPI | J95: =IF(I95="SINAPI",VLOOKUP(A95,SINAPI,3,0),IF(I95="SETOP",VLOOKUP(A95,SETOP,4,0),IF(I95="CPU",VLOOKUP(A95,COMPOSIÇÃO,10,0),VLOOKUP(A95,COTAÇÃO,12,0)))) -> H | K95: 9 | L95: =IF(I95="SINAPI",VLOOKUP(A95,SINAPI,4,0),IF(I95="SETOP",VLOOKUP(A95,SETOP,5,0),IF(I95="CPU",VLOOKUP(A95,COMPOSIÇÃO,13,0),VLOOKUP(A95,COTAÇÃO,15,0)))) -> 19.82 | M95: =K95*L95 -> 178.38
A96: DAC-13.2 | B96: INSTALAÇÃO DA PLACA FOTOLUMINESCENTE "M1" | I96: CPU | J96: UN | K96: 1 | M96: =SUM(M97:M97) -> 9.82
A97: 88309 | B97: =IF(I97="SINAPI",VLOOKUP(A97,SINAPI,2,0),IF(I97="SETOP",VLOOKUP(A97,SETOP,3,0),IF(I97="CPU",VLOOKUP(A97,COMPOSIÇÃO,2,0),VLOOKUP(A97,COTAÇÃO,3,0)))) -> PEDREIRO COM ENCARGOS COMPLEMENTARES | I97: SINAPI | J97: =IF(I97="SINAPI",VLOOKUP(A97,SINAPI,3,0),IF(I97="SETOP",VLOOKUP(A97,SETOP,4,0),IF(I97="CPU",VLOOKUP(A97,COMPOSIÇÃO,10,0),VLOOKUP(A97,COTAÇÃO,12,0)))) -> H | K97: 0.5 | L97: =IF(I97="SINAPI",VLOOKUP(A97,SINAPI,4,0),IF(I97="SETOP",VLOOKUP(A97,SETOP,5,0),IF(I97="CPU",VLOOKUP(A97,COMPOSIÇÃO,13,0),VLOOKUP(A97,COTAÇÃO,15,0)))) -> 19.64 | M97: =K97*L97 -> 9.82
A98: DAC-13.3 | B98: PLACA FOTOLUMINESCENTE "S3" - 380 x 190 MM | I98: CPU | J98: UN | K98: 1 | M98: =SUM(M99:M100) -> 19.13
A99: MATED-12923 | B99: PLACA FOTOLUMINESCENTE "S3" - 380 x 190 MM | I99: SETOP | J99: UN | K99: 1 | L99: 9.31 | M99: =K99*L99 -> 9.31
A100: 88309 | B100: =IF(I100="SINAPI",VLOOKUP(A100,SINAPI,2,0),IF(I100="SETOP",VLOOKUP(A100,SETOP,3,0),IF(I100="CPU",VLOOKUP(A100,COMPOSIÇÃO,2,0),VLOOKUP(A100,COTAÇÃO,3,0)))) -> PEDREIRO COM ENCARGOS COMPLEMENTARES | I100: SINAPI | J100: =IF(I100="SINAPI",VLOOKUP(A100,SINAPI,3,0),IF(I100="SETOP",VLOOKUP(A100,SETOP,4,0),IF(I100="CPU",VLOOKUP(A100,COMPOSIÇÃO,10,0),VLOOKUP(A100,COTAÇÃO,12,0)))) -> H | K100: 0.5 | L100: =IF(I100="SINAPI",VLOOKUP(A100,SINAPI,4,0),IF(I100="SETOP",VLOOKUP(A100,SETOP,5,0),IF(I100="CPU",VLOOKUP(A100,COMPOSIÇÃO,13,0),VLOOKUP(A100,COTAÇÃO,15,0)))) -> 19.64 | M100: 9.82
A101: DAC-13.4 | B101: PLACA FOTOLUMINESCENTE "S17" - 380 x 190 MM | I101: CPU | J101: UN | K101: 1 | M101: =SUM(M102:M103) -> 19.13
A102: MATED-12923 | B102: PLACA FOTOLUMINESCENTE "S17" - 380 x 190 MM | I102: SETOP | J102: UN | K102: 1 | L102: 9.31 | M102: =K102*L102 -> 9.31
A103: 88309 | B103: =IF(I103="SINAPI",VLOOKUP(A103,SINAPI,2,0),IF(I103="SETOP",VLOOKUP(A103,SETOP,3,0),IF(I103="CPU",VLOOKUP(A103,COMPOSIÇÃO,2,0),VLOOKUP(A103,COTAÇÃO,3,0)))) -> PEDREIRO COM ENCARGOS COMPLEMENTARES | I103: SINAPI | J103: =IF(I103="SINAPI",VLOOKUP(A103,SINAPI,3,0),IF(I103="SETOP",VLOOKUP(A103,SETOP,4,0),IF(I103="CPU",VLOOKUP(A103,COMPOSIÇÃO,10,0),VLOOKUP(A103,COTAÇÃO,12,0)))) -> H | K103: 0.5 | L103: =IF(I103="SINAPI",VLOOKUP(A103,SINAPI,4,0),IF(I103="SETOP",VLOOKUP(A103,SETOP,5,0),IF(I103="CPU",VLOOKUP(A103,COMPOSIÇÃO,13,0),VLOOKUP(A103,COTAÇÃO,15,0)))) -> 19.64 | M103: 9.82
A104: DAC-13.5 | B104: PLACA FOTOLUMINESCENTE "E1" - 300 x 300 MM | I104: CPU | J104: UN | K104: 1 | M104: =SUM(M105:M106) -> 27.13
A105: ED-50199 | B105: PLACA FOTOLUMINESCENTE "E1" - 300 x 300 MM | I105: SETOP | J105: UN | K105: 1 | L105: 17.31 | M105: =K105*L105 -> 17.31
A106: 88309 | B106: =IF(I106="SINAPI",VLOOKUP(A106,SINAPI,2,0),IF(I106="SETOP",VLOOKUP(A106,SETOP,3,0),IF(I106="CPU",VLOOKUP(A106,COMPOSIÇÃO,2,0),VLOOKUP(A106,COTAÇÃO,3,0)))) -> PEDREIRO COM ENCARGOS COMPLEMENTARES | I106: SINAPI | J106: =IF(I106="SINAPI",VLOOKUP(A106,SINAPI,3,0),IF(I106="SETOP",VLOOKUP(A106,SETOP,4,0),IF(I106="CPU",VLOOKUP(A106,COMPOSIÇÃO,10,0),VLOOKUP(A106,COTAÇÃO,12,0)))) -> H | K106: 0.5 | L106: =IF(I106="SINAPI",VLOOKUP(A106,SINAPI,4,0),IF(I106="SETOP",VLOOKUP(A106,SETOP,5,0),IF(I106="CPU",VLOOKUP(A106,COMPOSIÇÃO,13,0),VLOOKUP(A106,COTAÇÃO,15,0)))) -> 19.64 | M106: 9.82
A107: DAC-13.6 | B107: PLACA FOTOLUMINESCENTE "E2" - 300 x 300 MM | I107: CPU | J107: UN | K107: 1 | M107: =SUM(M108:M109) -> 27.13
A108: ED-50199 | B108: =IF(I108="SINAPI",VLOOKUP(A108,SINAPI,2,0),IF(I108="SETOP",VLOOKUP(A108,SETOP,3,0),IF(I108="CPU",VLOOKUP(A108,COMPOSIÇÃO,2,0),VLOOKUP(A108,COTAÇÃO,3,0)))) -> PLACA FOTOLUMINESCENTE "E5" - 300 X 300 MM | I108: SETOP | J108: UN | K108: 1 | L108: 17.31 | M108: =K108*L108 -> 17.31
A109: 88309 | B109: PEDREIRO COM ENCARGOS COMPLEMENTARES | I109: SINAPI | J109: =IF(I109="SINAPI",VLOOKUP(A109,SINAPI,3,0),IF(I109="SETOP",VLOOKUP(A109,SETOP,4,0),IF(I109="CPU",VLOOKUP(A109,COMPOSIÇÃO,10,0),VLOOKUP(A109,COTAÇÃO,12,0)))) -> H | K109: 0.5 | L109: =IF(I109="SINAPI",VLOOKUP(A109,SINAPI,4,0),IF(I109="SETOP",VLOOKUP(A109,SETOP,5,0),IF(I109="CPU",VLOOKUP(A109,COMPOSIÇÃO,13,0),VLOOKUP(A109,COTAÇÃO,15,0)))) -> 19.64 | M109: 9.82
A110: DAC-13.7 | B110: KIT HIDRANTE - ADAPTADOR STORZ 2 1/2", 2 MANGUEIRAS DE INCÊNDIO DE 15M, REDUÇÃO DE 2 1/2" X 1 1/2" E ESGUICHO EM LATÃO 1 1/2" - FORNECIMENTO E INSTALAÇÃO | I110: CPU | J110: UN | K110: 1 | M110: =SUM(M111:M115) -> 695.84
A111: 10899 | B111: =IF(I111="SINAPI",VLOOKUP(A111,SINAPI,2,0),IF(I111="SETOP",VLOOKUP(A111,SETOP,3,0),IF(I111="CPU",VLOOKUP(A111,COMPOSIÇÃO,2,0),VLOOKUP(A111,COTAÇÃO,3,0)))) -> ADAPTADOR, EM LATAO, ENGATE RAPIDO 2 1/2" X ROSCA INTERNA 5 FIOS 2 1/2", PARA INSTALACAO PREDIAL DE COMBATE A INCENDIO | I111: SINAPI | J111: =IF(I111="SINAPI",VLOOKUP(A111,SINAPI,3,0),IF(I111="SETOP",VLOOKUP(A111,SETOP,4,0),IF(I111="CPU",VLOOKUP(A111,COMPOSIÇÃO,10,0),VLOOKUP(A111,COTAÇÃO,12,0)))) -> UN | K111: 1 | L111: 17.31 | M111: =K111*L111 -> 17.31
A112: 21029 | B112: MANGUEIRA DE INCENDIO, TIPO 1, DE 1 1/2", COMPRIMENTO = 15 M, TECIDO EM FIO DE POLIESTER E TUBO INTERNO EM BORRACHA SINTETICA, COM UNIOES ENGATE RAPIDO | I112: SINAPI | J112: UN | K112: 2 | L112: =IF(I112="SINAPI",VLOOKUP(A112,SINAPI,4,0),IF(I112="SETOP",VLOOKUP(A112,SETOP,5,0),IF(I112="CPU",VLOOKUP(A112,COMPOSIÇÃO,13,0),VLOOKUP(A112,COTAÇÃO,15,0)))) -> 280 | M112: 560
A113: 37555 | B113: ESGUICHO JATO REGULAVEL, TIPO ELKHART, ENGATE RAPIDO 2 1/2", PARA COMBATE A INCENDIO | I113: SINAPI | J113: UN | K113: 1 | L113: 17.31 | M113: =K113*L113 -> 17.31
A114: 88248 | B114: AUXILIAR DE ENCANADOR OU BOMBEIRO HIDRÁULICO COM ENCARGOS COMPLEMENTARES | I114: SINAPI | J114: H | K114: 3 | L114: =IF(I114="SINAPI",VLOOKUP(A114,SINAPI,4,0),IF(I114="SETOP",VLOOKUP(A114,SETOP,5,0),IF(I114="CPU",VLOOKUP(A114,COMPOSIÇÃO,13,0),VLOOKUP(A114,COTAÇÃO,15,0)))) -> 14.59 | M114: 43.77
A115: 88267 | B115: ENCANADOR OU BOMBEIRO HIDRÁULICO COM ENCARGOS COMPLEMENTARES | I115: SINAPI | J115: =IF(I115="SINAPI",VLOOKUP(A115,SINAPI,3,0),IF(I115="SETOP",VLOOKUP(A115,SETOP,4,0),IF(I115="CPU",VLOOKUP(A115,COMPOSIÇÃO,10,0),VLOOKUP(A115,COTAÇÃO,12,0)))) -> H | K115: 3 | L115: =IF(I115="SINAPI",VLOOKUP(A115,SINAPI,4,0),IF(I115="SETOP",VLOOKUP(A115,SETOP,5,0),IF(I115="CPU",VLOOKUP(A115,COMPOSIÇÃO,13,0),VLOOKUP(A115,COTAÇÃO,15,0)))) -> 19.15 | M115: =K115*L115 -> 57.45
A116: DAC-13.8 | B116: REVISÃO CASA DE BOMBAS | I116: CPU | J116: UN | K116: 1 | M116: =SUM(M117:M119) -> 470.86
A117: 91929 | B117: =IF(I117="SINAPI",VLOOKUP(A117,SINAPI,2,0),IF(I117="SETOP",VLOOKUP(A117,SETOP,3,0),IF(I117="CPU",VLOOKUP(A117,COMPOSIÇÃO,2,0),VLOOKUP(A117,COTAÇÃO,3,0)))) -> CABO DE COBRE FLEXÍVEL ISOLADO, 4 MM², ANTI-CHAMA 0,6/1,0 KV, PARA CIRCUITOS TERMINAIS - FORNECIMENTO E INSTALAÇÃO. AF_12/2015 | I117: SINAPI | J117: M | K117: 10 | L117: 17.31 | M117: =K117*L117 -> 173.1
A118: 88265 | B118: ELETRICISTA INDUSTRIAL COM ENCARGOS COMPLEMENTARES | I118: SINAPI | J118: H | K118: 8 | L118: =IF(I118="SINAPI",VLOOKUP(A118,SINAPI,4,0),IF(I118="SETOP",VLOOKUP(A118,SETOP,5,0),IF(I118="CPU",VLOOKUP(A118,COMPOSIÇÃO,13,0),VLOOKUP(A118,COTAÇÃO,15,0)))) -> 19.91 | M118: 159.28
A119: 88267 | B119: ENCANADOR OU BOMBEIRO HIDRÁULICO COM ENCARGOS COMPLEMENTARES | I119: SINAPI | J119: H | K119: 8 | L119: 17.31 | M119: 138.48
A120: DAC-13.9 | B120: INSTALAÇÃO DOS CABOS PARA ALARME DE INCÊNDIO 2 VIAS | I120: CPU | J120: UN | K120: 1 | M120: =SUM(M121:M122) -> 194.4
A121: 88247 | B121: =IF(I121="SINAPI",VLOOKUP(A121,SINAPI,2,0),IF(I121="SETOP",VLOOKUP(A121,SETOP,3,0),IF(I121="CPU",VLOOKUP(A121,COMPOSIÇÃO,2,0),VLOOKUP(A121,COTAÇÃO,3,0)))) -> AUXILIAR DE ELETRICISTA COM ENCARGOS COMPLEMENTARES | I121: SINAPI | J121: =IF(I121="SINAPI",VLOOKUP(A121,SINAPI,3,0),IF(I121="SETOP",VLOOKUP(A121,SETOP,4,0),IF(I121="CPU",VLOOKUP(A121,COMPOSIÇÃO,10,0),VLOOKUP(A121,COTAÇÃO,12,0)))) -> H | K121: 6 | L121: =IF(I121="SINAPI",VLOOKUP(A121,SINAPI,4,0),IF(I121="SETOP",VLOOKUP(A121,SETOP,5,0),IF(I121="CPU",VLOOKUP(A121,COMPOSIÇÃO,13,0),VLOOKUP(A121,COTAÇÃO,15,0)))) -> 15.09 | M121: =K121*L121 -> 90.54
A122: 88264 | B122: ELETRICISTA COM ENCARGOS COMPLEMENTARES | I122: SINAPI | J122: H | K122: 6 | L122: 17.31 | M122: 103.86
A123: 14 | B123: SISTEMA DE PROTEÇÃO CONTRA DESCARGAS ATMOSFÉRICAS
A124: DAC-14.1 | B124: CABO DE COBRE NU 50 MM2 MEIO DURO - FORNECIMENTO E INSTALAÇÃO | I124: CPU | J124: M | K124: 1 | M124: =SUM(M125:M126) -> 38.52424
A125: 867 | B125: =IF(I125="SINAPI",VLOOKUP(A125,SINAPI,2,0),IF(I125="SETOP",VLOOKUP(A125,SETOP,3,0),IF(I125="CPU",VLOOKUP(A125,COMPOSIÇÃO,2,0),VLOOKUP(A125,COTAÇÃO,3,0)))) -> CABO DE COBRE NU 50 MM2 MEIO-DURO | I125: SINAPI | J125: =IF(I125="SINAPI",VLOOKUP(A125,SINAPI,3,0),IF(I125="SETOP",VLOOKUP(A125,SETOP,4,0),IF(I125="CPU",VLOOKUP(A125,COMPOSIÇÃO,10,0),VLOOKUP(A125,COTAÇÃO,12,0)))) -> M | K125: 1 | L125: =IF(I125="SINAPI",VLOOKUP(A125,SINAPI,4,0),IF(I125="SETOP",VLOOKUP(A125,SETOP,5,0),IF(I125="CPU",VLOOKUP(A125,COMPOSIÇÃO,13,0),VLOOKUP(A125,COTAÇÃO,15,0)))) -> 37.89 | M125: =K125*L125 -> 37.89
A126: 88264 | B126: =IF(I126="SINAPI",VLOOKUP(A126,SINAPI,2,0),IF(I126="SETOP",VLOOKUP(A126,SETOP,3,0),IF(I126="CPU",VLOOKUP(A126,COMPOSIÇÃO,2,0),VLOOKUP(A126,COTAÇÃO,3,0)))) -> ELETRICISTA COM ENCARGOS COMPLEMENTARES | I126: SINAPI | J126: =IF(I126="SINAPI",VLOOKUP(A126,SINAPI,3,0),IF(I126="SETOP",VLOOKUP(A126,SETOP,4,0),IF(I126="CPU",VLOOKUP(A126,COMPOSIÇÃO,10,0),VLOOKUP(A126,COTAÇÃO,12,0)))) -> H | K126: 0.032 | L126: =IF(I126="SINAPI",VLOOKUP(A126,SINAPI,4,0),IF(I126="SETOP",VLOOKUP(A126,SETOP,5,0),IF(I126="CPU",VLOOKUP(A126,COMPOSIÇÃO,13,0),VLOOKUP(A126,COTAÇÃO,15,0)))) -> 19.82 | M126: =K126*L126 -> 0.63424
A127: DAC-14.2 | B127: INSTALAÇÃO DO TERMINAL AÉREO 300MM | I127: CPU | J127: UN | K127: 1 | M127: =SUM(M128:M129) -> 947.04
A128: 88309 | B128: =IF(I128="SINAPI",VLOOKUP(A128,SINAPI,2,0),IF(I128="SETOP",VLOOKUP(A128,SETOP,3,0),IF(I128="CPU",VLOOKUP(A128,COMPOSIÇÃO,2,0),VLOOKUP(A128,COTAÇÃO,3,0)))) -> PEDREIRO COM ENCARGOS COMPLEMENTARES | I128: SINAPI | J128: =IF(I128="SINAPI",VLOOKUP(A128,SINAPI,3,0),IF(I128="SETOP",VLOOKUP(A128,SETOP,4,0),IF(I128="CPU",VLOOKUP(A128,COMPOSIÇÃO,10,0),VLOOKUP(A128,COTAÇÃO,12,0)))) -> H | K128: 24 | L128: =IF(I128="SINAPI",VLOOKUP(A128,SINAPI,4,0),IF(I128="SETOP",VLOOKUP(A128,SETOP,5,0),IF(I128="CPU",VLOOKUP(A128,COMPOSIÇÃO,13,0),VLOOKUP(A128,COTAÇÃO,15,0)))) -> 19.64 | M128: =K128*L128 -> 471.36
A129: 88264 | B129: ELETRICISTA COM ENCARGOS COMPLEMENTARES | I129: SINAPI | J129: H | K129: 24 | L129: 19.82 | M129: 475.68
A130: DAC-14.3 | B130: CAIXA DE INSPEÇÃO ATERRAMENTO - FORNECIMENTO E INSTALAÇÃO | I130: CPU | J130: UN | K130: 1 | M130: =SUM(M131:M132) -> 33.43
A131: 98111 | B131: =IF(I131="SINAPI",VLOOKUP(A131,SINAPI,2,0),IF(I131="SETOP",VLOOKUP(A131,SETOP,3,0),IF(I131="CPU",VLOOKUP(A131,COMPOSIÇÃO,2,0),VLOOKUP(A131,COTAÇÃO,3,0)))) -> CAIXA DE INSPEÇÃO PARA ATERRAMENTO, CIRCULAR, EM POLIETILENO, DIÂMETRO INTERNO = 0,3 M. AF_12/2020 | I131: SINAPI | J131: =IF(I131="SINAPI",VLOOKUP(A131,SINAPI,3,0),IF(I131="SETOP",VLOOKUP(A131,SETOP,4,0),IF(I131="CPU",VLOOKUP(A131,COMPOSIÇÃO,10,0),VLOOKUP(A131,COTAÇÃO,12,0)))) -> UN | K131: 1 | L131: =IF(I131="SINAPI",VLOOKUP(A131,SINAPI,4,0),IF(I131="SETOP",VLOOKUP(A131,SETOP,5,0),IF(I131="CPU",VLOOKUP(A131,COMPOSIÇÃO,13,0),VLOOKUP(A131,COTAÇÃO,15,0)))) -> 23.61 | M131: =K131*L131 -> 23.61
A132: 88309 | B132: PEDREIRO COM ENCARGOS COMPLEMENTARES | I132: SINAPI | J132: H | K132: 0.5 | L132: 19.64 | M132: 9.82
A133: DAC-14.4 | B133: INSTALAÇÃO DA CAIXA DE EQUALIZAÇÃO 9 TERMINAIS | I133: CPU | J133: UN | K133: 1 | M133: =SUM(M134:M135) -> 59.19
A134: 88264 | B134: =IF(I134="SINAPI",VLOOKUP(A134,SINAPI,2,0),IF(I134="SETOP",VLOOKUP(A134,SETOP,3,0),IF(I134="CPU",VLOOKUP(A134,COMPOSIÇÃO,2,0),VLOOKUP(A134,COTAÇÃO,3,0)))) -> ELETRICISTA COM ENCARGOS COMPLEMENTARES | I134: SINAPI | J134: =IF(I134="SINAPI",VLOOKUP(A134,SINAPI,3,0),IF(I134="SETOP",VLOOKUP(A134,SETOP,4,0),IF(I134="CPU",VLOOKUP(A134,COMPOSIÇÃO,10,0),VLOOKUP(A134,COTAÇÃO,12,0)))) -> H | K134: 1.5 | L134: =IF(I134="SINAPI",VLOOKUP(A134,SINAPI,4,0),IF(I134="SETOP",VLOOKUP(A134,SETOP,5,0),IF(I134="CPU",VLOOKUP(A134,COMPOSIÇÃO,13,0),VLOOKUP(A134,COTAÇÃO,15,0)))) -> 19.82 | M134: =K134*L134 -> 29.73
A135: 88309 | B135: PEDREIRO COM ENCARGOS COMPLEMENTARES | I135: SINAPI | J135: H | K135: 1.5 | L135: 19.64 | M135: 29.46
D138: RESPONSÁVEL TÉCNICO: | G138: FLÁVIA CRISTINA BARBOSA
G139: CREA MG-187.842/D

Sheet DIVERSAS
B1: DIVERSAS
A2: CÓDIGO | B2: DESCRIÇÃO | C2: UNIDADE | D2: PREÇO
A3: 1 | B3: CACA | C3: 5 | D3: 5

Sheet COT
A2: ="COTAÇÃO - " &A4 -> COTAÇÃO - REFORMA DA ESCOLA MUNICIPAL PROFESSORA CLARISSE TOLEDO | N2: Revisão: | O2: =ORC!K8 -> R00
A3: Projeto: | E3: Cliente: | N3: Responsável:
A4: =ORC!B10 -> REFORMA DA ESCOLA MUNICIPAL PROFESSORA CLARISSE TOLEDO
A7: Data: | C7: =ORC!J10 -> 2021-06-02
A8: BDI - 1 | C8: =ORC!J11 -> 0.2652 | N8: SINAPI ABR/2021
A9: BDI - 2 | C9: =ORC!J12 -> 0.2025 | N9: SETOP JAN/2021
A10: ="PROJETO EXECUTIVO - "&A4 -> PROJETO EXECUTIVO - REFORMA DA ESCOLA MUNICIPAL PROFESSORA CLARISSE TOLEDO
A12: COT-5.1 | C12: COBERTURA EM ESTRUTURA METÁLICA E POLICARBONATO - FORNECIMENTO E INSTALAÇÃO | L12: UN | O12: =MEDIAN(O14:XFD16) -> 78500
B13: EMPRESA | D13: CIDADE | E13: LINK | I13: CNPJ | K13: CONTATO | L13: UN | M13: VALOR | N13: FRETE | O13: TOTAL
B14: SOLUSOL COBERTURAS | D14: PIQUERI/SP | E14: https://www.solusoltoldos.com.br/index.html | I14: 15.351.137/0001-68 | K14: (11) 94782-1121 | L14: UN | M14: 78500 | O14: =M14+N14 -> 78500
B15: UNI - CONSTRUÇÕES METÁLICAS | D15: GUARULHOS/SP | I15: 10.375.586/0001-22 | K15: (11) 94329-2999 | L15: UN | M15: 80141.4 | O15: =M15+N15 -> 80141.4
B16: DI TOLDOS | D16: SÃO PAULO/SP | E16: http://ditoldos.com.br/toldos/ | I16: 35.211.726/0001-58 | K16: (11) 3714 - 4989 | L16: UN | M16: 69000 | O16: =M16+N16 -> 69000
A17: COT-5.2 | C17: PLACA EM POLICARBONATO ALVEOLAR CRISTAL | L17: M2 | O17: =MEDIAN(O19:XFD21) -> 78.72
B18: EMPRESA | D18: CIDADE | E18: LINK | I18: CNPJ | K18: CONTATO | L18: UNIDADE | M18: VALOR | N18: FRETE | O18: TOTAL
B19: AMERICANAS | E19: https://www.americanas.com.br/produto/172772496?opn=YSMESP&sellerid=11168469000150&cor=CRISTAL&tamanho=105x600 | I19: 00.776.574/0006-60 | K19: (11) 4003 - 4848 | L19: M2 | M19: 59.67 | N19: 19.05 | O19: =M19+N19 -> 78.72
B20: LEROY MERLIN | E20: https://www.leroymerlin.com.br/chapa-de-policarbonato-alveolar-1,05x6-6mm-cristal_1566985864 | I20: 01.438.784/0048-60 | K20: (11) 4007 - 1380 | L20: M2 | M20: 58.42 | N20: 23.45 | O20: =M20+N20 -> 81.87
B21: MAGAZINE LUIZA | E21: https://www.magazineluiza.com.br/chapa-de-policarbonato-alveolar-fume-105x600-6-milimetros-cober/p/dh16623c3a/rc/rcnm/?&seller_id=coberchapas | I21: 47.960.950/1088-36 | K21: 0800 773 3838 | L21: M2 | M21: 58.42 | N21: 17.46 | O21: =M21+N21 -> 75.88
A22: COT-10.1 | C22: SUPORTE PARA PIA | L22: UN | O22: =MEDIAN(O24:XFD26) -> 34.6
B23: EMPRESA | D23: CIDADE | E23: LINK | I23: CNPJ | K23: CONTATO | L23: UNIDADE | M23: VALOR | N23: FRETE | O23: TOTAL
B24: AMERICANAS | E24: https://www.americanas.com.br/produto/2163864751?WT.srch=1&opn=YSMESP&sellerid=18552346000168&epar=bp_pl_00_go_todos-os-produtos_geral_gmv&acc=e789ea56094489dffd798f86ff51c7a9&i=56f30ab2eec3dfb1f8ebb847&o=5f787a36f8e95eac3db941aa&gclid=Cj0KCQjwktKFBhCkARIsAJeDT0hycqWMa8PRU6PYe-GQpwA-f1LsJ3Hzcjz4zzmRZiIkb9Fd1bYo6TIaAgS-EALw_wcB&cor=Branco | I24: 00.776.574/0006-60 | K24: (11) 4003 - 4848 | L24: UN | M24: 23.4 | N24: 10.33 | O24: =M24+N24 -> 33.73
B25: CASAS BAHIA | E25: https://www.casasbahia.com.br/suporte-de-pias-e-bancadas-de-parafusar-br-50-cm-par-1509486537/p/1509486537?utm_medium=Cpc&utm_source=GP_PLA&IdSku=1509486537&idLojista=12231&utm_campaign=3P_casa-e-constru%C3%A7%C3%A3o_SSC&gclid=Cj0KCQjwktKFBhCkARIsAJeDT0jpapWPGgs0xJPM67vhnkfxV--t22ZpOlJ5oijubGGetpaOH8XbGAUaAs2WEALw_wcB | I25: 33.041.260/0652-90 | K25: (11) 4003 - 2773 | L25: UN | M25: 29.95 | N25: 4.65 | O25: =M25+N25 -> 34.6
B26: MAGAZINE LUIZA | E26: https://www.magazineluiza.com.br/suporte-para-pia-bancada-tanque-fercar/p/gb16dj5gce/rc/rcnm/?&seller_id=centralferferramentas&&utm_source=google&utm_medium=pla&utm_campaign=&partner_id=58976&gclid=Cj0KCQjwktKFBhCkARIsAJeDT0itAXxmmWG07SRTB4YFTANALvEfEz_-6WTq_Ser_DWZ4NEDYdP-eOYaAgK_EALw_wcB | I26: 47.960.950/1088-36 | K26: 0800 773 3838 | L26: UN | M26: 26 | N26: 9.95 | O26: =M26+N26 -> 35.95
A27: COT-10.2 | C27: ACABAMENTO PARA REGISTRO | L27: UN | O27: =MEDIAN(O29:XFD30) -> 89.655
B28: EMPRESA | D28: CIDADE | E28: LINK | I28: CNPJ | K28: CONTATO | L28: UNIDADE | M28: VALOR | N28: FRETE | O28: TOTAL
B29: AMERICANAS | E29: https://www.americanas.com.br/produto/14630836/acabamento-para-registro-c-40-1-2-3-4-e-1-meber-metais-cromado?sellerid=10368118000201&opn=YSMESP&WT.srch=1&epar=bp_pl_00_go_pla_casaeconst_geral_gmv&acc=e789ea56094489dffd798f86ff51c7a9&i=55ef63fd6ed24cafb524a51c&o=5762eb12eec3dfb1f8b0f1c1&gclid=CjwKCAjwtdeFBhBAEiwAKOIy50pSmvYV3xkOl2ewzgYb8JbSKNr3FxPJ8eDJoj4orjeVO-nv-79BeRoCP3cQAvD_BwE | I29: 00.776.574/0006-60 | K29: (11) 4003 - 4848 | L29: UN | M29: 41.9 | N29: 22.31 | O29: =M29+N29 -> 64.21
B30: MADEIRA MADEIRA | E30: https://www.madeiramadeira.com.br/acabamento-para-registro-c-40-1-2-3-4-e-1-meber-metais-172046.html?origem=pla-172046&utm_source=google&utm_medium=cpc&utm_content=acabamento-para-registro-de-banheiro&utm_term=&utm_id=1022305331&gclid=CjwKCAjwtdeFBhBAEiwAKOIy5zxJbNYStYMk8ev5TjtW4IMNoW6YXbxUGu3xT8bZFNOIgezRO-5mjRoCuN8QAvD_BwE | I30: 10.490.181/0001-35 | L30: UN | M30: 48.35 | N30: 66.75 | O30: =M30+N30 -> 115.1
A31: COT-10.3 | C31: RALO GRELHA INOX QUADRADO - 15 x 15 CM COM FECHO | L31: UN | O31: =MEDIAN(O33:XFD35) -> 41.56
B32: EMPRESA | D32: CIDADE | E32: LINK | I32: CNPJ | K32: CONTATO | L32: UNIDADE | M32: VALOR | N32: FRETE | O32: TOTAL
B33: AMERICANAS | E33: https://www.americanas.com.br/produto/2811811270?opn=YSMESP&sellerid=21816213000166&epar=bp_pl_00_go_pla_casaeconst_geral_gmv&WT.srch=1&acc=e789ea56094489dffd798f86ff51c7a9&i=5cc276fc49f937f625969053&o=60106ff9f8e95eac3d987660&gclid=CjwKCAjwtdeFBhBAEiwAKOIy5yBZ2EjxHYAfM7hP-HkRQC-O-gBWgsgJCJuTX_FkGEuhdCNy-v9gExoCDtEQAvD_BwE | I33: 00.776.574/0006-60 | K33: (11) 4003 - 4848 | L33: UN | M33: 21.9 | N33: 19.66 | O33: =M33+N33 -> 41.56
B34: SHOPTIME | E34: https://www.shoptime.com.br/produto/2811811270/ralo-grelha-inox-para-banheiro-quadrado-15x15-com-fecho?WT.srch=1&acc=a76c8289649a0bef0524c56c85e71570&epar=bp_pl_dr_go_ssccasaeconst_geral_gmv&gclid=CjwKCAjwtdeFBhBAEiwAKOIy52Xt5OMuBoDryRdR-T1HQE6bAPp2idkDY5np34NVy6xNtgCrDe2sFRoCr44QAvD_BwE&i=5d80672649f937f62536be96&o=60106b1df8e95eac3d983caa&opn=GOOGLEXML&sellerid=21816213000166 | I34: 00.776.574/0006-60 | K34: (11) 4003 - 9898 | L34: UN | M34: 21.9 | N34: 19.66 | O34: =M34+N34 -> 41.56
B35: MAGAZINE LUIZA | E35: https://www.magazineluiza.com.br/ralo-grelha-inox-para-banheiro-quadrado-15x15-com-fecho-lhd-metais/p/chb7d1jdcj/cj/ragl/?&seller_id=lojahidraulica&&utm_source=google&utm_medium=pla&utm_campaign=&partner_id=58940&gclid=CjwKCAjwtdeFBhBAEiwAKOIy5643sahgVnfikqHllIJltJ2kAXqcNShfWpK3mSy6wFaN7QvEpGSs6RoC42oQAvD_BwE | I35: 47.960.950/1088-36 | K35: 0800 773 3838 | L35: UN | M35: 19.71 | N35: 17.76 | O35: =M35+N35 -> 37.47
A36: COT-12.1 | C36: SUPORTE PARA LUMINÁRIA SOBREPOR TUBULAR 2 LÂMPADAS RETANGULAR | L36: UN | O36: =MEDIAN(O38:XFD40) -> 97.02
B37: EMPRESA | D37: CIDADE | E37: LINK | I37: CNPJ | K37: CONTATO | L37: UNIDADE | M37: VALOR | N37: FRETE | O37: TOTAL
B38: ELETRORASTRO | E38: https://www.eletrorastro.com.br/produto/luminaria-sobrepor-tubular-2-lampadas-retangular-60cm-lumepetro-82186?utm_source=google&utm_medium=cpc&utm_campaign= | I38: 86.014.793/0001-50 | K38: (41) 3661-3100 | L38: UN | M38: 41.32 | N38: 28.18 | O38: =M38+N38 -> 69.5
B39: CASAS BAHIA | E39: https://www.casasbahia.com.br/luminaria-sobrepor-tubular-2-lampadas-retangular-60cm-lumepetro-1509526025/p/1509526025?utm_medium=Cpc&utm_source=google_freelisting&IdSku=1509526025&idLojista=35903 | I39: 33.041.260/0652-90 | K39: (11) 3666-0166 | L39: UN | M39: 53.12 | N39: 43.9 | O39: =M39+N39 -> 97.02
B40: PONTO FRIO | E40: https://www.pontofrio.com.br/luminaria-sobrepor-tubular-2-lampadas-retangular-60cm-lumepetro-1509526025/p/1509526025?utm_medium=cpc&utm_source=google_freelisting&IdSku=1509526025&idLojista=35903 | I40: 33.041.260/0652-90 | K40: (11) 4002-3050 | L40: UN | M40: 53.12 | N40: 43.9 | O40: =M40+N40 -> 97.02
A41: COT-12.2 | C41: LUMINÁRIA TUBULAR DE SOBREPOR LED SLIM 20W | L41: UN | O41: =MEDIAN(O43:XFD45) -> 55.84
B42: EMPRESA | D42: CIDADE | E42: LINK | I42: CNPJ | K42: CONTATO | L42: UNIDADE | M42: VALOR | N42: FRETE | O42: TOTAL
B43: MAGAZINE LUIZA | E43: https://www.magazineluiza.com.br/luminaria-tubular-de-sobrepor-led-slim-20w-60cm-branco-frio-super-led/p/gk5a8gfhkk/cj/luri/?&seller_id=123comprou&&utm_source=google&utm_medium=pla&utm_campaign=&partner_id=57298&gclid=CjwKCAjw47eFBhA9EiwAy8kzNETZ-t8K-17Dzp7ZsYTvvvmn-TQcoLSu1CqEA8lHqyDMqR0nWnVQhBoCbRwQAvD_BwE | I43: 47.960.950/001-21 | K43: (16) 3711-2146 | L43: UN | M43: 29.9 | N43: 17.76 | O43: =M43+N43 -> 47.66
B44: 123 COMPROU | E44: https://www.123comprou.com.br/luminaria-led-20w-60cm-branco-frio?utm_source=Site&utm_medium=GoogleMerchant&utm_campaign=GoogleMerchant&gclid=CjwKCAjw47eFBhA9EiwAy8kzNNp_SL0816gpS11S9jSWSCGgwU4D01fJstdP1aTTRjkxL4h3mxF71RoCmnIQAvD_BwE | I44: 18.983.263/0001-23 | K44: (11) 3090-1236 | L44: UN | M44: 38.85 | N44: 16.99 | O44: =M44+N44 -> 55.84
B45: AMERICANAS | E45: https://www.americanas.com.br/produto/3295549008?opn=YSMESP&sellerid=21349288000184&epar=bp_pl_00_go_mv_todas_geral_gmv&WT.srch=1&acc=e789ea56094489dffd798f86ff51c7a9&i=5db900e149f937f625975809&o=60a3f197f8e95eac3d713267&gclid=CjwKCAjw47eFBhA9EiwAy8kzNMU3L0e7gf7vWs2TMi8rEKopmkUwwrZ-ndv824TsZpi1ykQsfvcn1BoC-I0QAvD_BwE&voltagem=%5BBivolt%5D | I45: 33.014.556/0001-96 | K45: (11) 4003-4848 | L45: UN | M45: 60.8 | N45: 4.99 | O45: =M45+N45 -> 65.79
A46: COT-12.3 | C46: ARANDELA TARTARUGA OVAL 23CM ALUMÍNIO E-27 1 LÂMPADA Max 60 w MEIA CANA | L46: UN | O46: =MEDIAN(O48:XFD50) -> 60.25
B47: EMPRESA | D47: CIDADE | E47: LINK | I47: CNPJ | K47: CONTATO | L47: UNIDADE | M47: VALOR | N47: FRETE | O47: TOTAL
B48: ELETRO LL | E48: https://www.eletroll.com.br/iluminacao/luminaria/arandela-tartaruga-de-aluminio-60w-br | I48: 07.169.299/0001-51 | K48: (43) 3027-6565 | L48: UN | M48: 25.73 | N48: 30.22 | O48: =M48+N48 -> 55.95
B49: MADEIRA MADEIRA | E49: https://www.madeiramadeira.com.br/arandela-tartaruga-oval-23cm-aluminio-e-27-1-lampada-max-60w-meia-cana-preta-1112403.html | I49: 10.490.181/0001-35 | L49: UN | M49: 38.91 | N49: 27.21 | O49: =M49+N49 -> 66.12
B50: LEROY MERLIN | E50: https://www.leroymerlin.com.br/arandela-tartaruga-oval-23cm-aluminio-e-27-1-lampada-max-60w-com-grade-branca_1566994086?rrMvt=2 | I50: 01.438.784/0048-60 | K50: (11) 4007-1380 | L50: UN | M50: 43.72 | N50: 16.53 | O50: =M50+N50 -> 60.25
A51: COT-13.1 | C51: ACIONADOR BOTOEIRA BOMBA DE INCÊNDIO COM MARTELO | L51: UN | O51: =MEDIAN(O53:XFD54) -> 101.32
B52: EMPRESA | D52: CIDADE | E52: LINK | I52: CNPJ | K52: CONTATO | L52: UNIDADE | M52: VALOR | N52: FRETE | O52: TOTAL
B53: QUALITY | E53: https://www.lojaqualitytubos.com.br/botoeira-de-bomba-com-martelo-p1000615?utm_source=google&utm_medium=upc&utm_campaign=qualitytubos&gclid=Cj0KCQiAyoeCBhCTARIsAOfpKxgV4tsy-nLSqYJOZ6SZXSMwjkOGBfRS3FzQIn8fyivBHDUobgZEyH4aAuHuEALw_wcB | I53: 29.851.289/0001-34 | K53: (11) 3107-0000 | L53: UN | M53: 59.79 | N53: 47.06 | O53: =M53+N53 -> 106.85
B54: R E A EXTINTORES | E54: https://www.raextintores.com.br/botoeira-bomba-de-incendio-com-martelo?utm_source=Site&utm_medium=GoogleMerchant&utm_campaign=GoogleMerchant | I54: 14.314.086/0001-31 | K54: (11) 98062-9725 | L54: UN | M54: 69.99 | N54: 25.8 | O54: =M54+N54 -> 95.79
A55: COT-13.2 | C55: CENTRAL DE ALARME DIGITAL ENDEREÇÁVEL | L55: UN | O55: =MEDIAN(O57:O59) -> 1499.08
B56: EMPRESA | D56: CIDADE | E56: LINK | I56: CNPJ | K56: CONTATO | L56: UNIDADE | M56: VALOR | N56: FRETE | O56: TOTAL
B57: ZIKO SHOP | E57: https://www.zikoshop.com.br/loja/produto.php?loja=560520&IdProd=2397 | I57: 18.394.372/0001-05 | K57: (11) 4003-1020 | L57: UN | M57: 1389.47 | N57: 109.61 | O57: =M57+N57 -> 1499.08
B58: MAGAZINE LUIZA | E58: https://www.magazineluiza.com.br/central-de-alarme-de-incendio-intelbras-cie-1125-enderecavel/p/kebk6j7c63/cj/seps/?&1=1&seller_id=netalarmes2&&utm_source=google&utm_medium=pla&utm_campaign=&partner_id=54222&gclid=CjwKCAjwps75BRAcEiwAEiACMSsdsC0VJ92rRVRJllcXXGizHevcFbt5ANba4lwVS0ArDYQ1RYwVjBoCw2EQAvD_BwE | I58: 47.960.950/1088-36 | K58: (11) 4003-4848 | L58: UN | M58: 1625.71 | N58: 67.9 | O58: =M58+N58 -> 1693.61
B59: NET ALARMES | E59: https://www.netalarmes.com.br/alarme/alarme-de-incendio/central-de-alarme-de-incendio-intelbras-cie-1125-enderecavel?parceiro=8046&parceiro=8764&gclid=CjwKCAjwps75BRAcEiwAEiACMX5bNdmKvaM4YwFl3zNXDwKMtigmuevwVLPKrWA6Y3YwCpdxUOyfkBoCHKYQAvD_BwE | K59: (11) 4003-5544 | L59: UN | M59: 1333.82 | N59: 89.56 | O59: =M59+N59 -> 1423.38
A60: COT-13.3 | C60: CABOS PARA ALARME DE INCÊNDIO 2 VIAS - ROLO COM 100 METROS | L60: UN | O60: =MEDIAN(O62:O64) -> 1049.64
B61: EMPRESA | D61: CIDADE | E61: LINK | I61: CNPJ | K61: CONTATO | L61: UNIDADE | M61: VALOR | N61: FRETE | O61: TOTAL
B62: CASAS BAHIA | E62: https://www.casasbahia.com.br/MaterialparaConstrucao/SegurancaFerramentas/AlarmesSensoresFechaduras/cabos-para-alarme-de-incendio-2-vias-de-150mm-dni-ppb215-1500065520.html?utm_medium=Cpc&utm_source=GP_PLA&IdSku=1500065520&idLojista=10766&utm_campaign=group2_smart-shopping_3p&gclid=CjwKCAjwps75BRAcEiwAEiACMTkB_6faZkVWR-UgdBN4hu2alMR-NDy-BUVBh81b0YMMHOveMENgPRoCwlMQAvD_BwE | I62: 33.041.260/0652-90 | K62: (14) 4003-4336 | L62: UN | M62: 1000.6 | N62: 82.78 | O62: =M62+N62 -> 1083.38
B63: MAGAZINE LUIZA | E63: https://www.magazineluiza.com.br/cabos-para-alarme-de-incendio-2-vias-de-150mm2-dni-ppb215-dni-key-west/p/hk8e7c7h37/cj/csrm/?&1=1&seller_id=dkwstore&&utm_source=google&utm_medium=pla&utm_campaign=&partner_id=54222&gclid=CjwKCAjwps75BRAcEiwAEiACMfvfJo31QBm9VXAuKfMOsGkOYhWiSrTn7-WjTHnQnTDH3an75oIeTxoC5bcQAvD_BwE | I63: 47.960.950/1088-36 | K63: 0800 773 3838 | L63: UN | M63: 1000.6 | N63: 49.04 | O63: =M63+N63 -> 1049.64
B64: AMERICANAS | E64: https://www.americanas.com.br/produto/107975697/cabos-para-alarme-de-incendio-2-vias-de-1-50mm2-dni-ppb215?WT.srch=1&acc=e789ea56094489dffd798f86ff51c7a9&epar=bp_pl_00_go_pla_casaeconst_geral_gmv&gclid=CjwKCAjwps75BRAcEiwAEiACMfesEiuONQoQjHhMxN9MoSWrf7D5JGWHDrV_5ZCLXj3KcrBApr51VRoCFHAQAvD_BwE&i=573fdde1eec3dfb1f8008dd8&o=5d4c3ec66c28a3cb505a14e3&opn=YSMESP&sellerid=15746477000198 | I64: 00.776.574/0006-60 | K64: (11) 4003-4848 | L64: UN | M64: 1024.4 | N64: 12 | O64: =M64+N64 -> 1036.4
A65: COT-13.4 | C65: PLACA FOTOLUMINESCENTE "M1" | L65: UN | O65: =MEDIAN(O67:XFD69) -> 96.17
B66: EMPRESA | D66: CIDADE | E66: LINK | I66: CNPJ | K66: CONTATO | L66: UNIDADE | M66: VALOR | N66: FRETE | O66: TOTAL
B67: PONTO DO INCÊNDIO | E67: https://www.pontodoincendio.com.br/placa-m1-descricao-especial | I67: 03.598.050/0001-00 | K67: (11) 4003-1020 | L67: UN | M67: 39.74 | N67: 26.67 | O67: =M67+N67 -> 66.41
B68: AMERICANAS | E68: https://www.americanas.com.br/produto/1588230076/placa-de-sinalizacao-m1-orientacao-sobre-sistemas-de-seguranca-contra-incendio-editavel?WT.srch=1&acc=e789ea56094489dffd798f86ff51c7a9&epar=bp_pl_00_go_todos-os-produtos_geral_gmv&gclid=Cj0KCQjwg8n5BRCdARIsALxKb97UIzC6RiTYkzurP5VPJ7k9Wrv-ww_pIeY4XtGFwRescyTUCHoe7OsaAmdZEALw_wcB&i=5e30d61c49f937f6257984cc&o=5e75bc7cf8e95eac3d9270e3&opn=YSMESP&sellerid=21182833000190 | I68: 00.776.574/0006-60 | K68: (11) 4003-4848 | L68: UN | M68: 65 | N68: 31.17 | O68: =M68+N68 -> 96.17
B69: SHOPTIME | E69: https://www.shoptime.com.br/produto/1588230076/placa-de-sinalizacao-m1-orientacao-sobre-sistemas-de-seguranca-contra-incendio-editavel?WT.srch=1&acc=a76c8289649a0bef0524c56c85e71570&epar=bp_pl_00_go_pla_geral_3p&gclid=Cj0KCQjwg8n5BRCdARIsALxKb96k6_L7lTjyEHVLt8XamkZMVQqShfocYKdJYc3tnyzRFWFqHAmn9xoaAtKyEALw_wcB&i=5e30d69849f937f62579a698&o=5e75f5aff8e95eac3d93520a&opn=GOOGLEXML&sellerid=21182833000190 | I69: 00.776.574/0006-60 | K69: (11) 4003-5544 | L69: UN | M69: 65 | N69: 31.17 | O69: =M69+N69 -> 96.17
A70: COT-14.1 | C70: TERMINAL AÉREO 300MM | L70: UN | O70: =MEDIAN(O72:XFD74) -> 41.98
B71: EMPRESA | D71: CIDADE | E71: LINK | I71: CNPJ | K71: CONTATO | L71: UNIDADE | M71: VALOR | N71: FRETE | O71: TOTAL
B72: ELETROLUZ | E72: https://www.eletroluz.net/76300/prt-151s-terminal-aereo-horizontal-300mm-sem-bandeira/ | I72: 13.519.231/0001-58 | K72: (64) 98124-7887 | L72: UN | M72: 12.39 | N72: 29.59 | O72: =M72+N72 -> 41.98
B73: DAGAD SERVIÇOS E COMÉRCIO DE EXTINTORES LTDA | E73: https://www.dagad.com.br/shop/produto/terminal-aereo-abracadeira-fix-horizontal/ | I73: 04.859.108/0001-95 | K73: (21) 2229-5760 | L73: UN | M73: 15.04 | N73: 35.5 | O73: =M73+N73 -> 50.54
B74: AGROMETAL | E74: https://www.lojaagrometal.com.br/850683-terminal-aereo-prt151a-300mm-fix-horiz.html | I74: 48.539.548/0001-30 | K74: (17) 2139-5000 | L74: UN | M74: 16.19 | N74: 19.32 | O74: =M74+N74 -> 35.51
A75: COT-14.2 | C75: CAIXA DE EQUALIZAÇÃO 9 TERMINAIS | L75: UN | O75: =MEDIAN(O77:XFD78) -> 492.67
B76: EMPRESA | D76: CIDADE | E76: LINK | I76: CNPJ | K76: CONTATO | L76: UNIDADE | M76: VALOR | N76: FRETE | O76: TOTAL
B77: LOJA ELÉTRICA LIMITADA | E77: http://www.lojaeletrica.com.br/basket.aspx?idsku=2410203600415&src=?idProduct=2410203600415&iddept=0 | I77: 17.155.342/0010-74 | K77: (31) 3218-8922 | L77: UN | M77: 499 | N77: 17.17 | O77: =M77+N77 -> 516.17
B78: AGROMETAL | E78: https://www.lojaagrometal.com.br/850675-cx-equalizacao-20x20-emb-9-term-prt970.html | I78: 48.539.548/0001-30 | K78: (17) 2139-5000 | L78: UN | M78: 443.67 | N78: 25.5 | O78: =M78+N78 -> 469.17
D84: RESPONSÁVEL TÉCNICO: | G84: FLÁVIA CRISTINA BARBOSA
G85: CREA MG-187.842/D

Sheet SINAPI ABRIL 2021
B1: SINAPI ABRIL DE 2021
A2: CÓDIGO | B2: DESCRIÇÃO | C2: UNIDADE | D2: PREÇO
A3: 1363 | B3: !EM PROCESSO DE DESATIVACAO! CHAPA DE MADEIRA COMPENSADA DE PINUS, VIROLA OU EQUIVALENTE, DE *2,2 X 1,6* M, E = 6 MM | C3: M2 | D3: 18.35
A4: 1344 | B4: !EM PROCESSO DE DESATIVACAO! CHAPA DE MADEIRA COMPENSADA PLASTIFICADA PARA FORMA DE CONCRETO, DE 2,20 x 1,10 M, E = 6 MM | C4: UN | D4: 47.87
A5: 1342 | B5: !EM PROCESSO DE DESATIVACAO! CHAPA DE MADEIRA COMPENSADA PLASTIFICADA PARA FORMA DE CONCRETO, DE 2,20 X 1,10 m, E = 14 MM | C5: UN | D5: 84.62
A6: 1349 | B6: !EM PROCESSO DE DESATIVACAO! CHAPA DE MADEIRA COMPENSADA PLASTIFICADA PARA FORMA DE CONCRETO, DE 2,20 X 1,10 M, E = 20 MM | C6: UN | D6: 120.69
A7: 1350 | B7: !EM PROCESSO DE DESATIVACAO! CHAPA DE MADEIRA COMPENSADA RESINADA PARA FORMA DE CONCRETO, DE *2,2 X 1,1* M, E = 10 MM | C7: UN | D7: 56
A8: 1359 | B8: !EM PROCESSO DE DESATIVACAO! CHAPA DE MADEIRA COMPENSADA RESINADA PARA FORMA DE CONCRETO, DE *2,2 X 1,1* M, E = 20 MM | C8: UN | D8: 110.21
A9: 1351 | B9: !EM PROCESSO DE DESATIVACAO! CHAPA DE MADEIRA COMPENSADA RESINADA PARA FORMA DE CONCRETO, DE *2,2 X 1,1* M, E = 6 MM | C9: UN | D9: 35.51
A10: 2418 | B10: !EM PROCESSO DE DESATIVACAO! DOBRADICA EM ACO/FERRO, 3" X 2 1/2", E= 1,2 A 1,8 MM, SEM ANEL, CROMADO OU ZINCADO, TAMPA BOLA, COM PARAFUSOS | C10: UN | D10: 6.42
A11: 6086 | B11: !EM PROCESSO DE DESATIVACAO! FUNDO SINTETICO NIVELADOR BRANCO FOSCO PARA MADEIRA | C11: GL | D11: 72.45
A12: 3378 | B12: !EM PROCESSO DE DESATIVACAO! HASTE DE ATERRAMENTO EM ACO COM 3,00 M DE COMPRIMENTO E DN = 3/4", REVESTIDA COM BAIXA CAMADA DE COBRE, SEM CONECTOR | C12: UN | D12: 64.28
A13: 3380 | B13: !EM PROCESSO DE DESATIVACAO! HASTE DE ATERRAMENTO EM ACO COM 3,00 M DE COMPRIMENTO E DN = 5/8", REVESTIDA COM BAIXA CAMADA DE COBRE, COM CONECTOR TIPO GRAMPO | C13: UN | D13: 45
A14: 3379 | B14: !EM PROCESSO DE DESATIVACAO! HASTE DE ATERRAMENTO EM ACO COM 3,00 M DE COMPRIMENTO E DN = 5/8", REVESTIDA COM BAIXA CAMADA DE COBRE, SEM CONECTOR | C14: UN | D14: 43.44
A15: 615 | B15: !EM PROCESSO DE DESATIVACAO! JANELA BASCULANTE, ACO, COM BATENTE/REQUADRO, 60 X 80 CM (SEM VIDROS) | C15: M2 | D15: 421.3
A16: 606 | B16: !EM PROCESSO DE DESATIVACAO! JANELA DE CORRER, ACO, BATENTE/REQUADRO DE 6 A 14 CM, QUADRICULADA, PINTURA ANTICORROSIVA, SEM VIDRO, BANDEIRA COM BASCULA, 4 FLS, 120 X 150 CM (A X L) | C16: M2 | D16: 661.81
A17: 13382 | B17: !EM PROCESSO DE DESATIVACAO! LUMINARIA FECHADA P/ ILUMINACAO PUBLICA, TIPO ABL 50/F OU EQUIV, P/ LAMPADA A VAPOR DE MERCURIO 400W | C17: UN | D17: 303.2
A18: 4047 | B18: !EM PROCESSO DE DESATIVACAO! MASSA CORRIDA PVA PARA PAREDES INTERNAS | C18: GL | D18: 14.66
A19: 7344 | B19: !EM PROCESSO DE DESATIVACAO! TINTA LATEX PVA PREMIUM, COR BRANCA | C19: GL | D19: 59.24
A20: 40514 | B20: !EM PROCESSO DE DESATIVACAO! VERNIZ POLIURETANO BRILHANTE PARA MADEIRA, SEM FILTRO SOLAR, USO INTERNO E EXTERNO | C20: L | D20: 28.26
A21: 11199 | B21: !EM PROCESSO DE DESATIVACAO!JANELA DE CORRER, ACO, BATENTE/REQUADRO DE 6 A 14 CM, COM DIVISAO HORIZ , PINT ANTICORROSIVA, SEM VIDRO, BANDEIRA COM BASCULA, 4 FLS, 120 X 150 CM (A X L) | C21: UN | D21: 949.65
A22: 4053 | B22: !EM PROCESSO DE DESATIVACAO!MASSA A OLEO PARA MADEIRA | C22: GL | D22: 55.84
A23: 4056 | B23: !EM PROCESSO DE DESATIVACAO!MASSA ACRILICA PARA PAREDES INTERIOR/EXTERIOR | C23: GL | D23: 29.36
A24: 21136 | B24: !EM PROCESSO DESATIVACAO! ELETRODUTO EM ACO GALVANIZADO ELETROLITICO, LEVE, DIAMETRO 1", PAREDE DE 0,90 MM | C24: M | D24: 14.43
A25: 21128 | B25: !EM PROCESSO DESATIVACAO! ELETRODUTO EM ACO GALVANIZADO ELETROLITICO, LEVE, DIAMETRO 3/4", PAREDE DE 0,90 MM | C25: M | D25: 11.17
A26: 21130 | B26: !EM PROCESSO DESATIVACAO! ELETRODUTO EM ACO GALVANIZADO ELETROLITICO, SEMI-PESADO, DIAMETRO 1 1/2", PAREDE DE 1,20 MM | C26: M | D26: 28.21
A27: 21135 | B27: !EM PROCESSO DESATIVACAO! ELETRODUTO EM ACO GALVANIZADO ELETROLITICO, SEMI-PESADO, DIAMETRO 1 1/4", PAREDE DE 1,20 MM | C27: M | D27: 27.77
A28: 38605 | B28: ABERTURA PARA ENCAIXE DE CUBA OU LAVATORIO EM BANCADA DE MARMORE/ GRANITO OU OUTRO TIPO DE PEDRA NATURAL | C28: UN | D28: 65.74
A29: 11270 | B29: ABRACADEIRA DE LATAO PARA FIXACAO DE CABO PARA-RAIO, DIMENSOES 32 X 24 X 24 MM | C29: UN | D29: 2.91
A30: 412 | B30: ABRACADEIRA DE NYLON PARA AMARRACAO DE CABOS, COMPRIMENTO DE *230* X *7,6* MM | C30: UN | D30: 0.82
A31: 414 | B31: ABRACADEIRA DE NYLON PARA AMARRACAO DE CABOS, COMPRIMENTO DE 100 X 2,5 MM | C31: UN | D31: 0.05
A32: 410 | B32: ABRACADEIRA DE NYLON PARA AMARRACAO DE CABOS, COMPRIMENTO DE 150 X *3,6* MM | C32: UN | D32: 0.12
A33: 411 | B33: ABRACADEIRA DE NYLON PARA AMARRACAO DE CABOS, COMPRIMENTO DE 200 X *4,6* MM | C33: UN | D33: 0.16
A34: 408 | B34: ABRACADEIRA DE NYLON PARA AMARRACAO DE CABOS, COMPRIMENTO DE 390 X *4,6* MM | C34: UN | D34: 0.79
A35: 39131 | B35: ABRACADEIRA EM ACO PARA AMARRACAO DE ELETRODUTOS, TIPO D, COM 1 1/2" E CUNHA DE FIXACAO | C35: UN | D35: 1.34
A36: 394 | B36: ABRACADEIRA EM ACO PARA AMARRACAO DE ELETRODUTOS, TIPO D, COM 1 1/2" E PARAFUSO DE FIXACAO | C36: UN | D36: 1.36
A37: 39130 | B37: ABRACADEIRA EM ACO PARA AMARRACAO DE ELETRODUTOS, TIPO D, COM 1 1/4" E CUNHA DE FIXACAO | C37: UN | D37: 1.22
A38: 395 | B38: ABRACADEIRA EM ACO PARA AMARRACAO DE ELETRODUTOS, TIPO D, COM 1 1/4" E PARAFUSO DE FIXACAO | C38: UN | D38: 1.31
A39: 39127 | B39: ABRACADEIRA EM ACO PARA AMARRACAO DE ELETRODUTOS, TIPO D, COM 1/2" E CUNHA DE FIXACAO | C39: UN | D39: 0.64
A40: 392 | B40: ABRACADEIRA EM ACO PARA AMARRACAO DE ELETRODUTOS, TIPO D, COM 1/2" E PARAFUSO DE FIXACAO | C40: UN | D40: 0.66
A41: 39129 | B41: ABRACADEIRA EM ACO PARA AMARRACAO DE ELETRODUTOS, TIPO D, COM 1" E CUNHA DE FIXACAO | C41: UN | D41: 0.75
A42: 393 | B42: ABRACADEIRA EM ACO PARA AMARRACAO DE ELETRODUTOS, TIPO D, COM 1" E PARAFUSO DE FIXACAO | C42: UN | D42: 0.79
A43: 39133 | B43: ABRACADEIRA EM ACO PARA AMARRACAO DE ELETRODUTOS, TIPO D, COM 2 1/2" E CUNHA DE FIXACAO | C43: UN | D43: 1.76
A44: 397 | B44: ABRACADEIRA EM ACO PARA AMARRACAO DE ELETRODUTOS, TIPO D, COM 2 1/2" E PARAFUSO DE FIXACAO | C44: UN | D44: 1.94
A45: 39132 | B45: ABRACADEIRA EM ACO PARA AMARRACAO DE ELETRODUTOS, TIPO D, COM 2" E CUNHA DE FIXACAO | C45: UN | D45: 1.41
A46: 396 | B46: ABRACADEIRA EM ACO PARA AMARRACAO DE ELETRODUTOS, TIPO D, COM 2" E PARAFUSO DE FIXACAO | C46: UN | D46: 1.51
A47: 39135 | B47: ABRACADEIRA EM ACO PARA AMARRACAO DE ELETRODUTOS, TIPO D, COM 3 1/2" E CUNHA DE FIXACAO | C47: UN | D47: 2.82
A48: 39128 | B48: ABRACADEIRA EM ACO PARA AMARRACAO DE ELETRODUTOS, TIPO D, COM 3/4" E CUNHA DE FIXACAO | C48: UN | D48: 0.7
A49: 400 | B49: ABRACADEIRA EM ACO PARA AMARRACAO DE ELETRODUTOS, TIPO D, COM 3/4" E PARAFUSO DE FIXACAO | C49: UN | D49: 0.68
A50: 39125 | B50: ABRACADEIRA EM ACO PARA AMARRACAO DE ELETRODUTOS, TIPO D, COM 3/8" E PARAFUSO DE FIXACAO | C50: UN | D50: 0.7
A51: 39134 | B51: ABRACADEIRA EM ACO PARA AMARRACAO DE ELETRODUTOS, TIPO D, COM 3" E CUNHA DE FIXACAO | C51: UN | D51: 2.35
A52: 398 | B52: ABRACADEIRA EM ACO PARA AMARRACAO DE ELETRODUTOS, TIPO D, COM 3" E PARAFUSO DE FIXACAO | C52: UN | D52: 2.16
A53: 39126 | B53: ABRACADEIRA EM ACO PARA AMARRACAO DE ELETRODUTOS, TIPO D, COM 4" E CUNHA DE FIXACAO | C53: UN | D53: 3.17
A54: 399 | B54: ABRACADEIRA EM ACO PARA AMARRACAO DE ELETRODUTOS, TIPO D, COM 4" E PARAFUSO DE FIXACAO | C54: UN | D54: 2.79
A55: 39158 | B55: ABRACADEIRA EM ACO PARA AMARRACAO DE ELETRODUTOS, TIPO ECONOMICA (GOTA), COM 8" | C55: UN | D55: 7.51
A56: 39141 | B56: ABRACADEIRA EM ACO PARA AMARRACAO DE ELETRODUTOS, TIPO U SIMPLES, COM 1 1/2" | C56: UN | D56: 0.54
A57: 39140 | B57: ABRACADEIRA EM ACO PARA AMARRACAO DE ELETRODUTOS, TIPO U SIMPLES, COM 1 1/4" | C57: UN | D57: 0.49
A58: 39137 | B58: ABRACADEIRA EM ACO PARA AMARRACAO DE ELETRODUTOS, TIPO U SIMPLES, COM 1/2" | C58: UN | D58: 0.28
A59: 39139 | B59: ABRACADEIRA EM ACO PARA AMARRACAO DE ELETRODUTOS, TIPO U SIMPLES, COM 1" | C59: UN | D59: 0.41
A60: 39143 | B60: ABRACADEIRA EM ACO PARA AMARRACAO DE ELETRODUTOS, TIPO U SIMPLES, COM 2 1/2" | C60: UN | D60: 1.12
A61: 39142 | B61: ABRACADEIRA EM ACO PARA AMARRACAO DE ELETRODUTOS, TIPO U SIMPLES, COM 2" | C61: UN | D61: 0.8
A62: 39138 | B62: ABRACADEIRA EM ACO PARA AMARRACAO DE ELETRODUTOS, TIPO U SIMPLES, COM 3/4" | C62: UN | D62: 0.3
A63: 39136 | B63: ABRACADEIRA EM ACO PARA AMARRACAO DE ELETRODUTOS, TIPO U SIMPLES, COM 3/8" | C63: UN | D63: 0.2
A64: 39144 | B64: ABRACADEIRA EM ACO PARA AMARRACAO DE ELETRODUTOS, TIPO U SIMPLES, COM 3" | C64: UN | D64: 1.31
A65: 39145 | B65: ABRACADEIRA EM ACO PARA AMARRACAO DE ELETRODUTOS, TIPO U SIMPLES, COM 4" | C65: UN | D65: 2.15
A66: 12615 | B66: ABRACADEIRA PVC, PARA CALHA PLUVIAL, DIAMETRO ENTRE 80 E 100 MM, PARA DRENAGEM PREDIAL | C66: UN | D66: 4.01
A67: 11927 | B67: ABRACADEIRA, GALVANIZADA/ZINCADA, ROSCA SEM FIM, PARAFUSO INOX, LARGURA FITA *12,6 A *14 MM, D = 2" A 2 1/2" | C67: UN | D67: 8.7
A68: 11928 | B68: ABRACADEIRA, GALVANIZADA/ZINCADA, ROSCA SEM FIM, PARAFUSO INOX, LARGURA FITA *12,6 A *14 MM, D = 3" A 3 3/4" | C68: UN | D68: 9.97
A69: 11929 | B69: ABRACADEIRA, GALVANIZADA/ZINCADA, ROSCA SEM FIM, PARAFUSO INOX, LARGURA FITA *12,6 A *14 MM, D = 4" A 4 3/4" | C69: UN | D69: 15.42
A70: 36801 | B70: ACABAMENTO CROMADO PARA REGISTRO PEQUENO, 1/2 " OU 3/4 " | C70: UN | D70: 25.26
A71: 36246 | B71: ACABAMENTO SIMPLES/CONVENCIONAL PARA FORRO PVC, TIPO "U" OU "C", COR BRANCA, COMPRIMENTO 6 M | C71: M | D71: 3.96
A72: 37600 | B72: ACESSORIO DE LIGACAO NAO ELETRICO PARA CARGAS EXPLOSIVAS, TUBO DE 6 M | C72: UN | D72: 65.97
A73: 37599 | B73: ACESSORIO INICIADOR NAO ELETRICO, TUBO DE 6 M, TEMPO DE RETARDO DE *160* MS | C73: UN | D73: 61.4
A74: 1 | B74: ACETILENO (RECARGA PARA CILINDRO DE CONJUNTO OXICORTE GRANDE) | C74: KG | D74: 64.75
A75: 3 | B75: ACIDO MURIATICO, DILUICAO 10% A 12% PARA USO EM LIMPEZA | C75: L | D75: 6.2
A76: 43054 | B76: ACO CA-25, 10,0 MM, OU 12,5 MM, OU 16,0 MM, OU 20,0 MM, OU 25,0 MM, VERGALHAO | C76: KG | D76: 11.76
A77: 42402 | B77: ACO CA-25, 16,0 MM, BARRA DE TRANSFERENCIA | C77: KG | D77: 11.24
A78: 42403 | B78: ACO CA-25, 20,0 MM, BARRA DE TRANSFERENCIA | C78: KG | D78: 14.42
A79: 42404 | B79: ACO CA-25, 25,0 MM, BARRA DE TRANSFERENCIA | C79: KG | D79: 14.34
A80: 42405 | B80: ACO CA-25, 32,0 MM, BARRA DE TRANSFERENCIA | C80: KG | D80: 15.27
A81: 34341 | B81: ACO CA-25, 32,0 MM, VERGALHAO | C81: KG | D81: 13.25
A82: 43053 | B82: ACO CA-25, 6,3 MM OU 8,0 MM, VERGALHAO | C82: KG | D82: 10.5
A83: 43058 | B83: ACO CA-50, 10,0 MM, OU 12,5 MM, OU 16,0 MM, OU 20,0 MM, DOBRADO E CORTADO | C83: KG | D83: 10.89
A84: 34 | B84: ACO CA-50, 10,0 MM, VERGALHAO | C84: KG | D84: 10.94
A85: 43055 | B85: ACO CA-50, 12,5 MM OU 16,0 MM, VERGALHAO | C85: KG | D85: 9.48
A86: 43056 | B86: ACO CA-50, 20,0 MM OU 25,0 MM, VERGALHAO | C86: KG | D86: 10.93
A87: 43057 | B87: ACO CA-50, 32,0 MM, VERGALHAO | C87: KG | D87: 12.01
A88: 34449 | B88: ACO CA-50, 6,3 MM, DOBRADO E CORTADO | C88: KG | D88: 12.84
A89: 32 | B89: ACO CA-50, 6,3 MM, VERGALHAO | C89: KG | D89: 11.54
A90: 33 | B90: ACO CA-50, 8,0 MM, VERGALHAO | C90: KG | D90: 11.61
A91: 43061 | B91: ACO CA-60, 4,2 MM OU 5,0 MM, DOBRADO E CORTADO | C91: KG | D91: 10.85
A92: 43059 | B92: ACO CA-60, 4,2 MM, OU 5,0 MM, OU 6,0 MM, OU 7,0 MM, VERGALHAO | C92: KG | D92: 10.36
A93: 43062 | B93: ACO CA-60, 6,0 MM OU 7,0 MM, DOBRADO E CORTADO | C93: KG | D93: 11.48
A94: 43060 | B94: ACO CA-60, 8,0 MM OU 9,5 MM, VERGALHAO | C94: KG | D94: 9.02
A95: 20063 | B95: ACOPLAMENTO DE CONDUTOR PLUVIAL, EM PVC, DIAMETRO ENTRE 80 E 100 MM, PARA DRENAGEM PREDIAL | C95: UN | D95: 3.99
A96: 40410 | B96: ACOPLAMENTO RIGIDO EM FERRO FUNDIDO PARA SISTEMA DE TUBULACAO RANHURADA, DN 50 MM (2") | C96: UN | D96: 23.91
A97: 40411 | B97: ACOPLAMENTO RIGIDO EM FERRO FUNDIDO PARA SISTEMA DE TUBULACAO RANHURADA, DN 65 MM (2 1/2") | C97: UN | D97: 25.95
A98: 40412 | B98: ACOPLAMENTO RIGIDO EM FERRO FUNDIDO PARA SISTEMA DE TUBULACAO RANHURADA, DN 80 MM (3") | C98: UN | D98: 29.12
A99: 38838 | B99: ADAPTADOR DE COBRE PARA TUBULACAO PEX, DN 16 X 15 MM | C99: UN | D99: 9.66
A100: 38839 | B100: ADAPTADOR DE COBRE PARA TUBULACAO PEX, DN 20 X 22 MM | C100: UN | D100: 11.37
A101: 55 | B101: ADAPTADOR DE COMPRESSAO EM POLIPROPILENO (PP), PARA TUBO EM PEAD, 20 MM X 1/2", PARA LIGACAO PREDIAL DE AGUA (NTS 179) | C101: UN | D101: 4.2
A102: 61 | B102: ADAPTADOR DE COMPRESSAO EM POLIPROPILENO (PP), PARA TUBO EM PEAD, 20 MM X 3/4", PARA LIGACAO PREDIAL DE AGUA (NTS 179) | C102: UN | D102: 3.97
A103: 62 | B103: ADAPTADOR DE COMPRESSAO EM POLIPROPILENO (PP), PARA TUBO EM PEAD, 32 MM X 1", PARA LIGACAO PREDIAL DE AGUA (NTS 179) | C103: UN | D103: 8.23
A104: 77 | B104: ADAPTADOR PVC PARA SIFAO METALICO, SOLDAVEL, COM ANEL BORRACHA (JE), 40 MM X 1 1/2" | C104: UN | D104: 1.42
A105: 76 | B105: ADAPTADOR PVC PARA SIFAO, ROSCAVEL, 40 MM X 1 1/4" | C105: UN | D105: 1.45
A106: 67 | B106: ADAPTADOR PVC ROSCAVEL, COM FLANGES E ANEL DE VEDACAO, 1/2", PARA CAIXA D' AGUA | C106: UN | D106: 13.99
A107: 71 | B107: ADAPTADOR PVC ROSCAVEL, COM FLANGES E ANEL DE VEDACAO, 1", PARA CAIXA D' AGUA | C107: UN | D107: 25.71
A108: 73 | B108: ADAPTADOR PVC ROSCAVEL, COM FLANGES E ANEL DE VEDACAO, 3/4", PARA CAIXA D' AGUA | C108: UN | D108: 19.2
A109: 103 | B109: ADAPTADOR PVC SOLDAVEL CURTO COM BOLSA E ROSCA, 110 MM X 4", PARA AGUA FRIA | C109: UN | D109: 57.09
A110: 107 | B110: ADAPTADOR PVC SOLDAVEL CURTO COM BOLSA E ROSCA, 20 MM X 1/2", PARA AGUA FRIA | C110: UN | D110: 0.89
A111: 65 | B111: ADAPTADOR PVC SOLDAVEL CURTO COM BOLSA E ROSCA, 25 MM X 3/4", PARA AGUA FRIA | C111: UN | D111: 1.1
A112: 108 | B112: ADAPTADOR PVC SOLDAVEL CURTO COM BOLSA E ROSCA, 32 MM X 1", PARA AGUA FRIA | C112: UN | D112: 2.28
A113: 110 | B113: ADAPTADOR PVC SOLDAVEL CURTO COM BOLSA E ROSCA, 40 MM X 1 1/2", PARA AGUA FRIA | C113: UN | D113: 8.81
A114: 109 | B114: ADAPTADOR PVC SOLDAVEL CURTO COM BOLSA E ROSCA, 40 MM X 1 1/4", PARA AGUA FRIA | C114: UN | D114: 4.34
A115: 111 | B115: ADAPTADOR PVC SOLDAVEL CURTO COM BOLSA E ROSCA, 50 MM X 1 1/4", PARA AGUA FRIA | C115: UN | D115: 10.17
A116: 112 | B116: ADAPTADOR PVC SOLDAVEL CURTO COM BOLSA E ROSCA, 50 MM X1 1/2", PARA AGUA FRIA | C116: UN | D116: 5.53
A117: 113 | B117: ADAPTADOR PVC SOLDAVEL CURTO COM BOLSA E ROSCA, 60 MM X 2", PARA AGUA FRIA | C117: UN | D117: 15.02
A118: 104 | B118: ADAPTADOR PVC SOLDAVEL CURTO COM BOLSA E ROSCA, 75 MM X 2 1/2", PARA AGUA FRIA | C118: UN | D118: 21.84
A119: 102 | B119: ADAPTADOR PVC SOLDAVEL CURTO COM BOLSA E ROSCA, 85 MM X 3", PARA AGUA FRIA | C119: UN | D119: 35.86
A120: 95 | B120: ADAPTADOR PVC SOLDAVEL, COM FLANGE E ANEL DE VEDACAO, 20 MM X 1/2", PARA CAIXA D'AGUA | C120: UN | D120: 12.14
A121: 96 | B121: ADAPTADOR PVC SOLDAVEL, COM FLANGE E ANEL DE VEDACAO, 25 MM X 3/4", PARA CAIXA D'AGUA | C121: UN | D121: 13.96
A122: 97 | B122: ADAPTADOR PVC SOLDAVEL, COM FLANGE E ANEL DE VEDACAO, 32 MM X 1", PARA CAIXA D'AGUA | C122: UN | D122: 18.12
A123: 98 | B123: ADAPTADOR PVC SOLDAVEL, COM FLANGE E ANEL DE VEDACAO, 40 MM X 1 1/4", PARA CAIXA D'AGUA | C123: UN | D123: 24.43
A124: 99 | B124: ADAPTADOR PVC SOLDAVEL, COM FLANGE E ANEL DE VEDACAO, 50 MM X 1 1/2", PARA CAIXA D'AGUA | C124: UN | D124: 29.63
A125: 100 | B125: ADAPTADOR PVC SOLDAVEL, COM FLANGES E ANEL DE VEDACAO, 60 MM X 2", PARA CAIXA D' AGUA | C125: UN | D125: 41.33
A126: 75 | B126: ADAPTADOR PVC SOLDAVEL, COM FLANGES LIVRES, 110 MM X 4", PARA CAIXA D' AGUA | C126: UN | D126: 430.8
A127: 114 | B127: ADAPTADOR PVC SOLDAVEL, COM FLANGES LIVRES, 25 MM X 3/4", PARA CAIXA D' AGUA | C127: UN | D127: 15.7
A128: 68 | B128: ADAPTADOR PVC SOLDAVEL, COM FLANGES LIVRES, 32 MM X 1", PARA CAIXA D' AGUA | C128: UN | D128: 24
A129: 86 | B129: ADAPTADOR PVC SOLDAVEL, COM FLANGES LIVRES, 40 MM X 1 1/4", PARA CAIXA D' AGUA | C129: UN | D129: 44.62
A130: 66 | B130: ADAPTADOR PVC SOLDAVEL, COM FLANGES LIVRES, 50 MM X 1 1/2", PARA CAIXA D' AGUA | C130: UN | D130: 44.79
A131: 69 | B131: ADAPTADOR PVC SOLDAVEL, COM FLANGES LIVRES, 60 MM X 2", PARA CAIXA D' AGUA | C131: UN | D131: 68.45
A132: 83 | B132: ADAPTADOR PVC SOLDAVEL, COM FLANGES LIVRES, 75 MM X 2 1/2", PARA CAIXA D' AGUA | C132: UN | D132: 218.63
A133: 74 | B133: ADAPTADOR PVC SOLDAVEL, COM FLANGES LIVRES, 85 MM X 3", PARA CAIXA D' AGUA | C133: UN | D133: 305.23
A134: 106 | B134: ADAPTADOR PVC SOLDAVEL, LONGO, COM FLANGE LIVRE, 110 MM X 4", PARA CAIXA D' AGUA | C134: UN | D134: 463.7
A135: 87 | B135: ADAPTADOR PVC SOLDAVEL, LONGO, COM FLANGE LIVRE, 25 MM X 3/4", PARA CAIXA D' AGUA | C135: UN | D135: 22.04
A136: 88 | B136: ADAPTADOR PVC SOLDAVEL, LONGO, COM FLANGE LIVRE, 32 MM X 1", PARA CAIXA D' AGUA | C136: UN | D136: 24.6
A137: 89 | B137: ADAPTADOR PVC SOLDAVEL, LONGO, COM FLANGE LIVRE, 40 MM X 1 1/4", PARA CAIXA D' AGUA | C137: UN | D137: 36.37
A138: 90 | B138: ADAPTADOR PVC SOLDAVEL, LONGO, COM FLANGE LIVRE, 50 MM X 1 1/2", PARA CAIXA D' AGUA | C138: UN | D138: 41.67
A139: 81 | B139: ADAPTADOR PVC SOLDAVEL, LONGO, COM FLANGE LIVRE, 60 MM X 2", PARA CAIXA D' AGUA | C139: UN | D139: 71.27
A140: 82 | B140: ADAPTADOR PVC SOLDAVEL, LONGO, COM FLANGE LIVRE, 75 MM X 2 1/2", PARA CAIXA D' AGUA | C140: UN | D140: 276.67
A141: 105 | B141: ADAPTADOR PVC SOLDAVEL, LONGO, COM FLANGE LIVRE, 85 MM X 3", PARA CAIXA D' AGUA | C141: UN | D141: 323.92
A142: 60 | B142: ADAPTADOR PVC, COM REGISTRO, PARA PEAD, 20 MM X 3/4", PARA LIGACAO PREDIAL DE AGUA | C142: UN | D142: 5.45
A143: 72 | B143: ADAPTADOR PVC, ROSCAVEL, COM FLANGES E ANEL DE VEDACAO, 1 1/2", PARA CAIXA D'AGUA | C143: UN | D143: 43.57
A144: 70 | B144: ADAPTADOR PVC, ROSCAVEL, COM FLANGES E ANEL DE VEDACAO, 1 1/4", PARA CAIXA D' AGUA | C144: UN | D144: 36.43
A145: 85 | B145: ADAPTADOR PVC, ROSCAVEL, COM FLANGES E ANEL DE VEDACAO, 2", PARA CAIXA D' AGUA | C145: UN | D145: 52.88
A146: 84 | B146: ADAPTADOR PVC, ROSCAVEL, PARA VALVULA PIA OU LAVATORIO, 40 MM | C146: UN | D146: 0.61
A147: 37997 | B147: ADAPTADOR, CPVC, SOLDAVEL, 15 MM, PARA AGUA QUENTE | C147: UN | D147: 6.41
A148: 37998 | B148: ADAPTADOR, CPVC, SOLDAVEL, 22 MM, PARA AGUA QUENTE | C148: UN | D148: 6.64
A149: 10899 | B149: ADAPTADOR, EM LATAO, ENGATE RAPIDO 2 1/2" X ROSCA INTERNA 5 FIOS 2 1/2", PARA INSTALACAO PREDIAL DE COMBATE A INCENDIO | C149: UN | D149: 55.19
A150: 10900 | B150: ADAPTADOR, EM LATAO, ENGATE RAPIDO1 1/2" X ROSCA INTERNA 5 FIOS 2 1/2", PARA INSTALACAO PREDIAL DE COMBATE A INCENDIO | C150: UN | D150: 43.19
A151: 46 | B151: ADAPTADOR, PVC PBA, BOLSA/ROSCA, JE, DN 75 / DE 85 MM | C151: UN | D151: 53.49
A152: 51 | B152: ADAPTADOR, PVC PBA, A BOLSA DEFOFO, JE, DN 100 / DE 110 MM | C152: UN | D152: 147.56
A153: 12863 | B153: ADAPTADOR, PVC PBA, A BOLSA DEFOFO, JE, DN 50 / DE 60 MM | C153: UN | D153: 33.99
A154: 50 | B154: ADAPTADOR, PVC PBA, A BOLSA DEFOFO, JE, DN 75 / DE 85 MM | C154: UN | D154: 77.05
A155: 47 | B155: ADAPTADOR, PVC PBA, BOLSA/ROSCA, JE, DN 100 / DE 110 MM | C155: UN | D155: 91.46
A156: 48 | B156: ADAPTADOR, PVC PBA, BOLSA/ROSCA, JE, DN 50 / DE 60 MM | C156: UN | D156: 23.86
A157: 52 | B157: ADAPTADOR, PVC PBA, PONTA/ROSCA, JE, DN 50 / DE 60 MM | C157: UN | D157: 18.12
A158: 43 | B158: ADAPTADOR, PVC PBA, PONTA/ROSCA, JE, DN 75 / DE 85 MM | C158: UN | D158: 61.17
A159: 4791 | B159: ADESIVO ACRILICO/COLA DE CONTATO | C159: KG | D159: 26.02
A160: 157 | B160: ADESIVO ESTRUTURAL A BASE DE RESINA EPOXI PARA INJECAO EM TRINCAS, BICOMPONENTE, BAIXA VISCOSIDADE | C160: KG | D160: 83.88
A161: 156 | B161: ADESIVO ESTRUTURAL A BASE DE RESINA EPOXI, BICOMPONENTE, FLUIDO | C161: KG | D161: 29.87
A162: 131 | B162: ADESIVO ESTRUTURAL A BASE DE RESINA EPOXI, BICOMPONENTE, PASTOSO (TIXOTROPICO) | C162: KG | D162: 25.54
A163: 39719 | B163: ADESIVO LIQUIDO A BASE DE RESINAS PARA COLAGEM DE ESPUMA DE ISOLAMENTO TERMICO FLEXIVEL | C163: L | D163: 80.32
A164: 21114 | B164: ADESIVO PARA TUBOS CPVC, *75* G | C164: UN | D164: 17.21
A165: 119 | B165: ADESIVO PLASTICO PARA PVC, BISNAGA COM 75 GR | C165: UN | D165: 6.79
A166: 20080 | B166: ADESIVO PLASTICO PARA PVC, FRASCO COM 175 GR | C166: UN | D166: 19.46
A167: 122 | B167: ADESIVO PLASTICO PARA PVC, FRASCO COM 850 GR | C167: UN | D167: 61.33
A168: 3410 | B168: ADESIVO/COLA PARA EPS (ISOPOR) E OUTROS MATERIAIS | C168: KG | D168: 15.89
A169: 124 | B169: ADITIVO ACELERADOR DE PEGA E ENDURECIMENTO PARA ARGAMASSAS E CONCRETOS, LIQUIDO E ISENTO DE CLORETOS | C169: L | D169: 9.85
A170: 7334 | B170: ADITIVO ADESIVO LIQUIDO PARA ARGAMASSAS DE REVESTIMENTOS CIMENTICIOS | C170: L | D170: 10.35
A171: 123 | B171: ADITIVO IMPERMEABILIZANTE DE PEGA NORMAL PARA ARGAMASSAS E CONCRETOS SEM ARMACAO, LIQUIDO E ISENTO DE CLORETOS | C171: L | D171: 4.03
A172: 127 | B172: ADITIVO IMPERMEABILIZANTE DE PEGA ULTRARRAPIDA, LIQUIDO E ISENTO DE CLORETOS | C172: L | D172: 9.62
A173: 41373 | B173: ADITIVO LIQUIDO IMPERMEABILIZANTE CRISTALIZANTE | C173: L | D173: 13.4
A174: 133 | B174: ADITIVO LIQUIDO INCORPORADOR DE AR PARA CONCRETO E ARGAMASSA, LIQUIDO E ISENTO DE CLORETOS | C174: L | D174: 3.99
A175: 43617 | B175: ADITIVO PLASTIFICANTE E ESTABILIZADOR PARA ARGAMASSAS DE ASSENTAMENTO E REBOCO, LIQUIDO E ISENTO DE CLORETOS | C175: L | D175: 4.46
A176: 132 | B176: ADITIVO PLASTIFICANTE RETARDADOR DE PEGA E REDUTOR DE AGUA PARA CONCRETO, LIQUIDO E ISENTO DE CLORETOS | C176: L | D176: 4.14
A177: 43618 | B177: ADITIVO SUPERPLASTIFICANTE DE PEGA NORMAL PARA CONCRETO, LIQUIDO E ISENTO DE CLORETOS | C177: KG | D177: 10.43
A178: 37476 | B178: ADUELA/ GALERIA PRE-MOLDADA DE CONCRETO ARMADO, SECAO QUADRADA INTERNA DE 1,50 X 1,50 M (L X A), MISULA DE 20 X 20 CM, C = 1,00 M, ESPESSURA MIN = 15 CM, TB-45 E FCK DO CONCRETO = 30 MPA | C178: UN | D178: 2708.44
A179: 37478 | B179: ADUELA/ GALERIA PRE-MOLDADA DE CONCRETO ARMADO, SECAO RETANGULAR INTERNA DE 2,00 X 2,00 M (L X A), MISULA DE 20 X 20 CM, C = 1,00 M, ESPESSURA MIN = 15 CM, TB-45 E FCK DO CONCRETO = 30 MPA | C179: UN | D179: 3392.38
A180: 37477 | B180: ADUELA/ GALERIA PRE-MOLDADA DE CONCRETO ARMADO, SECAO RETANGULAR INTERNA DE 2,50 X 2,50 M (L X A), MISULA DE 20 X 20 CM, C = 1,00 M, ESPESSURA MIN = 15 CM, TB-45 E FCK DO CONCRETO = 30 MPA | C180: UN | D180: 4596.14
A181: 37479 | B181: ADUELA/ GALERIA PRE-MOLDADA DE CONCRETO ARMADO, SECAO RETANGULAR INTERNA DE 3,00 X 3,00 M (L X A), MISULA DE 20 X 20 CM, C = 1.00 M, ESPESSURA MIN = 20 CM, TB-45 E FCK DO CONCRETO = 30 MPA | C181: UN | D181: 5451.07
A182: 4319 | B182: AFASTADOR PARA TELHA DE FIBROCIMENTO CANALETE 90 OU KALHETAO | C182: UN | D182: 1.77
A183: 42409 | B183: AGENTE DE CURA, PROTETOR DA EVAPORACAO DA AGUA DE HIDRATACAO DO CONCRETO | C183: KG | D183: 6.56
A184: 40553 | B184: AGREGADO RECICLADO, TIPO RACHAO RECICLADO CINZA, CLASSE A | C184: M3 | D184: 36.45
A185: 6114 | B185: AJUDANTE DE ARMADOR | C185: H | D185: 10.78
A186: 40912 | B186: AJUDANTE DE ARMADOR (MENSALISTA) | C186: MES | D186: 1912.82
A187: 247 | B187: AJUDANTE DE ELETRICISTA | C187: H | D187: 10.85
A188: 40919 | B188: AJUDANTE DE ELETRICISTA (MENSALISTA) | C188: MES | D188: 1928.92
A189: 25958 | B189: AJUDANTE DE ESTRUTURAS METALICAS | C189: H | D189: 12.46
A190: 40984 | B190: AJUDANTE DE ESTRUTURAS METALICAS (MENSALISTA) | C190: MES | D190: 2212.29
A191: 248 | B191: AJUDANTE DE OPERACAO EM GERAL | C191: H | D191: 11.15
A192: 41086 | B192: AJUDANTE DE OPERACAO EM GERAL (MENSALISTA) | C192: MES | D192: 1979.32
A193: 34466 | B193: AJUDANTE DE PINTOR | C193: H | D193: 11.15
A194: 41083 | B194: AJUDANTE DE PINTOR (MENSALISTA) | C194: MES | D194: 1979.32
A195: 252 | B195: AJUDANTE DE SERRALHEIRO | C195: H | D195: 11.55
A196: 40909 | B196: AJUDANTE DE SERRALHEIRO (MENSALISTA) | C196: MES | D196: 2051.69
A197: 242 | B197: AJUDANTE ESPECIALIZADO | C197: H | D197: 13.11
A198: 41085 | B198: AJUDANTE ESPECIALIZADO (MENSALISTA) | C198: MES | D198: 2328.45
A199: 427 | B199: ALCA PREFORMADA DE CONTRA POSTE, EM ACO GALVANIZADO, PARA CABO 3/16", COMPRIMENTO *860* MM | C199: UN | D199: 5.7
A200: 417 | B200: ALCA PREFORMADA DE DISTRIBUICAO, EM ACO GALVANIZADO, PARA CABO DE ALUMINIO DIAMETRO 16 A 25 MM | C200: UN | D200: 2.69
... 11845 more rows

Sheet SETOP JANEIRO 2021
D1: SETOP JANEIRO DE 2021
B2: CÓDIGO | C2: SETOP | D2: DESCRIÇÃO DO SERVIÇO | E2: UNIDADE | F2: CUSTO UNITÁRIO
B3: RO-40091 | C3: - | D3: VEÍCULO TIPO GOL 1.6, QUATRO PORTAS, OU SIMILAR, COM MOTORISTA | E3: KM | F3: 2.08
B4: RO-40096 | C4: - | D4: VEÍCULO TIPO GOL 1.6, QUATRO PORTAS, OU SIMILAR, SEM MOTORISTA | E4: KM | F4: 1.15
B5: RO-40102 | C5: - | D5: VEÍCULO TIPO KOMBI OU SIMILAR COM MOTORISTA | E5: KM | F5: 2.15
B6: RO-40103 | C6: - | D6: VEÍCULO TIPO KOMBI OU SIMILAR, SEM MOTORISTA | E6: KM | F6: 1.22
B7: 101 - TERRAPLENAGEM
B8: RO-43333 | C8: OBR-VIA-005 | D8: DESMATAMENTO, DESTOCAMENTO E LIMPEZA DE ÁRVORES, ARBUSTOS E VEGETAÇÃO RASTEIRA. (EXECUÇÃO NA ESPESSURA DE ATÉ 30CM, INCLUINDO REMANEJAMENTO PARA FORA DA LINHA DE OFFSETS E ACERTO DO MATERIAL) | E8: M2 | F8: 0.28
B9: RO-40108 | C9: - | D9: CORTE DE ÁRVORE NATIVA COM MOTO-SERRA 0,15M =< Ø < 0,30M - ATÉ 1.000 UNIDADES | E9: U | F9: 25.85
B10: RO-43419 | C10: - | D10: CORTE DE ÁRVORE NATIVA COM MOTO-SERRA 0,15M =< Ø < 0,30M - ACIMA DE 1.000 UNIDADES | E10: U | F10: 19.36
B11: RO-42488 | C11: - | D11: CORTE DE ÁRVORE NATIVA COM MOTO-SERRA Ø >= 0,30M - ATÉ 1.000 UNIDADES | E11: U | F11: 36.91
B12: RO-43420 | C12: - | D12: CORTE DE ÁRVORE NATIVA COM MOTO-SERRA Ø >= 0,30M - ACIMA DE 1.000 UNIDADES | E12: U | F12: 27.65
B13: RO-40114 | C13: - | D13: RASPAGEM E LIMPEZA DE VEGETAÇÃO COM REGULARIZAÇÃO DO TERRENO | E13: M2 | F13: 0.09
B14: RO-40118 | C14: - | D14: REMOÇÃO, TRANSPORTE E ESPALHAMENTO DE SOLO MOLE. DISTÂNCIA MÉDIA DE TRANSPORTE <= 200 M | E14: M3 | F14: 9.21
B15: RO-40120 | C15: - | D15: REMOÇÃO, TRANSPORTE E ESPALHAMENTO DE SOLO MOLE. DISTÂNCIA MÉDIA DE TRANSPORTE DE 201 A 400 M | E15: M3 | F15: 9.76
B16: RO-40121 | C16: - | D16: REMOÇÃO, TRANSPORTE E ESPALHAMENTO DE SOLO MOLE. DISTÂNCIA MÉDIA DE TRANSPORTE DE 401 A 600 M | E16: M3 | F16: 10.31
B17: RO-40122 | C17: - | D17: REMOÇÃO, TRANSPORTE E ESPALHAMENTO DE SOLO MOLE. DISTÂNCIA MÉDIA DE TRANSPORTE DE 601 A 800 M | E17: M3 | F17: 11.1
B18: RO-40123 | C18: - | D18: REMOÇÃO, TRANSPORTE E ESPALHAMENTO DE SOLO MOLE. DISTÂNCIA MÉDIA DE TRANSPORTE DE 801 A 1.000 M | E18: M3 | F18: 11.56
B19: RO-40124 | C19: - | D19: REMOÇÃO, TRANSPORTE E ESPALHAMENTO DE SOLO MOLE. DISTÂNCIA MÉDIA DE TRANSPORTE DE 1.001 A 1.500 M | E19: M3 | F19: 11.89
B20: RO-40125 | C20: - | D20: REMOÇÃO, TRANSPORTE E ESPALHAMENTO DE SOLO MOLE. DISTÂNCIA MÉDIA DE TRANSPORTE DE 1.501 A 2.000 M | E20: M3 | F20: 13.39
B21: RO-40128 | C21: - | D21: REMOÇÃO, TRANSPORTE E ESPALHAMENTO DE SOLO MOLE. DISTÂNCIA MÉDIA DE TRANSPORTE DE 2.001 A 3.000 M | E21: M3 | F21: 15.02
B22: RO-43144 | C22: - | D22: REMOÇÃO, TRANSPORTE E ESPALHAMENTO DE SOLO MOLE. DISTÂNCIA MÉDIA DE TRANSPORTE DE 3.001 A 4.000 M | E22: M3 | F22: 15.87
B23: RO-40129 | C23: - | D23: ESCAVAÇÃO, CARGA, DESCARGA, ESPALHAMENTO E TRANSPORTE DE MATERIAL DE 1ª CATEGORIA, COM MOTOSCRAPER. DISTÂNCIA MÉDIA DE TRANSPORTE <= 200 M | E23: M3 | F23: 4.57
B24: RO-40130 | C24: - | D24: ESCAVAÇÃO, CARGA, DESCARGA, ESPALHAMENTO E TRANSPORTE DE MATERIAL DE 1ª CATEGORIA, COM MOTOSCRAPER. DISTÂNCIA MÉDIA DE TRANSPORTE DE 201 A 400 M | E24: M3 | F24: 5.03
B25: RO-40131 | C25: - | D25: ESCAVAÇÃO, CARGA, DESCARGA, ESPALHAMENTO E TRANSPORTE DE MATERIAL DE 1ª CATEGORIA, COM MOTOSCRAPER. DISTÂNCIA MÉDIA DE TRANSPORTE DE 401 A 600 M | E25: M3 | F25: 5.95
B26: RO-40134 | C26: - | D26: ESCAVAÇÃO, CARGA, DESCARGA, ESPALHAMENTO E TRANSPORTE DE MATERIAL DE 1ª CATEGORIA, COM MOTOSCRAPER. DISTÂNCIA MÉDIA DE TRANSPORTE DE 601 A 800 M | E26: M3 | F26: 6.28
B27: RO-40135 | C27: - | D27: ESCAVAÇÃO, CARGA, DESCARGA, ESPALHAMENTO E TRANSPORTE DE MATERIAL DE 1ª CATEGORIA, COM MOTOSCRAPER. DISTÂNCIA MÉDIA DE TRANSPORTE DE 801 A 1.000 M | E27: M3 | F27: 7.01
B28: RO-40137 | C28: - | D28: ESCAVAÇÃO, CARGA, DESCARGA, ESPALHAMENTO E TRANSPORTE DE MATERIAL DE 2ª CATEGORIA COM MOTOSCRAPER. DISTÂNCIA MÉDIA DE TRANSPORTE DE 0 A 200 M | E28: M3 | F28: 6.18
B29: RO-40138 | C29: - | D29: ESCAVAÇÃO, CARGA, DESCARGA, ESPALHAMENTO E TRANSPORTE DE MATERIAL DE 2ª CATEGORIA COM MOTOSCRAPER. DISTÂNCIA MÉDIA DE TRANSPORTE DE 201 A 400 M | E29: M3 | F29: 7.06
B30: RO-40140 | C30: - | D30: ESCAVAÇÃO, CARGA, DESCARGA, ESPALHAMENTO E TRANSPORTE DE MATERIAL DE 2ª CATEGORIA COM MOTOSCRAPER. DISTÂNCIA MÉDIA DE TRANSPORTE DE 401 A 600 M | E30: M3 | F30: 7.56
B31: RO-40143 | C31: - | D31: ESCAVAÇÃO, CARGA, DESCARGA, ESPALHAMENTO E TRANSPORTE DE MATERIAL DE 2ª CATEGORIA COM MOTOSCRAPER. DISTÂNCIA MÉDIA DE TRANSPORTE DE 601 A 800 M | E31: M3 | F31: 8.39
B32: RO-40144 | C32: - | D32: ESCAVAÇÃO, CARGA, DESCARGA, ESPALHAMENTO E TRANSPORTE DE MATERIAL DE 2ª CATEGORIA COM MOTOSCRAPER. DISTÂNCIA MÉDIA DE TRANSPORTE DE 801 A 1.000 M | E32: M3 | F32: 8.79
B33: RO-40148 | C33: - | D33: ESCAVAÇÃO, CARGA, DESCARGA, ESPALHAMENTO E TRANSPORTE DE MATERIAL DE 1ª CATEGORIA, COM CAMINHÃO. DISTÂNCIA MÉDIA DE TRANSPORTE <= 200 M | E33: M3 | F33: 3.22
B34: RO-40149 | C34: - | D34: ESCAVAÇÃO, CARGA, DESCARGA, ESPALHAMENTO E TRANSPORTE DE MATERIAL DE 1ª CATEGORIA, COM CAMINHÃO. DISTÂNCIA MÉDIA DE TRANSPORTE DE 201 A 400 M | E34: M3 | F34: 3.74
B35: RO-40150 | C35: - | D35: ESCAVAÇÃO, CARGA, DESCARGA, ESPALHAMENTO E TRANSPORTE DE MATERIAL DE 1ª CATEGORIA, COM CAMINHÃO. DISTÂNCIA MÉDIA DE TRANSPORTE DE 401 A 600 M | E35: M3 | F35: 3.99
B36: RO-40151 | C36: - | D36: ESCAVAÇÃO, CARGA, DESCARGA, ESPALHAMENTO E TRANSPORTE DE MATERIAL DE 1ª CATEGORIA, COM CAMINHÃO. DISTÂNCIA MÉDIA DE TRANSPORTE DE 601 A 800 M | E36: M3 | F36: 4.51
B37: RO-40152 | C37: - | D37: ESCAVAÇÃO, CARGA, DESCARGA, ESPALHAMENTO E TRANSPORTE DE MATERIAL DE 1ª CATEGORIA, COM CAMINHÃO. DISTÂNCIA MÉDIA DE TRANSPORTE DE 801 A 1.000 M | E37: M3 | F37: 4.67
B38: RO-40153 | C38: - | D38: ESCAVAÇÃO, CARGA, DESCARGA, ESPALHAMENTO E TRANSPORTE DE MATERIAL DE 1ª CATEGORIA, COM CAMINHÃO. DISTÂNCIA MÉDIA DE TRANSPORTE DE 1.001 A 1.200 M | E38: M3 | F38: 4.86
B39: RO-40154 | C39: - | D39: ESCAVAÇÃO, CARGA, DESCARGA, ESPALHAMENTO E TRANSPORTE DE MATERIAL DE 1ª CATEGORIA, COM CAMINHÃO. DISTÂNCIA MÉDIA DE TRANSPORTE DE 1.201 A 1.400 M | E39: M3 | F39: 5.04
B40: RO-40155 | C40: - | D40: ESCAVAÇÃO, CARGA, DESCARGA, ESPALHAMENTO E TRANSPORTE DE MATERIAL DE 1ª CATEGORIA, COM CAMINHÃO. DISTÂNCIA MÉDIA DE TRANSPORTE DE 1.401 A 1.600 M | E40: M3 | F40: 5.44
B41: RO-40156 | C41: - | D41: ESCAVAÇÃO, CARGA, DESCARGA, ESPALHAMENTO E TRANSPORTE DE MATERIAL DE 1ª CATEGORIA, COM CAMINHÃO. DISTÂNCIA MÉDIA DE TRANSPORTE DE 1.601 A 1.800 M | E41: M3 | F41: 5.59
B42: RO-40157 | C42: - | D42: ESCAVAÇÃO, CARGA, DESCARGA, ESPALHAMENTO E TRANSPORTE DE MATERIAL DE 1ª CATEGORIA, COM CAMINHÃO. DISTÂNCIA MÉDIA DE TRANSPORTE DE 1.801 A 2.000 M | E42: M3 | F42: 5.73
B43: RO-40158 | C43: - | D43: ESCAVAÇÃO, CARGA, DESCARGA, ESPALHAMENTO E TRANSPORTE DE MATERIAL DE 1ª CATEGORIA, COM CAMINHÃO. DISTÂNCIA MÉDIA DE TRANSPORTE DE 2.001 A 2.500 M | E43: M3 | F43: 6
B44: RO-40159 | C44: - | D44: ESCAVAÇÃO, CARGA, DESCARGA, ESPALHAMENTO E TRANSPORTE DE MATERIAL DE 1ª CATEGORIA, COM CAMINHÃO. DISTÂNCIA MÉDIA DE TRANSPORTE DE 2.501 A 3.000 M | E44: M3 | F44: 6.47
B45: RO-40160 | C45: - | D45: ESCAVAÇÃO, CARGA, DESCARGA, ESPALHAMENTO E TRANSPORTE DE MATERIAL DE 1ª CATEGORIA, COM CAMINHÃO. DISTÂNCIA MÉDIA DE TRANSPORTE DE 3.001 A 4.000 M | E45: M3 | F45: 7.19
B46: RO-40162 | C46: - | D46: ESCAVAÇÃO, CARGA, DESCARGA, ESPALHAMENTO E TRANSPORTE DE MATERIAL DE 2ª. CATEGORIA COM CAMINHÃO. DISTÂNCIA MÉDIA DE TRANSPORTE <= 200 M | E46: M3 | F46: 4.09
B47: RO-40163 | C47: - | D47: ESCAVAÇÃO, CARGA, DESCARGA, ESPALHAMENTO E TRANSPORTE DE MATERIAL DE 2ª. CATEGORIA COM CAMINHÃO. DISTÂNCIA MÉDIA DE TRANSPORTE DE 201 A 400 M | E47: M3 | F47: 4.38
B48: RO-40164 | C48: - | D48: ESCAVAÇÃO, CARGA, DESCARGA, ESPALHAMENTO E TRANSPORTE DE MATERIAL DE 2ª. CATEGORIA COM CAMINHÃO. DISTÂNCIA MÉDIA DE TRANSPORTE DE 401 A 600 M | E48: M3 | F48: 4.99
B49: RO-40165 | C49: - | D49: ESCAVAÇÃO, CARGA, DESCARGA, ESPALHAMENTO E TRANSPORTE DE MATERIAL DE 2ª. CATEGORIA COM CAMINHÃO. DISTÂNCIA MÉDIA DE TRANSPORTE DE 601 A 800 M | E49: M3 | F49: 5.28
B50: RO-40166 | C50: - | D50: ESCAVAÇÃO, CARGA, DESCARGA, ESPALHAMENTO E TRANSPORTE DE MATERIAL DE 2ª. CATEGORIA COM CAMINHÃO. DISTÂNCIA MÉDIA DE TRANSPORTE DE 801 A 1.000 M | E50: M3 | F50: 5.45
B51: RO-40167 | C51: - | D51: ESCAVAÇÃO, CARGA, DESCARGA, ESPALHAMENTO E TRANSPORTE DE MATERIAL DE 2ª. CATEGORIA COM CAMINHÃO. DISTÂNCIA MÉDIA DE TRANSPORTE DE 1.001 A 1.200 M | E51: M3 | F51: 5.65
B52: RO-40168 | C52: - | D52: ESCAVAÇÃO, CARGA, DESCARGA, ESPALHAMENTO E TRANSPORTE DE MATERIAL DE 2ª. CATEGORIA COM CAMINHÃO. DISTÂNCIA MÉDIA DE TRANSPORTE DE 1.201 A 1.400 M | E52: M3 | F52: 6.17
B53: RO-40169 | C53: - | D53: ESCAVAÇÃO, CARGA, DESCARGA, ESPALHAMENTO E TRANSPORTE DE MATERIAL DE 2ª. CATEGORIA COM CAMINHÃO. DISTÂNCIA MÉDIA DE TRANSPORTE DE 1.401 A 1.600 M | E53: M3 | F53: 6.34
B54: RO-40170 | C54: - | D54: ESCAVAÇÃO, CARGA, DESCARGA, ESPALHAMENTO E TRANSPORTE DE MATERIAL DE 2ª. CATEGORIA COM CAMINHÃO. DISTÂNCIA MÉDIA DE TRANSPORTE DE 1.601 A 1.800 M | E54: M3 | F54: 6.5
B55: RO-40171 | C55: - | D55: ESCAVAÇÃO, CARGA, DESCARGA, ESPALHAMENTO E TRANSPORTE DE MATERIAL DE 2ª. CATEGORIA COM CAMINHÃO. DISTÂNCIA MÉDIA DE TRANSPORTE DE 1.801 A 2.000 M | E55: M3 | F55: 6.64
B56: RO-40172 | C56: - | D56: ESCAVAÇÃO, CARGA, DESCARGA, ESPALHAMENTO E TRANSPORTE DE MATERIAL DE 2ª. CATEGORIA COM CAMINHÃO. DISTÂNCIA MÉDIA DE TRANSPORTE DE 2.001 A 2.500 M | E56: M3 | F56: 7.26
B57: RO-40173 | C57: - | D57: ESCAVAÇÃO, CARGA, DESCARGA, ESPALHAMENTO E TRANSPORTE DE MATERIAL DE 2ª. CATEGORIA COM CAMINHÃO. DISTÂNCIA MÉDIA DE TRANSPORTE DE 2.501 A 3.000 M | E57: M3 | F57: 7.51
B58: RO-40174 | C58: - | D58: ESCAVAÇÃO, CARGA, DESCARGA, ESPALHAMENTO E TRANSPORTE DE MATERIAL DE 2ª. CATEGORIA COM CAMINHÃO. DISTÂNCIA MÉDIA DE TRANSPORTE DE 3.001 A 4.000 M | E58: M3 | F58: 8.01
B59: RO-40182 | C59: - | D59: ESCAVAÇÃO, CARGA, DESCARGA, ESPALHAMENTO E TRANSPORTE DE MATERIAL DE 3ª CATEGORIA. DISTÂNCIA MÉDIA DE TRANSPORTE <= 200 M | E59: M3 | F59: 25.54
B60: RO-40183 | C60: - | D60: ESCAVAÇÃO, CARGA, DESCARGA, ESPALHAMENTO E TRANSPORTE DE MATERIAL DE 3ª CATEGORIA. DISTÂNCIA MÉDIA DE TRANSPORTE DE 201 A 400 M | E60: M3 | F60: 25.86
B61: RO-40184 | C61: - | D61: ESCAVAÇÃO, CARGA, DESCARGA, ESPALHAMENTO E TRANSPORTE DE MATERIAL DE 3ª CATEGORIA. DISTÂNCIA MÉDIA DE TRANSPORTE DE 401 A 600 M | E61: M3 | F61: 26.16
B62: RO-40185 | C62: - | D62: ESCAVAÇÃO, CARGA, DESCARGA, ESPALHAMENTO E TRANSPORTE DE MATERIAL DE 3ª CATEGORIA. DISTÂNCIA MÉDIA DE TRANSPORTE DE 601 A 800 M | E62: M3 | F62: 26.49
B63: RO-41776 | C63: - | D63: ESCAVAÇÃO, CARGA, DESCARGA, ESPALHAMENTO E TRANSPORTE DE MATERIAL DE 3ª CATEGORIA. DISTÂNCIA MÉDIA DE TRANSPORTE DE 801 A 1.000 M | E63: M3 | F63: 26.68
B64: RO-41777 | C64: - | D64: ESCAVAÇÃO, CARGA, DESCARGA, ESPALHAMENTO E TRANSPORTE DE MATERIAL DE 3ª CATEGORIA. DISTÂNCIA MÉDIA DE TRANSPORTE DE 1.001 A 1.200 M | E64: M3 | F64: 26.9
B65: RO-41778 | C65: - | D65: ESCAVAÇÃO, CARGA, DESCARGA, ESPALHAMENTO E TRANSPORTE DE MATERIAL DE 3ª CATEGORIA. DISTÂNCIA MÉDIA DE TRANSPORTE DE 1.201 A 1.400 M | E65: M3 | F65: 27.72
B66: RO-41834 | C66: - | D66: ESCAVAÇÃO, CARGA, DESCARGA, ESPALHAMENTO E TRANSPORTE DE MATERIAL DE 3ª CATEGORIA. DISTÂNCIA MÉDIA DE TRANSPORTE DE 1.401 A 1.600 M | E66: M3 | F66: 27.91
B67: RO-41835 | C67: - | D67: ESCAVAÇÃO, CARGA, DESCARGA, ESPALHAMENTO E TRANSPORTE DE MATERIAL DE 3ª CATEGORIA. DISTÂNCIA MÉDIA DE TRANSPORTE DE 1.601 A 1.800 M | E67: M3 | F67: 28.08
B68: RO-41836 | C68: - | D68: ESCAVAÇÃO, CARGA, DESCARGA, ESPALHAMENTO E TRANSPORTE DE MATERIAL DE 3ª CATEGORIA. DISTÂNCIA MÉDIA DE TRANSPORTE DE 1.801 A 2.000 M | E68: M3 | F68: 28.24
B69: RO-40186 | C69: - | D69: ESCAVAÇÃO, CARGA, DESCARGA, ESPALHAMENTO E TRANSPORTE DE MATERIAL DE 3ª CATEGORIA. DISTÂNCIA MÉDIA DE TRANSPORTE DE 2.001 A 2.500 M | E69: M3 | F69: 28.57
B70: RO-42329 | C70: - | D70: ESCAVAÇÃO, CARGA, DESCARGA, ESPALHAMENTO E TRANSPORTE DE MATERIAL DE 3ª. CATEGORIA . DISTÂNCIA MÉDIA DE TRANSPORTE DE 2.501 A 3.000 M | E70: M3 | F70: 28.84
B71: RO-42330 | C71: - | D71: ESCAVAÇÃO, CARGA, DESCARGA, ESPALHAMENTO E TRANSPORTE DE MATERIAL DE 3ª. CATEGORIA. DISTÂNCIA MÉDIA DE TRANSPORTE DE 3.001 A 4.000 M | E71: M3 | F71: 30
B72: RO-40192 | C72: OBR-VIA-015 | D72: ESCAVAÇÃO E CARGA COM TRATOR E CARREGADEIRA (MATERIAL DE 1ª CATEGORIA) | E72: M3 | F72: 2.69
B73: RO-40194 | C73: - | D73: ESCAVAÇÃO E TRANSPORTE COM TRATOR DE MATERIAL DE 1ª CATEGORIA.DISTÂNCIA MÉDIA DE TRANSPORTE <= 50 M | E73: M3 | F73: 1.86
B74: RO-40193 | C74: - | D74: ESCAVAÇÃO E TRANSPORTE COM TRATOR DE MATERIAL DE 2ª CATEGORIA.DISTÂNCIA MÉDIA DE TRANSPORTE <=50 M | E74: M3 | F74: 3.82
B75: RO-40198 | C75: OBR-VIA-025 | D75: CARGA, TRANSPORTE E DESCARGA DE MATERIAL DE 1ª CATEGORIA, COM CAMINHÃO. DISTÂNCIA MÉDIA DE TRANSPORTE <= 200 M | E75: M3 | F75: 2.83
B76: RO-40199 | C76: OBR-VIA-030 | D76: CARGA, TRANSPORTE E DESCARGA DE MATERIAL DE 1ª CATEGORIA, COM CAMINHÃO. DISTÂNCIA MÉDIA DE TRANSPORTE DE 201 A 400 M | E76: M3 | F76: 3.27
B77: RO-40200 | C77: OBR-VIA-035 | D77: CARGA ,TRANSPORTE E DESCARGA DE MATERIAL DE 1ª CATEGORIA, COM CAMINHÃO. DISTÂNCIA MÉDIA DE TRANSPORTE 401 A 600 M | E77: M3 | F77: 3.48
B78: RO-40201 | C78: OBR-VIA-040 | D78: CARGA, TRANSPORTE E DESCARGA DE MATERIAL DE 1ª CATEGORIA, COM CAMINHÃO. DISTÂNCIA MÉDIA DE TRANSPORTE DE 601 A 800 M | E78: M3 | F78: 3.72
B79: RO-40202 | C79: OBR-VIA-045 | D79: CARGA, TRANSPORTE E DESCARGA DE MATERIAL DE 1ª CATEGORIA, COM CAMINHÃO. DISTÂNCIA MÉDIA DE TRANSPORTE DE 801 A 1.000 M | E79: M3 | F79: 4.06
B80: RO-43394 | C80: OBR-VIA-050 | D80: CARGA, TRANSPORTE E DESCARGA DE MATERIAL DE 1ª CATEGORIA, COM CAMINHÃO.DISTÂNCIA MÉDIA DE TRANSPORTE 1.001 A 1.200 M | E80: M3 | F80: 4.22
B81: RO-42767 | C81: OBR-VIA-055 | D81: CARGA, TRANSPORTE E DESCARGA DE MATERIAL DE 1ª CATEGORIA, COM CAMINHÃO.DISTÂNCIA MÉDIA DE TRANSPORTE DE 1.201 A 1.400 M | E81: M3 | F81: 4.37
B82: RO-43901 | C82: OBR-VIA-060 | D82: CARGA, TRANSPORTE E DESCARGA DE MATERIAL DE 1ª CATEGORIA, COM CAMINHÃO.DISTÂNCIA MÉDIA DE TRANSPORTE DE 1.401 A 1.600 M | E82: M3 | F82: 4.5
B83: RO-43902 | C83: OBR-VIA-065 | D83: CARGA, TRANSPORTE E DESCARGA DE MATERIAL DE 1ª CATEGORIA, COM CAMINHÃO.DISTÂNCIA MÉDIA DE TRANSPORTE DE 1.601 A 1.800 M | E83: M3 | F83: 4.84
B84: RO-43398 | C84: OBR-VIA-066 | D84: CARGA, TRANSPORTE E DESCARGA DE MATERIAL DE 1ª CATEGORIA, COM CAMINHÃO.DISTÂNCIA MÉDIA DE TRANSPORTE DE 1.801 A 2.000 M | E84: M3 | F84: 4.96
B85: RO-43681 | C85: - | D85: CARGA, TRANSPORTE E DESCARGA DE MATERIAL DE 1ª CATEGORIA, COM CAMINHÃO. DISTÂNCIA MÉDIA DE TRANSPORTE DE 2.001 A 2.500 M | E85: M3 | F85: 5.19
B86: RO-43886 | C86: - | D86: CARGA, TRANSPORTE E DESCARGA DE MATERIAL DE 1ª CATEGORIA, COM CAMINHÃO.DISTÂNCIA MÉDIA DE TRANSPORTE DE 2.501 A 3.000 M | E86: M3 | F86: 5.59
B87: RO-40210 | C87: OBR-VIA-070 | D87: REVESTIMENTO PRIMÁRIO (EXECUÇÃO, INCLUINDO ESCAVAÇÃO, CARGA, DESCARGA, ESPALHAMENTO E COMPACTAÇÃO DO MATERIAL) | E87: M3 | F87: 9.01
B88: RO-40211 | C88: OBR-VIA-075 | D88: ESCAVAÇÃO MANUAL DE VALAS EM SOLO, COM ALTURA DE 0 A 1,50 M | E88: M3 | F88: 49.57
B89: RO-40213 | C89: OBR-VIA-080 | D89: ESCAVAÇÃO MANUAL DE VALAS EM SOLO, COM ALTURA DE 1,50 M A 3,00 M | E89: M3 | F89: 62.6
B90: RO-40216 | C90: - | D90: ESCAVAÇÃO MANUAL EM MATERIAL DE 1ª CATEGORIA COM ESGOTAMENTO DE ÀGUA | E90: M3 | F90: 59.18
B91: RO-40217 | C91: - | D91: ESCAVAÇÃO EM MATERIAL DE 3ª CATEGORIA COM ESGOTAMENTO DE ÀGUA | E91: M3 | F91: 88.84
B92: RO-40215 | C92: - | D92: ESCAVAÇÃO MECÂNICA DE VALAS EM MATERIAL DE 1ª E 2ª CATEGORIA (EXECUÇÃO, INCLUINDO REMOÇÃO PARA FORA DO LEITO ESTRADAL) | E92: M3 | F92: 6.84
B93: RO-40218 | C93: OBR-VIA-085 | D93: ESCAVAÇÃO MECÂNICA DE VALAS EM MATERIAL DE 1ª CATEGORIA (EXECUÇÃO, INCLUINDO REMOÇÃO PARA FORA DO LEITO ESTRADAL) | E93: M3 | F93: 5.95
B94: RO-40219 | C94: OBR-VIA-090 | D94: ESCAVAÇÃO MECÂNICA DE VALAS EM MATERIAL DE 2ª CATEGORIA (EXECUÇÃO, INCLUINDO REMOÇÃO PARA FORA DO LEITO ESTRADAL) | E94: M3 | F94: 7.57
B95: RO-40220 | C95: - | D95: ESCAVAÇÃO MECÂNICA DE VALAS EM ROCHA (EXECUÇÃO, INCLUINDO REMOÇÃO PARA FORA DO LEITO ESTRADAL) | E95: M3 | F95: 80.65
B96: RO-40230 | C96: OBR-VIA-095 | D96: MURO DE ARRIMO EM GABIÃO CAIXA, TELA GALVANIZADA (EXECUÇÃO, INCLUINDO FORNECIMENTO DE TODOS OS MATERIAIS) | E96: M3 | F96: 344.1
B97: RO-40221 | C97: OBR-VIA-100 | D97: MURO DE ARRIMO EM GABIÃO CAIXA, TELA REVESTIDA COM PVC (EXECUÇÃO, INCLUINDO FORNECIMENTO DE TODOS OS MATERIAIS) | E97: M3 | F97: 361.73
B98: RO-40222 | C98: - | D98: DEMOLIÇÃO DE MURO DE ARRIMO EM GABIÃO | E98: M3 | F98: 57.33
B99: RO-40231 | C99: OBR-VIA-105 | D99: GABIÃO TIPO COLCHÃO RENO ESPESSURA = 0,30 M, TELA REVESTIDA COM PVC (EXECUÇÃO, INCLUINDO FORNECIMENTO DE TODOS OS MATERIAIS) | E99: M2 | F99: 138.52
B100: RO-40229 | C100: - | D100: ENROCAMENTO DE PEDRA DE MÃO JOGADA (EXECUÇÃO INCLUINDO O FORNECIMENTO DE TODOS OS MATERIAIS) | E100: M3 | F100: 85.03
B101: RO-40233 | C101: - | D101: MURO DE ARRIMO EM RIP-RAP, COM ENCHIMENTO DE AREIA E CIMENTO. TRAÇO - 1:10 (EXECUÇÃO, INCLUINDO FORNECIMENTO E TRANSPORTE DE TODOS OS MATERIAIS) | E101: M3 | F101: 194.29
B102: RO-40232 | C102: - | D102: MURO DE ARRIMO EM RIP-RAP (VEGETATIVO) | E102: M3 | F102: 168.65
B103: RO-40234 | C103: - | D103: REATERRO E COMPACTAÇÃO MANUAL DE VALA | E103: M3 | F103: 28.4
B104: RO-40238 | C104: - | D104: COMPACTAÇÃO MANUAL DE ATERROS | E104: M3 | F104: 20.03
B105: RO-40239 | C105: - | D105: APILOAMENTO DE FUNDO DE VALAS | E105: M2 | F105: 2.97
B106: RO-40240 | C106: OBR-VIA-120 | D106: PATROLAMENTO (RECONFORMAÇÃO MECÂNICA DA PLATAFORMA) | E106: M2 | F106: 0.04
B107: RO-40242 | C107: - | D107: ESCALONAMENTO DE TALUDES DE ATERRO | E107: M3 | F107: 4.04
B108: RO-40241 | C108: - | D108: COMPACTAÇÃO DE BOTA-FORA A 80% PROCTOR NORMAL | E108: M3 | F108: 2.11
B109: RO-40249 | C109: - | D109: COMPACTAÇÃO DE ATERRO A 95% PROCTOR NORMAL | E109: M3 | F109: 2.6
B110: RO-40251 | C110: - | D110: COMPACTAÇÃO DE ATERRO A 100% PROCTOR NORMAL | E110: M3 | F110: 3.01
B111: RO-40253 | C111: - | D111: COMPACTAÇÃO DE ATERRO A 100% PROCTOR INTERNORMAL (150%PROCTOR NORMAL) | E111: M3 | F111: 3.11
B112: RO-40252 | C112: - | D112: COMPACTAÇÃO DE ATERRO A 100% DO PROCTOR INTERMEDIÁRIO | E112: M3 | F112: 3.2
B113: RO-40254 | C113: - | D113: COMPACTAÇÃO DE ATERRO A 100% PROCTOR NORMAL COM INTERFERÊNCIA DE FILTRO VERTICAL | E113: M3 | F113: 4.35
B114: RO-40255 | C114: - | D114: COMPACTAÇÃO DE ATERRO A 100% PROCTOR NORMAL, COM INTERFERÊNCIA DE SOLO ENVELOPADO | E114: M3 | F114: 3.6
B115: RO-42263 | C115: - | D115: ESPALHAMENTO DE MATERIAL EM BOTA-FORA | E115: M3 | F115: 0.17
B116: 102 - DRENAGEM
B117: RO-40269 | C117: - | D117: BUEIRO SIMPLES TUBULAR DE CONCRETO CLASSE CA-1. BSTC Ø 0,40 M - CORPO (EXECUÇÃO, INCLUINDO FORNECIMENTO E TRANSPORTE DE TODOS OS MATERIAIS E BERÇO, EXCLUSIVE ESCAVAÇÃO E COMPACTAÇÃO) | E117: M | F117: 178.17
B118: RO-40270 | C118: - | D118: BUEIRO SIMPLES TUBULAR DE CONCRETO, CLASSE CA-1. BSTC Ø 0,60 M - CORPO (EXECUÇÃO, INCLUINDO FORNECIMENTO E TRANSPORTE DE TODOS OS MATERIAIS E BERÇO, EXCLUSIVE ESCAVAÇÃO E COMPACTAÇÃO) | E118: M | F118: 284.31
B119: RO-40271 | C119: - | D119: BUEIRO SIMPLES TUBULAR DE CONCRETO, CLASSE CA-1. BSTC Ø 0,80 M - CORPO (EXECUÇÃO, INCLUINDO FORNECIMENTO E TRANSPORTE DE TODOS OS MATERIAIS E BERÇO, EXCLUSIVE ESCAVAÇÃO E COMPACTAÇÃO) | E119: M | F119: 473.62
B120: RO-40272 | C120: - | D120: BUEIRO SIMPLES TUBULAR DE CONCRETO, CLASSE CA-1. BSTC Ø 1,00 M - CORPO (EXECUÇÃO, INCLUINDO FORNECIMENTO E TRANSPORTE DE TODOS OS MATERIAIS E BERÇO, EXCLUSIVE ESCAVAÇÃO E COMPACTAÇÃO) | E120: M | F120: 653.41
B121: RO-40273 | C121: - | D121: BUEIRO SIMPLES TUBULAR DE CONCRETO, CLASSE CA-1. BSTC Ø 1,20 M - CORPO (EXECUÇÃO, INCLUINDO FORNECIMENTO E TRANSPORTE DE TODOS OS MATERIAIS E BERÇO, EXCLUSIVE ESCAVAÇÃO E COMPACTAÇÃO) | E121: M | F121: 888.61
B122: RO-40274 | C122: - | D122: BUEIRO SIMPLES TUBULAR DE CONCRETO, CLASSE CA-1. BSTC Ø 1,50 M - CORPO (EXECUÇÃO, INCLUINDO FORNECIMENTO E TRANSPORTE DE TODOS OS MATERIAIS E BERÇO, EXCLUSIVE ESCAVAÇÃO E COMPACTAÇÃO) | E122: M | F122: 1378.45
B123: RO-40275 | C123: - | D123: BUEIRO SIMPLES TUBULAR DE CONCRETO, CLASSE CA-2. BSTC Ø 0,40 M - CORPO (EXECUÇÃO, INCLUINDO FORNECIMENTO E TRANSPORTE DE TODOS OS MATERIAIS E BERÇO, EXCLUSIVE ESCAVAÇÃO E COMPACTAÇÃO) | E123: M | F123: 189.67
B124: RO-40276 | C124: - | D124: BUEIRO SIMPLES TUBULAR DE CONCRETO, CLASSE CA-2. BSTC Ø 0,60 M - CORPO (EXECUÇÃO, INCLUINDO FORNECIMENTO E TRANSPORTE DE TODOS OS MATERIAIS E BERÇO, EXCLUSIVE ESCAVAÇÃO E COMPACTAÇÃO) | E124: M | F124: 301.56
B125: RO-40277 | C125: - | D125: BUEIRO SIMPLES TUBULAR DE CONCRETO, CLASSE CA-2. BSTC Ø 0,80 M - CORPO (EXECUÇÃO, INCLUINDO FORNECIMENTO E TRANSPORTE DE TODOS OS MATERIAIS E BERÇO, EXCLUSIVE ESCAVAÇÃO E COMPACTAÇÃO) | E125: M | F125: 508.12
B126: RO-40278 | C126: - | D126: BUEIRO SIMPLES TUBULAR DE CONCRETO, CLASSE CA-2. BSTC Ø 1,00 M - CORPO (EXECUÇÃO, INCLUINDO FORNECIMENTO E TRANSPORTE DE TODOS OS MATERIAIS E BERÇO, EXCLUSIVE ESCAVAÇÃO E COMPACTAÇÃO) | E126: M | F126: 693.66
B127: RO-40279 | C127: - | D127: BUEIRO SIMPLES TUBULAR DE CONCRETO, CLASSE CA-2. BSTC Ø 1,20 M - CORPO (EXECUÇÃO, INCLUINDO FORNECIMENTO E TRANSPORTE DE TODOS OS MATERIAIS E BERÇO, EXCLUSIVE ESCAVAÇÃO E COMPACTAÇÃO) | E127: M | F127: 946.11
B128: RO-40280 | C128: - | D128: BUEIRO SIMPLES TUBULAR DE CONCRETO, CLASSE CA-2. BSTC Ø 1,50 M - CORPO (EXECUÇÃO, INCLUINDO FORNECIMENTO E TRANSPORTE DE TODOS OS MATERIAIS E BERÇO, EXCLUSIVE ESCAVAÇÃO E COMPACTAÇÃO) | E128: M | F128: 1498.05
B129: RO-40281 | C129: - | D129: BUEIRO SIMPLES TUBULAR DE CONCRETO, CLASSE CA-3. BSTC Ø 0,60 M - CORPO (EXECUÇÃO, INCLUINDO FORNECIMENTO E TRANSPORTE DE TODOS OS MATERIAIS E BERÇO, EXCLUSIVE ESCAVAÇÃO E COMPACTAÇÃO) | E129: M | F129: 328.01
B130: RO-40282 | C130: - | D130: BUEIRO SIMPLES TUBULAR DE CONCRETO, CLASSE CA-3. BSTC Ø 0,80 M - CORPO (EXECUÇÃO, INCLUINDO FORNECIMENTO E TRANSPORTE DE TODOS OS MATERIAIS E BERÇO, EXCLUSIVE ESCAVAÇÃO E COMPACTAÇÃO) | E130: M | F130: 548.37
B131: RO-40283 | C131: - | D131: BUEIRO SIMPLES TUBULAR DE CONCRETO, CLASSE CA-3. BSTC Ø 1,00 M - CORPO (EXECUÇÃO, INCLUINDO FORNECIMENTO E TRANSPORTE DE TODOS OS MATERIAIS E BERÇO, EXCLUSIVE ESCAVAÇÃO E COMPACTAÇÃO) | E131: M | F131: 756.91
B132: RO-40284 | C132: - | D132: BUEIRO SIMPLES TUBULAR DE CONCRETO, CLASSE CA-3. BSTC Ø 1,20 M - CORPO (EXECUÇÃO, INCLUINDO FORNECIMENTO E TRANSPORTE DE TODOS OS MATERIAIS E BERÇO, EXCLUSIVE ESCAVAÇÃO E COMPACTAÇÃO) | E132: M | F132: 1026.61
B133: RO-40285 | C133: - | D133: BUEIRO SIMPLES TUBULAR DE CONCRETO, CLASSE CA-3. BSTC Ø 1,50 M - CORPO (EXECUÇÃO, INCLUINDO FORNECIMENTO E TRANSPORTE DE TODOS OS MATERIAIS E BERÇO, EXCLUSIVE ESCAVAÇÃO E COMPACTAÇÃO) | E133: M | F133: 1642.95
B134: RO-40286 | C134: - | D134: BUEIRO SIMPLES TUBULAR DE CONCRETO, BSTC Ø 0,40 M - BOCA (EXECUÇÃO, INCLUINDO FORNECIMENTO E TRANSPORTE DE TODOS OS MATERIAIS, EXCLUSIVE ESCAVAÇÃO E COMPACTAÇÃO) | E134: U | F134: 304.16
B135: RO-40287 | C135: - | D135: BUEIRO SIMPLES TUBULAR DE CONCRETO, BSTC Ø 0,60 M - BOCA (EXECUÇÃO, INCLUINDO FORNECIMENTO E TRANSPORTE DE TODOS OS MATERIAIS, EXCLUSIVE ESCAVAÇÃO E COMPACTAÇÃO) | E135: U | F135: 834.34
B136: RO-40288 | C136: - | D136: BUEIRO SIMPLES TUBULAR DE CONCRETO, BSTC Ø 0,80 M - BOCA (EXECUÇÃO, INCLUINDO FORNECIMENTO E TRANSPORTE DE TODOS OS MATERIAIS, EXCLUSIVE ESCAVAÇÃO E COMPACTAÇÃO) | E136: U | F136: 1413.52
B137: RO-41754 | C137: - | D137: BUEIRO SIMPLES TUBULAR DE CONCRETO. BSTC Ø 1,00 M - BOCA (EXECUÇÃO, INCLUINDO FORNECIMENTO E TRANSPORTE DE TODOS OS MATERIAIS, EXCLUSIVE ESCAVAÇÃO E COMPACTAÇÃO) | E137: U | F137: 2206.77
B138: RO-41783 | C138: - | D138: BUEIRO SIMPLES TUBULAR DE CONCRETO. BSTC Ø 1,20 M - BOCA (EXECUÇÃO, INCLUINDO FORNECIMENTO E TRANSPORTE DE TODOS OS MATERIAIS, EXCLUSIVE ESCAVAÇÃO E COMPACTAÇÃO) | E138: U | F138: 3225.77
B139: RO-42197 | C139: - | D139: BUEIRO SIMPLES TUBULAR DE CONCRETO. BSTC Ø 1,50 M - BOCA (EXECUÇÃO, INCLUINDO FORNECIMENTO E TRANSPORTE DE TODOS OS MATERIAIS, EXCLUSIVE ESCAVAÇÃO E COMPACTAÇÃO) | E139: U | F139: 5926.54
B140: RO-40292 | C140: - | D140: BUEIRO DUPLO TUBULAR DE CONCRETO, CLASSE CA-1. BDTC Ø 0,60 M - CORPO (EXECUÇÃO, INCLUINDO FORNECIMENTO E TRANSPORTE DE TODOS OS MATERIAIS E BERÇO, EXCLUSIVE ESCAVAÇÃO E COMPACTAÇÃO) | E140: M | F140: 535.1
B141: RO-40293 | C141: - | D141: BUEIRO DUPLO TUBULAR DE CONCRETO, CLASSE CA-1. BDTC Ø 0,80 M - CORPO (EXECUÇÃO, INCLUINDO FORNECIMENTO E TRANSPORTE DE TODOS OS MATERIAIS E BERÇO, EXCLUSIVE ESCAVAÇÃO E COMPACTAÇÃO) | E141: M | F141: 903.54
B142: RO-40294 | C142: - | D142: BUEIRO DUPLO TUBULAR DE CONCRETO, CLASSE CA-1. BDTC Ø 1,00 M - CORPO (EXECUÇÃO, INCLUINDO FORNECIMENTO E TRANSPORTE DE TODOS OS MATERIAIS E BERÇO, EXCLUSIVE ESCAVAÇÃO E COMPACTAÇÃO) | E142: M | F142: 1250.94
B143: RO-40295 | C143: - | D143: BUEIRO DUPLO TUBULAR DE CONCRETO, CLASSE CA-1. BDTC Ø 1,20 M - CORPO (EXECUÇÃO, INCLUINDO FORNECIMENTO E TRANSPORTE DE TODOS OS MATERIAIS E BERÇO, EXCLUSIVE ESCAVAÇÃO E COMPACTAÇÃO) | E143: M | F143: 1710.15
B144: RO-40296 | C144: - | D144: BUEIRO DUPLO TUBULAR DE CONCRETO, CLASSE CA-1. BDTC Ø 1,50 M - CORPO (EXECUÇÃO, INCLUINDO FORNECIMENTO E TRANSPORTE DE TODOS OS MATERIAIS E BERÇO, EXCLUSIVE ESCAVAÇÃO E COMPACTAÇÃO) | E144: M | F144: 2672.55
B145: RO-40297 | C145: - | D145: BUEIRO DUPLO TUBULAR DE CONCRETO, CLASSE CA-2. BDTC Ø 0,60 M - CORPO (EXECUÇÃO, INCLUINDO FORNECIMENTO E TRANSPORTE DE TODOS OS MATERIAIS E BERÇO, EXCLUSIVE ESCAVAÇÃO E COMPACTAÇÃO) | E145: M | F145: 569.6
B146: RO-40298 | C146: - | D146: BUEIRO DUPLO TUBULAR DE CONCRETO, CLASSE CA-2. BDTC Ø 0,80 M - CORPO (EXECUÇÃO, INCLUINDO FORNECIMENTO E TRANSPORTE DE TODOS OS MATERIAIS E BERÇO, EXCLUSIVE ESCAVAÇÃO E COMPACTAÇÃO) | E146: M | F146: 972.54
B147: RO-40299 | C147: - | D147: BUEIRO DUPLO TUBULAR DE CONCRETO, CLASSE CA-2. BDTC Ø 1,00 M - CORPO (EXECUÇÃO, INCLUINDO FORNECIMENTO E TRANSPORTE DE TODOS OS MATERIAIS E BERÇO, EXCLUSIVE ESCAVAÇÃO E COMPACTAÇÃO) | E147: M | F147: 1331.44
B148: RO-40300 | C148: - | D148: BUEIRO DUPLO TUBULAR DE CONCRETO, CLASSE CA-2. BDTC Ø 1,20 M - CORPO (EXECUÇÃO, INCLUINDO FORNECIMENTO E TRANSPORTE DE TODOS OS MATERIAIS E BERÇO, EXCLUSIVE ESCAVAÇÃO E COMPACTAÇÃO) | E148: M | F148: 1825.15
B149: RO-40301 | C149: - | D149: BUEIRO DUPLO TUBULAR DE CONCRETO, CLASSE CA-2. BDTC Ø 1,50 M - CORPO (EXECUÇÃO, INCLUINDO FORNECIMENTO E TRANSPORTE DE TODOS OS MATERIAIS E BERÇO, EXCLUSIVE ESCAVAÇÃO E COMPACTAÇÃO) | E149: M | F149: 2911.75
B150: RO-40302 | C150: - | D150: BUEIRO DUPLO TUBULAR DE CONCRETO, CLASSE CA-3. BDTC Ø 0,60 M - CORPO (EXECUÇÃO, INCLUINDO FORNECIMENTO E TRANSPORTE DE TODOS OS MATERIAIS E BERÇO, EXCLUSIVE ESCAVAÇÃO E COMPACTAÇÃO) | E150: M | F150: 622.5
B151: RO-40303 | C151: - | D151: BUEIRO DUPLO TUBULAR DE CONCRETO, CLASSE CA-3. BDTC Ø 0,80 M - CORPO (EXECUÇÃO, INCLUINDO FORNECIMENTO E TRANSPORTE DE TODOS OS MATERIAIS E BERÇO, EXCLUSIVE ESCAVAÇÃO E COMPACTAÇÃO) | E151: M | F151: 1053.04
B152: RO-40304 | C152: - | D152: BUEIRO DUPLO TUBULAR DE CONCRETO, CLASSE CA-3. BDTC Ø 1,00 M - CORPO (EXECUÇÃO, INCLUINDO FORNECIMENTO E TRANSPORTE DE TODOS OS MATERIAIS E BERÇO, EXCLUSIVE ESCAVAÇÃO E COMPACTAÇÃO) | E152: M | F152: 1457.94
B153: RO-40305 | C153: - | D153: BUEIRO DUPLO TUBULAR DE CONCRETO, CLASSE CA-3. BDTC Ø 1,20 M - CORPO (EXECUÇÃO, INCLUINDO FORNECIMENTO E TRANSPORTE DE TODOS OS MATERIAIS E BERÇO, EXCLUSIVE ESCAVAÇÃO E COMPACTAÇÃO) | E153: M | F153: 1986.15
B154: RO-40306 | C154: - | D154: BUEIRO DUPLO TUBULAR DE CONCRETO, CLASSE CA-3. BDTC Ø 1,50 M - CORPO (EXECUÇÃO, INCLUINDO FORNECIMENTO E TRANSPORTE DE TODOS OS MATERIAIS E BERÇO, EXCLUSIVE ESCAVAÇÃO E COMPACTAÇÃO) | E154: M | F154: 3201.55
B155: RO-40307 | C155: - | D155: BUEIRO DUPLO TUBULAR DE CONCRETO, BDTC Ø 0,60 M - BOCA (EXECUÇÃO, INCLUINDO FORNECIMENTO E TRANSPORTE DE TODOS OS MATERIAIS, EXCLUSIVE ESCAVAÇÃO E COMPACTAÇÃO) | E155: U | F155: 1247.57
B156: RO-40308 | C156: - | D156: BUEIRO DUPLO TUBULAR DE CONCRETO, BDTC Ø 0,80 M - BOCA (EXECUÇÃO, INCLUINDO FORNECIMENTO E TRANSPORTE DE TODOS OS MATERIAIS, EXCLUSIVE ESCAVAÇÃO E COMPACTAÇÃO) | E156: U | F156: 2042.67
B157: RO-40309 | C157: - | D157: BUEIRO DUPLO TUBULAR DE CONCRETO, BDTC Ø 1,00 M - BOCA (EXECUÇÃO, INCLUINDO FORNECIMENTO E TRANSPORTE DE TODOS OS MATERIAIS, EXCLUSIVE ESCAVAÇÃO E COMPACTAÇÃO) | E157: U | F157: 3089.52
B158: RO-40310 | C158: - | D158: BUEIRO DUPLO TUBULAR DE CONCRETO, BDTC Ø 1,20 M - BOCA (EXECUÇÃO, INCLUINDO FORNECIMENTO E TRANSPORTE DE TODOS OS MATERIAIS, EXCLUSIVE ESCAVAÇÃO E COMPACTAÇÃO) | E158: U | F158: 4528.52
B159: RO-40311 | C159: - | D159: BUEIRO DUPLO TUBULAR DE CONCRETO, BDTC Ø 1,50 M - BOCA (EXECUÇÃO, INCLUINDO FORNECIMENTO E TRANSPORTE DE TODOS OS MATERIAIS, EXCLUSIVE ESCAVAÇÃO E COMPACTAÇÃO) | E159: U | F159: 8125.14
B160: RO-40316 | C160: - | D160: BUEIRO TRIPLO TUBULAR DE CONCRETO, CLASSE CA-1. BTTC Ø 0,60 M - CORPO (EXECUÇÃO, INCLUINDO FORNECIMENTO E TRANSPORTE DE TODOS OS MATERIAIS E BERÇO, EXCLUSIVE ESCAVAÇÃO E COMPACTAÇÃO) | E160: M | F160: 785.74
B161: RO-40317 | C161: - | D161: BUEIRO TRIPLO TUBULAR DE CONCRETO, CLASSE CA-1. BTTC Ø 0,80 M - CORPO (EXECUÇÃO, INCLUINDO FORNECIMENTO E TRANSPORTE DE TODOS OS MATERIAIS E BERÇO, EXCLUSIVE ESCAVAÇÃO E COMPACTAÇÃO) | E161: M | F161: 1333.47
B162: RO-40318 | C162: - | D162: BUEIRO TRIPLO TUBULAR DE CONCRETO, CLASSE CA-1. BTTC Ø 1,00 M - CORPO (EXECUÇÃO, INCLUINDO FORNECIMENTO E TRANSPORTE DE TODOS OS MATERIAIS E BERÇO, EXCLUSIVE ESCAVAÇÃO E COMPACTAÇÃO) | E162: M | F162: 1848.68
B163: RO-40319 | C163: - | D163: BUEIRO TRIPLO TUBULAR DE CONCRETO, CLASSE CA-1. BTTC Ø 1,20 M - CORPO (EXECUÇÃO, INCLUINDO FORNECIMENTO E TRANSPORTE DE TODOS OS MATERIAIS E BERÇO, EXCLUSIVE ESCAVAÇÃO E COMPACTAÇÃO) | E163: M | F163: 2531.42
B164: RO-40320 | C164: - | D164: BUEIRO TRIPLO TUBULAR DE CONCRETO, CLASSE CA-1. BTTC Ø 1,50 M - CORPO (EXECUÇÃO, INCLUINDO FORNECIMENTO E TRANSPORTE DE TODOS OS MATERIAIS E BERÇO, EXCLUSIVE ESCAVAÇÃO E COMPACTAÇÃO) | E164: M | F164: 3966.65
B165: RO-40321 | C165: - | D165: BUEIRO TRIPLO TUBULAR DE CONCRETO, CLASSE CA-2. BTTC Ø 0,60 M - CORPO (EXECUÇÃO, INCLUINDO FORNECIMENTO E TRANSPORTE DE TODOS OS MATERIAIS E BERÇO, EXCLUSIVE ESCAVAÇÃO E COMPACTAÇÃO) | E165: M | F165: 837.49
B166: RO-40322 | C166: - | D166: BUEIRO TRIPLO TUBULAR DE CONCRETO, CLASSE CA-2. BTTC Ø 0,80 M - CORPO (EXECUÇÃO, INCLUINDO FORNECIMENTO E TRANSPORTE DE TODOS OS MATERIAIS E BERÇO, EXCLUSIVE ESCAVAÇÃO E COMPACTAÇÃO) | E166: M | F166: 1436.97
B167: RO-40323 | C167: - | D167: BUEIRO TRIPLO TUBULAR DE CONCRETO, CLASSE CA-2. BTTC Ø 1,00 M - CORPO (EXECUÇÃO, INCLUINDO FORNECIMENTO E TRANSPORTE DE TODOS OS MATERIAIS E BERÇO, EXCLUSIVE ESCAVAÇÃO E COMPACTAÇÃO) | E167: M | F167: 1969.43
B168: RO-40324 | C168: - | D168: BUEIRO TRIPLO TUBULAR DE CONCRETO, CLASSE CA-2. BTTC Ø 1,20 M - CORPO (EXECUÇÃO, INCLUINDO FORNECIMENTO E TRANSPORTE DE TODOS OS MATERIAIS E BERÇO, EXCLUSIVE ESCAVAÇÃO E COMPACTAÇÃO) | E168: M | F168: 2704.17
B169: RO-40325 | C169: - | D169: BUEIRO TRIPLO TUBULAR DE CONCRETO, CLASSE CA-2. BTTC Ø 1,50 M - CORPO (EXECUÇÃO, INCLUINDO FORNECIMENTO E TRANSPORTE DE TODOS OS MATERIAIS E BERÇO, EXCLUSIVE ESCAVAÇÃO E COMPACTAÇÃO) | E169: M | F169: 4325.45
B170: RO-40327 | C170: - | D170: BUEIRO TRIPLO TUBULAR DE CONCRETO, CLASSE CA-3. BTTC Ø 0,80 M - CORPO (EXECUÇÃO, INCLUINDO FORNECIMENTO E TRANSPORTE DE TODOS OS MATERIAIS E BERÇO, EXCLUSIVE ESCAVAÇÃO E COMPACTAÇÃO) | E170: M | F170: 1557.72
B171: RO-40328 | C171: - | D171: BUEIRO TRIPLO TUBULAR DE CONCRETO, CLASSE CA-3. BTTC Ø 1,00 M - CORPO (EXECUÇÃO, INCLUINDO FORNECIMENTO E TRANSPORTE DE TODOS OS MATERIAIS E BERÇO, EXCLUSIVE ESCAVAÇÃO E COMPACTAÇÃO) | E171: M | F171: 2159.18
B172: RO-40329 | C172: - | D172: BUEIRO TRIPLO TUBULAR DE CONCRETO, CLASSE CA-3. BTTC Ø 1,20 M - CORPO (EXECUÇÃO, INCLUINDO FORNECIMENTO E TRANSPORTE DE TODOS OS MATERIAIS E BERÇO, EXCLUSIVE ESCAVAÇÃO E COMPACTAÇÃO) | E172: M | F172: 2945.67
B173: RO-40330 | C173: - | D173: BUEIRO TRIPLO TUBULAR DE CONCRETO, CLASSE CA-3. BTTC Ø 1,50 M - CORPO (EXECUÇÃO, INCLUINDO FORNECIMENTO E TRANSPORTE DE TODOS OS MATERIAIS E BERÇO, EXCLUSIVE ESCAVAÇÃO E COMPACTAÇÃO) | E173: M | F173: 4760.15
B174: RO-40331 | C174: - | D174: BUEIRO TRIPLO TUBULAR DE CONCRETO. BTTC Ø 0,60 M - BOCA (EXECUÇÃO, INCLUINDO FORNECIMENTO E TRANSPORTE DE TODOS OS MATERIAIS, EXCLUSIVE ESCAVAÇÃO E COMPACTAÇÃO) | E174: U | F174: 1626.69
B175: RO-40332 | C175: - | D175: BUEIRO TRIPLO TUBULAR DE CONCRETO. BTTC Ø 0,80 M - BOCA (EXECUÇÃO, INCLUINDO FORNECIMENTO E TRANSPORTE DE TODOS OS MATERIAIS, EXCLUSIVE ESCAVAÇÃO E COMPACTAÇÃO) | E175: U | F175: 2635.97
B176: RO-40333 | C176: - | D176: BUEIRO TRIPLO TUBULAR DE CONCRETO. BTTC Ø 1,00 M - BOCA (EXECUÇÃO, INCLUINDO FORNECIMENTO E TRANSPORTE DE TODOS OS MATERIAIS, EXCLUSIVE ESCAVAÇÃO E COMPACTAÇÃO) | E176: U | F176: 3972.27
B177: RO-40334 | C177: - | D177: BUEIRO TRIPLO TUBULAR DE CONCRETO. BTTC Ø 1,20 M - BOCA (EXECUÇÃO, INCLUINDO FORNECIMENTO E TRANSPORTE DE TODOS OS MATERIAIS, EXCLUSIVE ESCAVAÇÃO E COMPACTAÇÃO) | E177: U | F177: 5830.76
B178: RO-40335 | C178: - | D178: BUEIRO TRIPLO TUBULAR DE CONCRETO. BTTC Ø 1,50 M - BOCA (EXECUÇÃO, INCLUINDO FORNECIMENTO E TRANSPORTE DE TODOS OS MATERIAIS, EXCLUSIVE ESCAVAÇÃO E COMPACTAÇÃO) | E178: U | F178: 10360.27
B179: RO-40342 | C179: - | D179: GIGANTE DE SUSTENTAÇÃO PARA BUEIRO SIMPLES TUBULAR DE CONCRETO - BSTC Ø 0,60 M (EXECUÇÃO, INCLUINDO FORNECIMENTO E TRANSPORTE DE TODOS OS MATERIAIS,EXCLUSIVE ESCAVAÇÃO E COMPACTAÇÃO) | E179: U | F179: 444.71
B180: RO-40343 | C180: - | D180: GIGANTE DE SUSTENTAÇÃO PARA BUEIRO SIMPLES TUBULAR DE CONCRETO - BSTC Ø 0,80 M (EXECUÇÃO, INCLUINDO FORNECIMENTO E TRANSPORTE DE TODOS OS MATERIAIS,EXCLUSIVE ESCAVAÇÃO E COMPACTAÇÃO) | E180: U | F180: 477.58
B181: RO-40344 | C181: - | D181: GIGANTE DE SUSTENTAÇÃO PARA BUEIRO SIMPLES TUBULAR DE CONCRETO - BSTC Ø 1,00 M (EXECUÇÃO, INCLUINDO FORNECIMENTO E TRANSPORTE DE TODOS OS MATERIAIS,EXCLUSIVE ESCAVAÇÃO E COMPACTAÇÃO) | E181: U | F181: 576.63
B182: RO-40345 | C182: - | D182: GIGANTE DE SUSTENTAÇÃO PARA BUEIRO DUPLO TUBULAR DE CONCRETO - BDTC Ø 0,80 M (EXECUÇÃO, INCLUINDO FORNECIMENTO E TRANSPORTE DE TODOS OS MATERIAIS,EXCLUSIVE ESCAVAÇÃO E COMPACTAÇÃO) | E182: U | F182: 900.47
B183: RO-40346 | C183: - | D183: GIGANTE DE SUSTENTAÇÃO PARA BUEIRO TRIPLO TUBULAR DE CONCRETO - BTTC Ø 1,00 M (EXECUÇÃO, INCLUINDO FORNECIMENTO E TRANSPORTE DE TODOS OS MATERIAIS,EXCLUSIVE ESCAVAÇÃO E COMPACTAÇÃO) | E183: U | F183: 1235.9
B184: RO-41040 | C184: - | D184: REMOÇÃO DE BUEIRO SIMPLES TUBULAR DE CONCRETO. BSTC Ø 0,40 M - CORPO | E184: M | F184: 31.62
B185: RO-41046 | C185: - | D185: REMOÇÃO DE BUEIRO SIMPLES TUBULAR DE CONCRETO. BSTC Ø 0,40 M - BOCA | E185: U | F185: 88.87
B186: RO-41041 | C186: - | D186: REMOÇÃO DE BUEIRO SIMPLES TUBULAR DE CONCRETO. BSTC Ø 0,60 M - CORPO | E186: M | F186: 62.32
B187: RO-41047 | C187: - | D187: REMOÇÃO DE BUEIRO SIMPLES TUBULAR DE CONCRETO. BSTC Ø 0,60 M - BOCA | E187: U | F187: 185.28
B188: RO-41042 | C188: - | D188: REMOÇÃO DE BUEIRO SIMPLES TUBULAR DE CONCRETO. BSTC Ø 0,80 M - CORPO | E188: M | F188: 98.99
B189: RO-41048 | C189: - | D189: REMOÇÃO DE BUEIRO SIMPLES TUBULAR DE CONCRETO. BSTC Ø 0,80 M - BOCA | E189: U | F189: 307.11
B190: RO-41043 | C190: - | D190: REMOÇÃO DE BUEIRO SIMPLES TUBULAR DE CONCRETO. BSTC Ø 1,00 M - CORPO | E190: M | F190: 142.57
B191: RO-41049 | C191: - | D191: REMOÇÃO DE BUEIRO SIMPLES TUBULAR DE CONCRETO. BSTC Ø 1,00 M - BOCA | E191: U | F191: 473.84
B192: RO-41044 | C192: - | D192: REMOÇÃO DE BUEIRO SIMPLES TUBULAR DE CONCRETO. BSTC Ø 1,20 M - CORPO | E192: M | F192: 190.99
B193: RO-41050 | C193: - | D193: REMOÇÃO DE BUEIRO SIMPLES TUBULAR DE CONCRETO. BSTC Ø 1,20 M - BOCA | E193: U | F193: 700.4
B194: RO-41045 | C194: - | D194: REMOÇÃO DE BUEIRO SIMPLES TUBULAR DE CONCRETO. BSTC Ø 1,50 M - CORPO | E194: M | F194: 264.11
B195: RO-41051 | C195: - | D195: REMOÇÃO DE BUEIRO SIMPLES TUBULAR DE CONCRETO. BSTC Ø 1,50 M - BOCA | E195: U | F195: 1320.12
B196: RO-41052 | C196: - | D196: REMOÇÃO DE BUEIRO DUPLO TUBULAR DE CONCRETO. BDTC Ø 0,60 M - CORPO | E196: M | F196: 111.25
B197: RO-41057 | C197: - | D197: REMOÇÃO DE BUEIRO DUPLO TUBULAR DE CONCRETO. BDTC Ø 0,60 M - BOCA | E197: U | F197: 273.03
B198: RO-41053 | C198: - | D198: REMOÇÃO DE BUEIRO DUPLO TUBULAR DE CONCRETO. BDTC Ø 0,80 M - CORPO | E198: M | F198: 176.93
B199: RO-41058 | C199: - | D199: REMOÇÃO DE BUEIRO DUPLO TUBULAR DE CONCRETO. BDTC Ø 0,80 M - BOCA | E199: U | F199: 439.62
B200: RO-41054 | C200: - | D200: REMOÇÃO DE BUEIRO DUPLO TUBULAR DE CONCRETO. BDTC Ø 1,00 M - CORPO | E200: M | F200: 260.8
... 3723 more rows
